Organisation Name,Effective Date,Service,Supplier Name,Paid Date,Net Amount (�),Purpose,Transaction Number
ROCHDALE BOROUGH COUNCIL,19/04/2016,PHYSICAL DIS & OLDER PEOPLE,DENTAK CARE AND SERVICES LIMITED,19/04/2016,-1099.12,NURSING LONG TERM,V000973168
ROCHDALE BOROUGH COUNCIL,24/04/2016,NEIGHBOURHOODS AND ENVIRONMENT,OFFICE DEPOT UK LIMITED,24/04/2016,1086.4,PURCHASE OF OTHER EQUIPMENT,V000978027
ROCHDALE BOROUGH COUNCIL,28/04/2016,LEARNING DIS & MENTAL HEALTH,ORCHARD CARE HOMES,28/04/2016,-630.52,RESIDENTIAL LONG TERM,V000980890
ROCHDALE BOROUGH COUNCIL,30/04/2016,PHYSICAL DIS & OLDER PEOPLE,ORCHARD CARE HOMES,30/04/2016,-1128.96,RESIDENTIAL LONG TERM,V000980963
ROCHDALE BOROUGH COUNCIL,02/05/2016,NEIGHBOURHOODS AND ENVIRONMENT,AECOM INFRASTRUCTURE AND ENVIRONMENT UK LTD,02/05/2016,601,DEMOLITION,V000983754
ROCHDALE BOROUGH COUNCIL,01/05/2016,NEIGHBOURHOODS AND ENVIRONMENT,AECOM INFRASTRUCTURE AND ENVIRONMENT UK LTD,01/05/2016,3980,DEMOLITION,V000983754
ROCHDALE BOROUGH COUNCIL,11/05/2016,NEIGHBOURHOODS AND ENVIRONMENT,PROBRUSH,11/05/2016,-615.98,EQUIPMENT - GENERAL,V000985111
ROCHDALE BOROUGH COUNCIL,04/04/2016,NEIGHBOURHOODS AND ENVIRONMENT,KEEP BRITAIN TIDY,04/04/2016,1872,EQUIPMENT - GENERAL,V000985815
ROCHDALE BOROUGH COUNCIL,04/04/2016,PUBLIC HEALTH,LGBT FOUNDATION,04/04/2016,2040,SERVICE LEVEL AGREEMENTS,V000985817
ROCHDALE BOROUGH COUNCIL,04/04/2016,CHILDREN�S SOCIAL CARE,ALPHA PLUS FOSTERING,04/04/2016,3227.41,FOSTER PARENTS BASIC ALLOWANCE,V000986087
ROCHDALE BOROUGH COUNCIL,04/04/2016,CHILDREN�S SOCIAL CARE,ALPHA PLUS FOSTERING,04/04/2016,3009.91,FOSTER PARENTS BASIC ALLOWANCE,V000986091
ROCHDALE BOROUGH COUNCIL,04/04/2016,CHILDREN�S SOCIAL CARE,ALPHA PLUS FOSTERING,04/04/2016,2692.32,FOSTER PARENTS BASIC ALLOWANCE,V000986092
ROCHDALE BOROUGH COUNCIL,04/04/2016,CHILDREN�S SOCIAL CARE,ALPHA PLUS FOSTERING,04/04/2016,2775.59,FOSTER PARENTS BASIC ALLOWANCE,V000986093
ROCHDALE BOROUGH COUNCIL,04/04/2016,PUBLIC HEALTH,PENNINE CARE NHS,04/04/2016,4565,PH PENNINE CARE CONTRACT,V000986177
ROCHDALE BOROUGH COUNCIL,04/04/2016,PUBLIC HEALTH,PENNINE CARE NHS,04/04/2016,365212,PH PENNINE CARE CONTRACT,V000986177
ROCHDALE BOROUGH COUNCIL,04/04/2016,PUBLIC HEALTH,PENNINE CARE NHS,04/04/2016,833,PH PENNINE CARE CONTRACT,V000986368
ROCHDALE BOROUGH COUNCIL,04/04/2016,PUBLIC HEALTH,PENNINE CARE NHS,04/04/2016,10903,PH PENNINE CARE CONTRACT,V000986368
ROCHDALE BOROUGH COUNCIL,04/04/2016,PUBLIC HEALTH,PENNINE CARE NHS,04/04/2016,107801,PH PENNINE CARE CONTRACT,V000986368
ROCHDALE BOROUGH COUNCIL,06/04/2016,NEIGHBOURHOODS AND ENVIRONMENT,THE UNIVERSITY OF MANCHESTER,06/04/2016,4000,GRANTS TO THE NON VOLUNTARY SECTOR,V000986383
ROCHDALE BOROUGH COUNCIL,04/04/2016,EARLY HELP AND SCHOOLS,DIOCESE OF SALFORD,04/04/2016,15102.77,IMPROVEMENTS-MODERNISATION,V000986388
ROCHDALE BOROUGH COUNCIL,04/04/2016,CHILDREN�S SOCIAL CARE,DEPAUL UK,04/04/2016,3206.57,YOUNG PEOPLES RENTS,V000986633
ROCHDALE BOROUGH COUNCIL,01/04/2016,EARLY HELP AND SCHOOLS,PENNINE CARE NHS,01/04/2016,4150.83,HEALTH AUTH - SERVICE LEVEL AGREEMENT,V000987850
ROCHDALE BOROUGH COUNCIL,08/04/2016,LEARNING DIS & MENTAL HEALTH,FREEHOLD COTTAGE,08/04/2016,-1029.6,RESIDENTIAL LONG TERM,V000988069
ROCHDALE BOROUGH COUNCIL,08/04/2016,LEARNING DIS & MENTAL HEALTH,FREEHOLD COTTAGE,08/04/2016,-1601.6,RESIDENTIAL LONG TERM,V000988070
ROCHDALE BOROUGH COUNCIL,08/04/2016,LEARNING DIS & MENTAL HEALTH,FREEHOLD COTTAGE,08/04/2016,-1031.76,RESIDENTIAL LONG TERM,V000988078
ROCHDALE BOROUGH COUNCIL,08/04/2016,LEARNING DIS & MENTAL HEALTH,FREEHOLD COTTAGE,08/04/2016,-1604.96,RESIDENTIAL LONG TERM,V000988079
ROCHDALE BOROUGH COUNCIL,08/04/2016,PHYSICAL DIS & OLDER PEOPLE,DENTAK CARE AND SERVICES LIMITED,08/04/2016,515.88,NURSING LONG TERM,V000988151
ROCHDALE BOROUGH COUNCIL,08/04/2016,PHYSICAL DIS & OLDER PEOPLE,ELIZABETH HOUSE OLDHAM LTD,08/04/2016,-523.3,RESIDENTIAL LONG TERM,V000988281
ROCHDALE BOROUGH COUNCIL,08/04/2016,PHYSICAL DIS & OLDER PEOPLE,ELIZABETH HOUSE OLDHAM LTD,08/04/2016,788.08,RESIDENTIAL LONG TERM,V000988364
ROCHDALE BOROUGH COUNCIL,08/04/2016,LEARNING DIS & MENTAL HEALTH,FREEHOLD COTTAGE,08/04/2016,2368,RESIDENTIAL LONG TERM,V000988472
ROCHDALE BOROUGH COUNCIL,08/04/2016,PHYSICAL DIS & OLDER PEOPLE,ELIZABETH HOUSE OLDHAM LTD,08/04/2016,1027.96,RESIDENTIAL LONG TERM,V000988560
ROCHDALE BOROUGH COUNCIL,08/04/2016,PHYSICAL DIS & OLDER PEOPLE,DENTAK CARE AND SERVICES LIMITED,08/04/2016,605.66,NURSING LONG TERM,V000988563
ROCHDALE BOROUGH COUNCIL,08/04/2016,PHYSICAL DIS & OLDER PEOPLE,ELIZABETH HOUSE OLDHAM LTD,08/04/2016,-675.95,RESIDENTIAL LONG TERM,V000988619
ROCHDALE BOROUGH COUNCIL,08/04/2016,PHYSICAL DIS & OLDER PEOPLE,ELIZABETH HOUSE OLDHAM LTD,08/04/2016,1006.52,RESIDENTIAL LONG TERM,V000988673
ROCHDALE BOROUGH COUNCIL,08/04/2016,PHYSICAL DIS & OLDER PEOPLE,DENTAK CARE AND SERVICES LIMITED,08/04/2016,815.34,NURSING LONG TERM,V000988727
ROCHDALE BOROUGH COUNCIL,08/04/2016,PHYSICAL DIS & OLDER PEOPLE,ELIZABETH HOUSE OLDHAM LTD,08/04/2016,-772.59,RESIDENTIAL LONG TERM,V000988780
ROCHDALE BOROUGH COUNCIL,08/04/2016,PHYSICAL DIS & OLDER PEOPLE,DENTAK CARE AND SERVICES LIMITED,08/04/2016,1203.72,NURSING LONG TERM,V000988786
ROCHDALE BOROUGH COUNCIL,08/04/2016,PHYSICAL DIS & OLDER PEOPLE,ELIZABETH HOUSE OLDHAM LTD,08/04/2016,1029.72,RESIDENTIAL LONG TERM,V000988787
ROCHDALE BOROUGH COUNCIL,08/04/2016,PHYSICAL DIS & OLDER PEOPLE,ELIZABETH HOUSE OLDHAM LTD,08/04/2016,923.36,RESIDENTIAL LONG TERM,V000988846
ROCHDALE BOROUGH COUNCIL,08/04/2016,PHYSICAL DIS & OLDER PEOPLE,ELIZABETH HOUSE OLDHAM LTD,08/04/2016,-966.56,RESIDENTIAL LONG TERM,V000988890
ROCHDALE BOROUGH COUNCIL,08/04/2016,PHYSICAL DIS & OLDER PEOPLE,ELIZABETH HOUSE OLDHAM LTD,08/04/2016,-966.36,RESIDENTIAL LONG TERM,V000988985
ROCHDALE BOROUGH COUNCIL,01/04/2016,NEIGHBOURHOODS AND ENVIRONMENT,PROFILE SECURITY SERVICES LIMITED,01/04/2016,8372.96,SECURITY,V000989249
ROCHDALE BOROUGH COUNCIL,01/04/2016,PROPERTY AND HIGHWAYS,CAPITA PROPERTY AND INFRASTRUCTURE LTD,01/04/2016,6331.75,MAINTENANCE,V000989446
ROCHDALE BOROUGH COUNCIL,01/04/2016,PROPERTY AND HIGHWAYS,CAPITA PROPERTY AND INFRASTRUCTURE LTD,01/04/2016,6201.26,TIME CHARGE FOR OFF MARKET SALES,V000989447
ROCHDALE BOROUGH COUNCIL,11/04/2016,NEIGHBOURHOODS AND ENVIRONMENT,LOCAL GOVERNMENT ASSOCIATION,11/04/2016,2260,SOFTWARE,V000989563
ROCHDALE BOROUGH COUNCIL,01/04/2016,PROPERTY AND HIGHWAYS,NPOWER LIMITED,01/04/2016,128252.16,ELECTRICITY,V000989584
ROCHDALE BOROUGH COUNCIL,07/04/2016,EARLY HELP AND SCHOOLS,AXIOM EDUCATION (ROCHDALE) LIMITED,07/04/2016,1908.67,MISC CHARGES,V000989627
ROCHDALE BOROUGH COUNCIL,07/04/2016,EARLY HELP AND SCHOOLS,AXIOM EDUCATION (ROCHDALE) LIMITED,07/04/2016,22719.28,MEALS,V000989628
ROCHDALE BOROUGH COUNCIL,04/04/2016,EARLY HELP AND SCHOOLS,DERBYSHIRE COUNTY COUNCIL,04/04/2016,727.08,OTHER EST - SEN PROVISION,V000989641
ROCHDALE BOROUGH COUNCIL,08/04/2016,EARLY HELP AND SCHOOLS,EARLY INTERVENTION FOUNDATION,08/04/2016,567,TRAINING,V000989643
ROCHDALE BOROUGH COUNCIL,04/04/2016,EARLY HELP AND SCHOOLS,ROCHDALE SIXTH FORM COLLEGE,04/04/2016,6007.46,OTHER EST - SEN PROVISION,V000989757
ROCHDALE BOROUGH COUNCIL,04/04/2016,EARLY HELP AND SCHOOLS,ROCHDALE SIXTH FORM COLLEGE,04/04/2016,6007.46,OTHER EST - SEN PROVISION,V000989758
ROCHDALE BOROUGH COUNCIL,13/04/2016,NEIGHBOURHOODS AND ENVIRONMENT,OPS ENVIRONMENTAL SERVICES,13/04/2016,850,EQUIPMENT - GENERAL,V000989781
ROCHDALE BOROUGH COUNCIL,01/04/2016,FINANCE SERVICES,ROSSENDALES,01/04/2016,546.85,INPUT VAT -  ADJUSTMENTS,V000989845
ROCHDALE BOROUGH COUNCIL,01/04/2016,PROPERTY AND HIGHWAYS,ROCHDALE TRAINING ASSOCIATION LIMITED,01/04/2016,765,TRAINING,V000989859
ROCHDALE BOROUGH COUNCIL,04/04/2016,CHILDREN�S SOCIAL CARE,ADOPTION MATTERS NORTHWEST,04/04/2016,750,ADOPTION PAYMENTS,V000989913
ROCHDALE BOROUGH COUNCIL,04/04/2016,CHILDREN�S SOCIAL CARE,ADOPTION MATTERS NORTHWEST,04/04/2016,750,ADOPTION PAYMENTS,V000989914
ROCHDALE BOROUGH COUNCIL,04/04/2016,CHILDREN�S SOCIAL CARE,ADOPTION MATTERS NORTHWEST,04/04/2016,3582,ADOPTION PAYMENTS,V000989915
ROCHDALE BOROUGH COUNCIL,04/04/2016,CHILDREN�S SOCIAL CARE,ADOPTION MATTERS NORTHWEST,04/04/2016,750,ADOPTION PAYMENTS,V000989916
ROCHDALE BOROUGH COUNCIL,01/04/2016,NEIGHBOURHOODS AND ENVIRONMENT,HENRY ALTY LIMITED,01/04/2016,578.1,EQUIPMENT - GENERAL,V000989984
ROCHDALE BOROUGH COUNCIL,04/04/2016,CHILDREN�S SOCIAL CARE,THE UNIVERSITY OF SALFORD,04/04/2016,870,TRAINING,V000990016
ROCHDALE BOROUGH COUNCIL,15/04/2016,CHILDREN�S SOCIAL CARE,THE FOSTERING NETWORK,15/04/2016,790.4,FEES / COMMISSION,V000990047
ROCHDALE BOROUGH COUNCIL,15/04/2016,CHILDREN�S SOCIAL CARE,THE FOSTERING NETWORK,15/04/2016,991.59,FEES / COMMISSION,V000990047
ROCHDALE BOROUGH COUNCIL,07/04/2016,NEIGHBOURHOODS AND ENVIRONMENT,ROCHDALE DEVELOPMENT AGENCY,07/04/2016,900,SUMMON COSTS,V000990081
ROCHDALE BOROUGH COUNCIL,11/04/2016,PUBLIC HEALTH,GEORGE HOUSE TRUST,11/04/2016,1414.51,PH BUSINESS CASES,V000990107
ROCHDALE BOROUGH COUNCIL,07/04/2016,EARLY HELP AND SCHOOLS,BRITISH YOUTH COUNCIL,07/04/2016,500,PROJECTS,V000990136
ROCHDALE BOROUGH COUNCIL,15/04/2016,LEARNING DIS & MENTAL HEALTH,PETRUS,15/04/2016,23250,SERVICE LEVEL AGREEMENTS,V000990212
ROCHDALE BOROUGH COUNCIL,15/04/2016,LEARNING DIS & MENTAL HEALTH,PETRUS,15/04/2016,23250,SERVICE LEVEL AGREEMENTS,V000990213
ROCHDALE BOROUGH COUNCIL,14/04/2016,PHYSICAL DIS & OLDER PEOPLE,HOPWOOD HALL COLLEGE,14/04/2016,700,ROOM HIRE,V000990275
ROCHDALE BOROUGH COUNCIL,14/04/2016,PHYSICAL DIS & OLDER PEOPLE,HOPWOOD HALL COLLEGE,14/04/2016,600,ROOM HIRE,V000990276
ROCHDALE BOROUGH COUNCIL,13/04/2016,ECONOMY DIRECTORATE,STOCKPORT METROPOLITAN BOROUGH COUNCIL,13/04/2016,20000,ACTIVITIES,V000990286
ROCHDALE BOROUGH COUNCIL,13/04/2016,ECONOMY DIRECTORATE,STOCKPORT METROPOLITAN BOROUGH COUNCIL,13/04/2016,56250,ACTIVITIES,V000990286
ROCHDALE BOROUGH COUNCIL,14/04/2016,EARLY HELP AND SCHOOLS,COSY TOES PRIVATE DAY NURSERY,14/04/2016,945,ACTIVITIES,V000990293
ROCHDALE BOROUGH COUNCIL,15/04/2016,EARLY HELP AND SCHOOLS,ROCHDALE TRAINING ASSOCIATION LIMITED,15/04/2016,600,SPECIFIED MAINTENANCE,V000990312
ROCHDALE BOROUGH COUNCIL,04/04/2016,NEIGHBOURHOODS AND ENVIRONMENT,M N PROPERTY CONSULTANTS,04/04/2016,24212,INSURANCE,V000990320
ROCHDALE BOROUGH COUNCIL,14/04/2016,EARLY HELP AND SCHOOLS,DSG RETAIL LIMITED,14/04/2016,749.98,EQUIPMENT - GENERAL,V000990337
ROCHDALE BOROUGH COUNCIL,15/04/2016,ECONOMY DIRECTORATE,ROCHDALE TRAINING ASSOCIATION LIMITED,15/04/2016,600,BASIC SALARIES,V000990343
ROCHDALE BOROUGH COUNCIL,15/04/2016,ECONOMY DIRECTORATE,ROCHDALE TRAINING ASSOCIATION LIMITED,15/04/2016,4226.88,BASIC SALARIES,V000990343
ROCHDALE BOROUGH COUNCIL,14/04/2016,EARLY HELP AND SCHOOLS,CALDERDALE METROPOLITAN BOROUGH COUNCIL,14/04/2016,7380,OTHER EST - SEN PROVISION,V000990358
ROCHDALE BOROUGH COUNCIL,08/04/2016,EARLY HELP AND SCHOOLS,AXIOM EDUCATION (ROCHDALE) LIMITED,08/04/2016,4292.58,IMPROVEMENTS-MODERNISATION,V000990468
ROCHDALE BOROUGH COUNCIL,04/04/2016,CHILDREN�S SOCIAL CARE,CARE TODAY CHILDRENS SERVICES,04/04/2016,11600,EBD (EMOT & BEHAV DIFF) PLACEMENTS,V000990469
ROCHDALE BOROUGH COUNCIL,04/04/2016,CHILDREN�S SOCIAL CARE,CARE TODAY CHILDRENS SERVICES,04/04/2016,9908.64,EBD (EMOT & BEHAV DIFF) PLACEMENTS,V000990470
ROCHDALE BOROUGH COUNCIL,04/04/2016,CHILDREN�S SOCIAL CARE,CARE TODAY CHILDRENS SERVICES,04/04/2016,2064.3,EBD (EMOT & BEHAV DIFF) PLACEMENTS,V000990471
ROCHDALE BOROUGH COUNCIL,04/04/2016,CHILDREN�S SOCIAL CARE,CARITAS CARE LTD,04/04/2016,2071.43,FOSTER PARENTS BASIC ALLOWANCE,V000990472
ROCHDALE BOROUGH COUNCIL,01/04/2016,PUBLIC HEALTH,VIDERE LTD,01/04/2016,526,ACTIVITIES,V000990577
ROCHDALE BOROUGH COUNCIL,11/04/2016,EARLY HELP AND SCHOOLS,REDACTED - PERSONAL DATA,11/04/2016,1179.1,RESIDENTIAL RESPITE - CHILDRENS SERVICES,V000990584
ROCHDALE BOROUGH COUNCIL,14/04/2016,FINANCE SERVICES,CAPITA BUSINESS SERVICES LIMITED,14/04/2016,5640.05,SOFTWARE,V000990684
ROCHDALE BOROUGH COUNCIL,08/04/2016,FINANCE SERVICES,ROSSENDALES,08/04/2016,740.76,INPUT VAT -  ADJUSTMENTS,V000990742
ROCHDALE BOROUGH COUNCIL,15/04/2016,PHYSICAL DIS & OLDER PEOPLE,POLICE AND CRIME COMMISSIONER FOR GTR MANCHESTER,15/04/2016,5089.1,SUBSCRIPTIONS,V000990826
ROCHDALE BOROUGH COUNCIL,01/04/2016,EARLY HELP AND SCHOOLS,PENNINE CARE NHS,01/04/2016,4021,CONSULTANT FEES,V000990879
ROCHDALE BOROUGH COUNCIL,15/04/2016,EARLY HELP AND SCHOOLS,EDUFOCUS LIMITED,15/04/2016,4999,SUBSCRIPTIONS,V000990932
ROCHDALE BOROUGH COUNCIL,18/04/2016,PROPERTY AND HIGHWAYS,GMCA,18/04/2016,2000,ROADWORKS,V000990937
ROCHDALE BOROUGH COUNCIL,04/04/2016,NEIGHBOURHOODS AND ENVIRONMENT,GO PLANT LIMITED,04/04/2016,2415,TRANSACTIONS-EXPENDITURE,V000990938
ROCHDALE BOROUGH COUNCIL,15/04/2016,ECONOMY DIRECTORATE,ROCHDALE TRAINING ASSOCIATION LIMITED,15/04/2016,720,ACTIVITIES,V000991717
ROCHDALE BOROUGH COUNCIL,19/04/2016,EARLY HELP AND SCHOOLS,POSITIVE STEPS,19/04/2016,44100,EXTERNALLY MANAGED FUNDS,V000991719
ROCHDALE BOROUGH COUNCIL,19/04/2016,EARLY HELP AND SCHOOLS,DEEPLISH ACADEMY,19/04/2016,3998.97,RENTS,V000991724
ROCHDALE BOROUGH COUNCIL,14/04/2016,NEIGHBOURHOODS AND ENVIRONMENT,ROCHDALE BANGLADESHI PARTNERSHIP PROJECT,14/04/2016,2200,EVENTS,V000991726
ROCHDALE BOROUGH COUNCIL,07/04/2016,NEIGHBOURHOODS AND ENVIRONMENT,STOCKPORT METROPOLITAN BOROUGH COUNCIL,07/04/2016,550,REFERENCE BOOKS/NEWSPAPERS/PERIODICALS,V000991754
ROCHDALE BOROUGH COUNCIL,15/04/2016,FINANCE SERVICES,REDACTED - PERSONAL DATA,15/04/2016,10667,TRANSACTIONS-EXPENDITURE,V000991793
ROCHDALE BOROUGH COUNCIL,12/04/2016,EARLY HELP AND SCHOOLS,INSPIREDSPACES ROCHDALE PROJECT CO1 LTD,12/04/2016,381662.99,IMPROVEMENTS-MODERNISATION,V000991815
ROCHDALE BOROUGH COUNCIL,19/04/2016,FINANCE SERVICES,LINK4LIFE (CHARITY),19/04/2016,1183.5,ROOM HIRE,V000991819
ROCHDALE BOROUGH COUNCIL,06/04/2016,NEIGHBOURHOODS AND ENVIRONMENT,CP DAVIDSON & SONS LTD,06/04/2016,2730,TRANSACTIONS-EXPENDITURE,V000991832
ROCHDALE BOROUGH COUNCIL,11/04/2016,EARLY HELP AND SCHOOLS,VH PSYCHOLOGY SERVICES,11/04/2016,1400,BASIC SALARIES,V000991835
ROCHDALE BOROUGH COUNCIL,08/04/2016,NEIGHBOURHOODS AND ENVIRONMENT,THE PENNINE ACUTE HOSPITALS NHS TRUST,08/04/2016,3538.83,CONTRACTED SERVICES,V000991854
ROCHDALE BOROUGH COUNCIL,08/04/2016,NEIGHBOURHOODS AND ENVIRONMENT,SPRINGFIELD CITROEN GATESHEAD,08/04/2016,-4917.95,PURCHASE OF VEHICLES,V000991897
ROCHDALE BOROUGH COUNCIL,08/04/2016,NEIGHBOURHOODS AND ENVIRONMENT,SPRINGFIELD CITROEN GATESHEAD,08/04/2016,12647,PURCHASE OF VEHICLES,V000991897
ROCHDALE BOROUGH COUNCIL,15/04/2016,FINANCE SERVICES,TEAM NETSOL LTD,15/04/2016,20000,SOFTWARE,V000991914
ROCHDALE BOROUGH COUNCIL,14/04/2016,EARLY HELP AND SCHOOLS,CORONA ENERGY RETAIL 4 LIMITED,14/04/2016,634.18,GAS,V000991926
ROCHDALE BOROUGH COUNCIL,14/04/2016,ECONOMY DIRECTORATE,CORONA ENERGY RETAIL 4 LIMITED,14/04/2016,2711.22,GAS,V000991933
ROCHDALE BOROUGH COUNCIL,12/04/2016,PROPERTY AND HIGHWAYS,TRANSPORT FOR GREATER MANCHESTER,12/04/2016,5500,ROADWORKS,V000991936
ROCHDALE BOROUGH COUNCIL,14/04/2016,ECONOMY DIRECTORATE,CORONA ENERGY RETAIL 4 LIMITED,14/04/2016,540.56,GAS,V000991937
ROCHDALE BOROUGH COUNCIL,14/04/2016,NEIGHBOURHOODS AND ENVIRONMENT,CORONA ENERGY RETAIL 4 LIMITED,14/04/2016,3486.79,GAS,V000991938
ROCHDALE BOROUGH COUNCIL,14/04/2016,NEIGHBOURHOODS AND ENVIRONMENT,CORONA ENERGY RETAIL 4 LIMITED,14/04/2016,4730.33,GAS,V000991939
ROCHDALE BOROUGH COUNCIL,19/04/2016,FINANCE SERVICES,CAPITA BUSINESS SERVICES LIMITED,19/04/2016,1330,SOFTWARE,V000991957
ROCHDALE BOROUGH COUNCIL,11/04/2016,EARLY HELP AND SCHOOLS,VH PSYCHOLOGY SERVICES,11/04/2016,2400,BASIC SALARIES,V000991966
ROCHDALE BOROUGH COUNCIL,13/04/2016,NEIGHBOURHOODS AND ENVIRONMENT,CARDIFF UNIVERSITY,13/04/2016,500,OTHER MEDICAL EXPENSES,V000992139
ROCHDALE BOROUGH COUNCIL,08/04/2016,NEIGHBOURHOODS AND ENVIRONMENT,CARDIFF UNIVERSITY,08/04/2016,500,OTHER MEDICAL EXPENSES,V000992140
ROCHDALE BOROUGH COUNCIL,08/04/2016,NEIGHBOURHOODS AND ENVIRONMENT,CARDIFF UNIVERSITY,08/04/2016,500,OTHER MEDICAL EXPENSES,V000992142
ROCHDALE BOROUGH COUNCIL,13/04/2016,NEIGHBOURHOODS AND ENVIRONMENT,CARDIFF UNIVERSITY,13/04/2016,500,OTHER MEDICAL EXPENSES,V000992144
ROCHDALE BOROUGH COUNCIL,07/04/2016,NEIGHBOURHOODS AND ENVIRONMENT,REDACTED - PERSONAL DATA,07/04/2016,1281,WITNESSES EXPENSES,V000992147
ROCHDALE BOROUGH COUNCIL,14/04/2016,EARLY HELP AND SCHOOLS,CORONA ENERGY RETAIL 4 LIMITED,14/04/2016,653.53,WATER CHARGES,V000992195
ROCHDALE BOROUGH COUNCIL,08/04/2016,NEIGHBOURHOODS AND ENVIRONMENT,CHILDSCAPE LIMITED,08/04/2016,2813,ENVIRONMENTAL WORKS LANDSCAPE,V000992216
ROCHDALE BOROUGH COUNCIL,01/04/2016,NEIGHBOURHOODS AND ENVIRONMENT,GROUNDWORK LANDSCAPES LIMITED,01/04/2016,1945,IMPROVEMENTS-MODERNISATION,V000992254
ROCHDALE BOROUGH COUNCIL,11/04/2016,EARLY HELP AND SCHOOLS,BT BUSINESS DIRECT,11/04/2016,2746.5,EQUIPMENT - GENERAL,V000992259
ROCHDALE BOROUGH COUNCIL,14/04/2016,FINANCE SERVICES,CAPITA BUSINESS SERVICES LIMITED,14/04/2016,15823.43,SOFTWARE,V000992277
ROCHDALE BOROUGH COUNCIL,14/04/2016,FINANCE SERVICES,CAPITA BUSINESS SERVICES LIMITED,14/04/2016,50000,SOFTWARE,V000992277
ROCHDALE BOROUGH COUNCIL,12/04/2016,LEARNING DIS & MENTAL HEALTH,G4S CASH SOLUTIONS UK LIMITED,12/04/2016,-544.21,SECURITY,V000992335
ROCHDALE BOROUGH COUNCIL,21/04/2016,EARLY HELP AND SCHOOLS,OLDHAM METROPOLITAN BOROUGH COUNCIL,21/04/2016,3395,OTHER EST - SEN PROVISION,V000992360
ROCHDALE BOROUGH COUNCIL,08/04/2016,NEIGHBOURHOODS AND ENVIRONMENT,SPRINGFIELD CITROEN GATESHEAD,08/04/2016,-4917.95,PURCHASE OF VEHICLES,V000992393
ROCHDALE BOROUGH COUNCIL,08/04/2016,NEIGHBOURHOODS AND ENVIRONMENT,SPRINGFIELD CITROEN GATESHEAD,08/04/2016,12647,PURCHASE OF VEHICLES,V000992393
ROCHDALE BOROUGH COUNCIL,01/04/2016,EARLY HELP AND SCHOOLS,BROWNS BOOK FOR STUDENTS,01/04/2016,1090.39,ACTIVITIES,V000992416
ROCHDALE BOROUGH COUNCIL,07/04/2016,NEIGHBOURHOODS AND ENVIRONMENT,AGILISYS LIMITED,07/04/2016,76459.43,AGILISYS CONTRACT,V000992434
ROCHDALE BOROUGH COUNCIL,07/04/2016,NEIGHBOURHOODS AND ENVIRONMENT,AGILISYS LIMITED,07/04/2016,3946.12,AGILISYS CONTRACT,V000992435
ROCHDALE BOROUGH COUNCIL,07/04/2016,NEIGHBOURHOODS AND ENVIRONMENT,AGILISYS LIMITED,07/04/2016,3946.13,AGILISYS CONTRACT,V000992435
ROCHDALE BOROUGH COUNCIL,07/04/2016,NEIGHBOURHOODS AND ENVIRONMENT,AGILISYS LIMITED,07/04/2016,106313.47,AGILISYS CONTRACT,V000992436
ROCHDALE BOROUGH COUNCIL,13/04/2016,EARLY HELP AND SCHOOLS,THE UNIVERSITY OF MANCHESTER,13/04/2016,3804,BASIC SALARIES,V000992472
ROCHDALE BOROUGH COUNCIL,01/04/2016,NEIGHBOURHOODS AND ENVIRONMENT,MRM STREET FURNITURE LTD,01/04/2016,10125,EQUIPMENT - GENERAL,V000992491
ROCHDALE BOROUGH COUNCIL,01/04/2016,PUBLIC HEALTH,OFFICE DEPOT UK LIMITED,01/04/2016,627.2,PRINTING & STATIONERY,V000992506
ROCHDALE BOROUGH COUNCIL,01/04/2016,CHILDREN�S SOCIAL CARE,POSSABILITIES CIC TRADING,01/04/2016,928,YOUNG PEOPLES RENTS,V000992517
ROCHDALE BOROUGH COUNCIL,01/04/2016,CHILDREN�S SOCIAL CARE,POSSABILITIES CIC TRADING,01/04/2016,928,YOUNG PEOPLES RENTS,V000992518
ROCHDALE BOROUGH COUNCIL,01/04/2016,CHILDREN�S SOCIAL CARE,POSSABILITIES CIC TRADING,01/04/2016,760,FOSTER PARENTS BASIC ALLOWANCE,V000992521
ROCHDALE BOROUGH COUNCIL,01/04/2016,CHILDREN�S SOCIAL CARE,POSSABILITIES CIC TRADING,01/04/2016,928,YOUNG PEOPLES RENTS,V000992522
ROCHDALE BOROUGH COUNCIL,15/04/2016,CHILDREN�S SOCIAL CARE,OLDHAM METROPOLITAN BOROUGH COUNCIL,15/04/2016,1620,FEES / COMMISSION,V000992639
ROCHDALE BOROUGH COUNCIL,08/04/2016,PUBLIC HEALTH,CHESHIRE AND GREATER MANCHESTER CRC,08/04/2016,8229.75,PH BUSINESS CASES,V000992678
ROCHDALE BOROUGH COUNCIL,01/04/2016,EARLY HELP AND SCHOOLS,BURY MBC,01/04/2016,14337.51,OTHER EST - SEN PROVISION,V000992719
ROCHDALE BOROUGH COUNCIL,01/04/2016,EARLY HELP AND SCHOOLS,BURY MBC,01/04/2016,30514.35,OTHER EST - SEN PROVISION,V000992720
ROCHDALE BOROUGH COUNCIL,04/04/2016,EARLY HELP AND SCHOOLS,CUMBERLAND SCHOOL,04/04/2016,1360,TRAVELLING GENERAL EXPENSES,V000992724
ROCHDALE BOROUGH COUNCIL,04/04/2016,EARLY HELP AND SCHOOLS,SMARTBOX ASSISTIVE TECHNOLOGY LTD,04/04/2016,2560,EQUIPMENT - GENERAL,V000992868
ROCHDALE BOROUGH COUNCIL,04/04/2016,NEIGHBOURHOODS AND ENVIRONMENT,ASTRA ALARMS SYSTEMS LTD,04/04/2016,7920,MAINTENANCE,V000993309
ROCHDALE BOROUGH COUNCIL,11/04/2016,EARLY HELP AND SCHOOLS,VH PSYCHOLOGY SERVICES,11/04/2016,3200,BASIC SALARIES,V000993310
ROCHDALE BOROUGH COUNCIL,07/04/2016,EARLY HELP AND SCHOOLS,PENNINE CARE NHS,07/04/2016,19894,TEACHERS - BASIC,V000993313
ROCHDALE BOROUGH COUNCIL,07/04/2016,EARLY HELP AND SCHOOLS,PENNINE CARE NHS,07/04/2016,2684,TEACHERS - BASIC,V000993314
ROCHDALE BOROUGH COUNCIL,14/04/2016,EARLY HELP AND SCHOOLS,PENNINE CARE NHS,14/04/2016,4021,CONSULTANT FEES,V000993315
ROCHDALE BOROUGH COUNCIL,01/04/2016,CHILDREN�S SOCIAL CARE,REDACTED - PERSONAL DATA,01/04/2016,3200,CONSULTANT FEES,V000993316
ROCHDALE BOROUGH COUNCIL,22/04/2016,FINANCE SERVICES,BARNSLEY METROPOLITAN BOROUGH COUNCIL,22/04/2016,3000,SUBSCRIPTIONS,V000993334
ROCHDALE BOROUGH COUNCIL,01/04/2016,EARLY HELP AND SCHOOLS,PJS MUSIC SERVICES,01/04/2016,2379,EQUIPMENT - GENERAL,V000993336
ROCHDALE BOROUGH COUNCIL,01/04/2016,CHILDREN�S SOCIAL CARE,CLASSIC FOSTER CARE LIMITED,01/04/2016,1539,FOSTER PARENTS BASIC ALLOWANCE,V000993342
ROCHDALE BOROUGH COUNCIL,01/04/2016,CHILDREN�S SOCIAL CARE,CLASSIC FOSTER CARE LIMITED,01/04/2016,3020,FOSTER PARENTS BASIC ALLOWANCE,V000993346
ROCHDALE BOROUGH COUNCIL,14/04/2016,NEIGHBOURHOODS AND ENVIRONMENT,CORONA ENERGY RETAIL 4 LIMITED,14/04/2016,916.86,GAS,V000993382
ROCHDALE BOROUGH COUNCIL,01/04/2016,PROPERTY AND HIGHWAYS,WILDE CONSULTING ENGINEERS,01/04/2016,4022,ROADWORKS,V000993406
ROCHDALE BOROUGH COUNCIL,14/04/2016,NEIGHBOURHOODS AND ENVIRONMENT,CORONA ENERGY RETAIL 4 LIMITED,14/04/2016,622.67,GAS,V000993419
ROCHDALE BOROUGH COUNCIL,01/04/2016,NEIGHBOURHOODS AND ENVIRONMENT,PROFILE SECURITY SERVICES LIMITED,01/04/2016,-3687.4,TRAINING,V000993423
ROCHDALE BOROUGH COUNCIL,14/04/2016,NEIGHBOURHOODS AND ENVIRONMENT,CORONA ENERGY RETAIL 4 LIMITED,14/04/2016,1425.24,GAS,V000993428
ROCHDALE BOROUGH COUNCIL,01/04/2016,EARLY HELP AND SCHOOLS,NEWMARK CARE LTD,01/04/2016,528,HOME CARE - CHILDRENS SERVICES,V000993438
ROCHDALE BOROUGH COUNCIL,14/04/2016,NEIGHBOURHOODS AND ENVIRONMENT,CORONA ENERGY RETAIL 4 LIMITED,14/04/2016,605.89,GAS,V000993441
ROCHDALE BOROUGH COUNCIL,04/04/2016,PUBLIC HEALTH,WM MORRISON SUPERMARKETS PLC,04/04/2016,938.11,PH LCS PAYMENTS,V000993443
ROCHDALE BOROUGH COUNCIL,14/04/2016,NEIGHBOURHOODS AND ENVIRONMENT,CORONA ENERGY RETAIL 4 LIMITED,14/04/2016,739.08,GAS,V000993462
ROCHDALE BOROUGH COUNCIL,01/04/2016,PROPERTY AND HIGHWAYS,J C MILLS & SON LIMITED,01/04/2016,10999,IMPROVEMENTS-MODERNISATION,V000993592
ROCHDALE BOROUGH COUNCIL,04/04/2016,PROPERTY AND HIGHWAYS,F W SHERRATT LTD,04/04/2016,9630.14,IMPROVEMENTS-MODERNISATION,V000993613
ROCHDALE BOROUGH COUNCIL,14/04/2016,ECONOMY DIRECTORATE,CORONA ENERGY RETAIL 4 LIMITED,14/04/2016,970.21,GAS,V000993616
ROCHDALE BOROUGH COUNCIL,01/04/2016,NEIGHBOURHOODS AND ENVIRONMENT,J A CRYER EXCAVATION & GROUNDWORK CONTRACTORS LTD,01/04/2016,510,IMPROVEMENTS-MODERNISATION,V000993724
ROCHDALE BOROUGH COUNCIL,01/04/2016,NEIGHBOURHOODS AND ENVIRONMENT,J A CRYER EXCAVATION & GROUNDWORK CONTRACTORS LTD,01/04/2016,1697.9,IMPROVEMENTS-MODERNISATION,V000993725
ROCHDALE BOROUGH COUNCIL,04/04/2016,NEIGHBOURHOODS AND ENVIRONMENT,J A CRYER EXCAVATION & GROUNDWORK CONTRACTORS LTD,04/04/2016,2143.5,IMPROVEMENTS-MODERNISATION,V000993728
ROCHDALE BOROUGH COUNCIL,01/04/2016,LEARNING DIS & MENTAL HEALTH,CORONA ENERGY RETAIL 4 LIMITED,01/04/2016,1223.51,GAS,V000993765
ROCHDALE BOROUGH COUNCIL,01/04/2016,CHILDREN�S SOCIAL CARE,CORONA ENERGY RETAIL 4 LIMITED,01/04/2016,-749.89,GAS,V000993777
ROCHDALE BOROUGH COUNCIL,01/04/2016,NEIGHBOURHOODS AND ENVIRONMENT,CORONA ENERGY RETAIL 4 LIMITED,01/04/2016,-2235.26,GAS,V000993778
ROCHDALE BOROUGH COUNCIL,01/04/2016,NEIGHBOURHOODS AND ENVIRONMENT,CORONA ENERGY RETAIL 4 LIMITED,01/04/2016,-1696.2,GAS,V000993779
ROCHDALE BOROUGH COUNCIL,14/04/2016,PHYSICAL DIS & OLDER PEOPLE,CORONA ENERGY RETAIL 4 LIMITED,14/04/2016,587.97,GAS,V000993783
ROCHDALE BOROUGH COUNCIL,25/04/2016,EARLY HELP AND SCHOOLS,PENNINE CARE NHS,25/04/2016,2090,HEALTH AUTH - SERVICE LEVEL AGREEMENT,V000993800
ROCHDALE BOROUGH COUNCIL,01/04/2016,PUBLIC HEALTH,BRUEL & KJAER LIMITED,01/04/2016,753.8,EQUIPMENT - GENERAL,V000993804
ROCHDALE BOROUGH COUNCIL,06/04/2016,ECONOMY DIRECTORATE,ROBERT HOWARD LTD,06/04/2016,2000,OTHER SURVEYS,V000993808
ROCHDALE BOROUGH COUNCIL,01/04/2016,PHYSICAL DIS & OLDER PEOPLE,HEALTHWATCH ROCHDALE,01/04/2016,39016.89,SERVICE LEVEL AGREEMENTS,V000993814
ROCHDALE BOROUGH COUNCIL,04/04/2016,EARLY HELP AND SCHOOLS,LONSDALE EDUCATIONAL CONSULTING LTD,04/04/2016,1975,CURRICULUM DEVELOPMENT,V000993819
ROCHDALE BOROUGH COUNCIL,14/04/2016,EARLY HELP AND SCHOOLS,PENNINE CARE NHS,14/04/2016,4150.83,HEALTH AUTH - SERVICE LEVEL AGREEMENT,V000993822
ROCHDALE BOROUGH COUNCIL,06/04/2016,PUBLIC HEALTH,PURPLE TREE,06/04/2016,540,TRAINING,V000993823
ROCHDALE BOROUGH COUNCIL,01/04/2016,NEIGHBOURHOODS AND ENVIRONMENT,ROCHDALE MEMORIAL SERVICE,01/04/2016,5840,FIXTURES & FITTINGS,V000993824
ROCHDALE BOROUGH COUNCIL,04/04/2016,PROPERTY AND HIGHWAYS,KABERRY CONSTRUCTION LIMITED,04/04/2016,21381.86,MAINTENANCE,V000993838
ROCHDALE BOROUGH COUNCIL,04/04/2016,PROPERTY AND HIGHWAYS,PARKWOOD LEISURE,04/04/2016,4740.87,MISC CHARGES,V000993843
ROCHDALE BOROUGH COUNCIL,07/04/2016,PROPERTY AND HIGHWAYS,GROUNDWORK LANDSCAPES LIMITED,07/04/2016,2151.75,IMPROVEMENTS-MODERNISATION,V000993846
ROCHDALE BOROUGH COUNCIL,08/04/2016,ECONOMY DIRECTORATE,TALKTALK BUSINESS,08/04/2016,552,SUPPLIES AND SERVICES PROVISION,V000993853
ROCHDALE BOROUGH COUNCIL,06/04/2016,PROPERTY AND HIGHWAYS,MARCHBRIDGE BUILDERS LIMITED,06/04/2016,3135,IMPROVEMENTS-MODERNISATION,V000993884
ROCHDALE BOROUGH COUNCIL,06/04/2016,NEIGHBOURHOODS AND ENVIRONMENT,MARCHBRIDGE BUILDERS LIMITED,06/04/2016,5150,ENVIRONMENTAL WORKS LANDSCAPE,V000993884
ROCHDALE BOROUGH COUNCIL,06/04/2016,PROPERTY AND HIGHWAYS,MARCHBRIDGE BUILDERS LIMITED,06/04/2016,14850,IMPROVEMENTS-MODERNISATION,V000993886
ROCHDALE BOROUGH COUNCIL,06/04/2016,PROPERTY AND HIGHWAYS,F W SHERRATT LTD,06/04/2016,8500,MAINTENANCE,V000993892
ROCHDALE BOROUGH COUNCIL,06/04/2016,PROPERTY AND HIGHWAYS,F W SHERRATT LTD,06/04/2016,1225,MAINTENANCE,V000993893
ROCHDALE BOROUGH COUNCIL,06/04/2016,PROPERTY AND HIGHWAYS,F W SHERRATT LTD,06/04/2016,5668.5,MAINTENANCE,V000993894
ROCHDALE BOROUGH COUNCIL,01/04/2016,PROPERTY AND HIGHWAYS,F W SHERRATT LTD,01/04/2016,2835,MAINTENANCE,V000993895
ROCHDALE BOROUGH COUNCIL,06/04/2016,PROPERTY AND HIGHWAYS,F W SHERRATT LTD,06/04/2016,3609.29,MAINTENANCE,V000993896
ROCHDALE BOROUGH COUNCIL,01/04/2016,EARLY HELP AND SCHOOLS,I BRANDED LTD,01/04/2016,1114.1,PRINTING & STATIONERY,V000993898
ROCHDALE BOROUGH COUNCIL,07/04/2016,PROPERTY AND HIGHWAYS,J GREENWOOD (BUILDERS) LIMITED,07/04/2016,6607.44,TRANSACTIONS-EXPENDITURE,V000993901
ROCHDALE BOROUGH COUNCIL,07/04/2016,PROPERTY AND HIGHWAYS,J GREENWOOD (BUILDERS) LIMITED,07/04/2016,33037.2,IMPROVEMENTS-MODERNISATION,V000993901
ROCHDALE BOROUGH COUNCIL,07/04/2016,PROPERTY AND HIGHWAYS,GROUNDWORK LANDSCAPES LIMITED,07/04/2016,4857.71,TRANSACTIONS-EXPENDITURE,V000993902
ROCHDALE BOROUGH COUNCIL,07/04/2016,NEIGHBOURHOODS AND ENVIRONMENT,GROUNDWORK LANDSCAPES LIMITED,07/04/2016,24288.55,IMPROVEMENTS-MODERNISATION,V000993902
ROCHDALE BOROUGH COUNCIL,21/04/2016,NEIGHBOURHOODS AND ENVIRONMENT,CAPITA BUSINESS SERVICES LIMITED,21/04/2016,56882,SOFTWARE,V000993910
ROCHDALE BOROUGH COUNCIL,06/04/2016,NEIGHBOURHOODS AND ENVIRONMENT,GROUNDWORK LANDSCAPES LIMITED,06/04/2016,1950,FENCING,V000993911
ROCHDALE BOROUGH COUNCIL,04/04/2016,NEIGHBOURHOODS AND ENVIRONMENT,J A CRYER EXCAVATION & GROUNDWORK CONTRACTORS LTD,04/04/2016,2960,EQUIPMENT - GENERAL,V000993914
ROCHDALE BOROUGH COUNCIL,04/04/2016,NEIGHBOURHOODS AND ENVIRONMENT,J A CRYER EXCAVATION & GROUNDWORK CONTRACTORS LTD,04/04/2016,2850,EQUIPMENT - GENERAL,V000993915
ROCHDALE BOROUGH COUNCIL,04/04/2016,PHYSICAL DIS & OLDER PEOPLE,ROSS CARE,04/04/2016,22158.48,SERVICE LEVEL AGREEMENTS,V000993916
ROCHDALE BOROUGH COUNCIL,04/04/2016,PHYSICAL DIS & OLDER PEOPLE,ROSS CARE,04/04/2016,545.4,SERVICE LEVEL AGREEMENTS,V000993917
ROCHDALE BOROUGH COUNCIL,01/04/2016,PHYSICAL DIS & OLDER PEOPLE,AUTUMN UK LIMITED,01/04/2016,3360,IMPROVEMENTS-EXTENSIONS & ALTERATIONS,V000993934
ROCHDALE BOROUGH COUNCIL,06/04/2016,PHYSICAL DIS & OLDER PEOPLE,AUTUMN UK LIMITED,06/04/2016,3221.66,IMPROVEMENTS-EXTENSIONS & ALTERATIONS,V000993935
ROCHDALE BOROUGH COUNCIL,19/04/2016,NEIGHBOURHOODS AND ENVIRONMENT,CARDIFF UNIVERSITY,19/04/2016,500,OTHER MEDICAL EXPENSES,V000993936
ROCHDALE BOROUGH COUNCIL,19/04/2016,NEIGHBOURHOODS AND ENVIRONMENT,CARDIFF UNIVERSITY,19/04/2016,500,OTHER MEDICAL EXPENSES,V000993937
ROCHDALE BOROUGH COUNCIL,19/04/2016,NEIGHBOURHOODS AND ENVIRONMENT,CARDIFF UNIVERSITY,19/04/2016,500,OTHER MEDICAL EXPENSES,V000993938
ROCHDALE BOROUGH COUNCIL,19/04/2016,NEIGHBOURHOODS AND ENVIRONMENT,CARDIFF UNIVERSITY,19/04/2016,500,OTHER MEDICAL EXPENSES,V000993939
ROCHDALE BOROUGH COUNCIL,19/04/2016,NEIGHBOURHOODS AND ENVIRONMENT,CARDIFF UNIVERSITY,19/04/2016,500,OTHER MEDICAL EXPENSES,V000993940
ROCHDALE BOROUGH COUNCIL,19/04/2016,NEIGHBOURHOODS AND ENVIRONMENT,CARDIFF UNIVERSITY,19/04/2016,500,OTHER MEDICAL EXPENSES,V000993941
ROCHDALE BOROUGH COUNCIL,19/04/2016,NEIGHBOURHOODS AND ENVIRONMENT,CARDIFF UNIVERSITY,19/04/2016,500,OTHER MEDICAL EXPENSES,V000993942
ROCHDALE BOROUGH COUNCIL,07/04/2016,EARLY HELP AND SCHOOLS,CATHERINE HOW SCHOOL EFFECTIVENESS PARTNER SERVICE,07/04/2016,3600,CURRICULUM DEVELOPMENT,V000993944
ROCHDALE BOROUGH COUNCIL,14/04/2016,FINANCE SERVICES,CHESHIRE & WIRRAL PARTNERSHIP NHS FOUNDATION TRUST,14/04/2016,510,TRAINING,V000993945
ROCHDALE BOROUGH COUNCIL,01/04/2016,PHYSICAL DIS & OLDER PEOPLE,HIGH BARN CONSTRUCTION LIMITED,01/04/2016,10400,IMPROVEMENTS-EXTENSIONS & ALTERATIONS,V000993962
ROCHDALE BOROUGH COUNCIL,01/04/2016,PHYSICAL DIS & OLDER PEOPLE,HIGH BARN CONSTRUCTION LIMITED,01/04/2016,14471.73,IMPROVEMENTS-EXTENSIONS & ALTERATIONS,V000993962
ROCHDALE BOROUGH COUNCIL,01/04/2016,PHYSICAL DIS & OLDER PEOPLE,JPK PLUMBING & HEATING LTD,01/04/2016,822,TRANSACTIONS-EXPENDITURE,V000993966
ROCHDALE BOROUGH COUNCIL,01/04/2016,PHYSICAL DIS & OLDER PEOPLE,JPK PLUMBING & HEATING LTD,01/04/2016,1098,TRANSACTIONS-EXPENDITURE,V000993966
ROCHDALE BOROUGH COUNCIL,01/04/2016,PHYSICAL DIS & OLDER PEOPLE,BROADWAY BUILDING CONTRACTORS OLDHAM LTD,01/04/2016,1915,TRANSACTIONS-EXPENDITURE,V000993967
ROCHDALE BOROUGH COUNCIL,01/04/2016,PROPERTY AND HIGHWAYS,F W SHERRATT LTD,01/04/2016,53867.46,NEW CONSTRUCTION,V000993971
ROCHDALE BOROUGH COUNCIL,07/04/2016,PROPERTY AND HIGHWAYS,F W SHERRATT LTD,07/04/2016,11538.32,TRANSACTIONS-EXPENDITURE,V000993974
ROCHDALE BOROUGH COUNCIL,07/04/2016,PROPERTY AND HIGHWAYS,F W SHERRATT LTD,07/04/2016,57691.6,ROADWORKS,V000993974
ROCHDALE BOROUGH COUNCIL,06/04/2016,PHYSICAL DIS & OLDER PEOPLE,K P DODD CONSTRUCTION LIMITED,06/04/2016,4500,IMPROVEMENTS-EXTENSIONS & ALTERATIONS,V000993977
ROCHDALE BOROUGH COUNCIL,06/04/2016,PHYSICAL DIS & OLDER PEOPLE,K P DODD CONSTRUCTION LIMITED,06/04/2016,5000,IMPROVEMENTS-EXTENSIONS & ALTERATIONS,V000993979
ROCHDALE BOROUGH COUNCIL,06/04/2016,ECONOMY DIRECTORATE,J C MILLS & SON LIMITED,06/04/2016,580.8,REPAIRS & ALTS OF BUILDINGS,V000993989
ROCHDALE BOROUGH COUNCIL,04/04/2016,PHYSICAL DIS & OLDER PEOPLE,BROADWAY BUILDING CONTRACTORS OLDHAM LTD,04/04/2016,1500,TRANSACTIONS-EXPENDITURE,V000993995
ROCHDALE BOROUGH COUNCIL,19/04/2016,NEIGHBOURHOODS AND ENVIRONMENT,GTR MANCH WEST MENTAL HEALTH NHS FOUNDATION TRUST,19/04/2016,2208,CONTRACTED SERVICES,V000994025
ROCHDALE BOROUGH COUNCIL,19/04/2016,NEIGHBOURHOODS AND ENVIRONMENT,GTR MANCH WEST MENTAL HEALTH NHS FOUNDATION TRUST,19/04/2016,2484,CONTRACTED SERVICES,V000994026
ROCHDALE BOROUGH COUNCIL,19/04/2016,NEIGHBOURHOODS AND ENVIRONMENT,GTR MANCH WEST MENTAL HEALTH NHS FOUNDATION TRUST,19/04/2016,3036,CONTRACTED SERVICES,V000994027
ROCHDALE BOROUGH COUNCIL,18/04/2016,NEIGHBOURHOODS AND ENVIRONMENT,GTR MANCH WEST MENTAL HEALTH NHS FOUNDATION TRUST,18/04/2016,1932,CONTRACTED SERVICES,V000994028
ROCHDALE BOROUGH COUNCIL,01/04/2016,PHYSICAL DIS & OLDER PEOPLE,DR G A GADEKAR,01/04/2016,542.61,EXPENSES - GENERAL,V000994031
ROCHDALE BOROUGH COUNCIL,07/04/2016,PUBLIC HEALTH,OSBORNE RICHARDSON,07/04/2016,555.5,ACTIVITIES,V000994036
ROCHDALE BOROUGH COUNCIL,07/04/2016,PUBLIC HEALTH,OSBORNE RICHARDSON,07/04/2016,589.5,ACTIVITIES,V000994037
ROCHDALE BOROUGH COUNCIL,07/04/2016,NEIGHBOURHOODS AND ENVIRONMENT,CHAINSAW SCULPTURE LTD.,07/04/2016,2600,EQUIPMENT - GENERAL,V000994040
ROCHDALE BOROUGH COUNCIL,06/04/2016,EARLY HELP AND SCHOOLS,PJS MUSIC SERVICES,06/04/2016,612,EQUIPMENT - GENERAL,V000994053
ROCHDALE BOROUGH COUNCIL,06/04/2016,EARLY HELP AND SCHOOLS,PJS MUSIC SERVICES,06/04/2016,849,EQUIPMENT - GENERAL,V000994053
ROCHDALE BOROUGH COUNCIL,06/04/2016,EARLY HELP AND SCHOOLS,PJS MUSIC SERVICES,06/04/2016,539.73,EQUIPMENT - GENERAL,V000994054
ROCHDALE BOROUGH COUNCIL,06/04/2016,EARLY HELP AND SCHOOLS,PJS MUSIC SERVICES,06/04/2016,568.5,EQUIPMENT - GENERAL,V000994054
ROCHDALE BOROUGH COUNCIL,06/04/2016,EARLY HELP AND SCHOOLS,PJS MUSIC SERVICES,06/04/2016,675,EQUIPMENT - GENERAL,V000994054
ROCHDALE BOROUGH COUNCIL,06/04/2016,EARLY HELP AND SCHOOLS,PJS MUSIC SERVICES,06/04/2016,1070,EQUIPMENT - GENERAL,V000994054
ROCHDALE BOROUGH COUNCIL,07/04/2016,NEIGHBOURHOODS AND ENVIRONMENT,ISAAC BUTTERWORTH (IRONFOUNDERS) LIMITED,07/04/2016,9950,EQUIPMENT - GENERAL,V000994058
ROCHDALE BOROUGH COUNCIL,26/04/2016,FINANCE SERVICES,TRAFFORD MBC,26/04/2016,4164.89,ADVERTISING -STAFF,V000994060
ROCHDALE BOROUGH COUNCIL,26/04/2016,FINANCE SERVICES,TRAFFORD MBC,26/04/2016,7162.4,ADVERTISING -STAFF,V000994061
ROCHDALE BOROUGH COUNCIL,06/04/2016,FINANCE SERVICES,VENN GROUP LIMITED,06/04/2016,1767.12,AGENCY STAFF,V000994063
ROCHDALE BOROUGH COUNCIL,06/04/2016,FINANCE SERVICES,VENN GROUP LIMITED,06/04/2016,1620.43,AGENCY STAFF,V000994064
ROCHDALE BOROUGH COUNCIL,06/04/2016,NEIGHBOURHOODS AND ENVIRONMENT,TONROSE LTD,06/04/2016,523.9,EQUIPMENT - GENERAL,V000994149
ROCHDALE BOROUGH COUNCIL,06/04/2016,NEIGHBOURHOODS AND ENVIRONMENT,SENITOR RECRUITMENT,06/04/2016,1140,CAPITAL SALARIES,V000994150
ROCHDALE BOROUGH COUNCIL,04/04/2016,NEIGHBOURHOODS AND ENVIRONMENT,OPEN OBJECTS SOFTWARE LTD,04/04/2016,15750,SOFTWARE,V000994152
ROCHDALE BOROUGH COUNCIL,04/04/2016,NEIGHBOURHOODS AND ENVIRONMENT,SOFTCAT LTD,04/04/2016,753.19,CONSULTANT FEES,V000994160
ROCHDALE BOROUGH COUNCIL,20/04/2016,NEIGHBOURHOODS AND ENVIRONMENT,MANCHESTER METROPOLITAN UNIVERSITY,20/04/2016,25000,ACTIVITIES,V000994170
ROCHDALE BOROUGH COUNCIL,06/04/2016,EARLY HELP AND SCHOOLS,YVONNE LUCKIN LTD,06/04/2016,2551,BASIC SALARIES,V000994182
ROCHDALE BOROUGH COUNCIL,07/04/2016,EARLY HELP AND SCHOOLS,ROSS CARE,07/04/2016,18314.2,EQUIPMENT - GENERAL,V000994195
ROCHDALE BOROUGH COUNCIL,01/04/2016,NEIGHBOURHOODS AND ENVIRONMENT,SENITOR RECRUITMENT,01/04/2016,633.6,AGENCY STAFF,V000994203
ROCHDALE BOROUGH COUNCIL,06/04/2016,NEIGHBOURHOODS AND ENVIRONMENT,SENITOR RECRUITMENT,06/04/2016,2000,CAPITAL SALARIES,V000994206
ROCHDALE BOROUGH COUNCIL,01/04/2016,EARLY HELP AND SCHOOLS,HEALTH & SAFETY SOLUTIONS (NW) LTD,01/04/2016,800,TRAINING-QUALIFICATION,V000994218
ROCHDALE BOROUGH COUNCIL,14/04/2016,NEIGHBOURHOODS AND ENVIRONMENT,CAPITA BUSINESS SERVICES LIMITED,14/04/2016,35998.93,SOFTWARE,V000994225
ROCHDALE BOROUGH COUNCIL,14/04/2016,NEIGHBOURHOODS AND ENVIRONMENT,CAPITA BUSINESS SERVICES LIMITED,14/04/2016,65811.75,SOFTWARE,V000994225
ROCHDALE BOROUGH COUNCIL,25/04/2016,EARLY HELP AND SCHOOLS,STOCKPORT METROPOLITAN BOROUGH COUNCIL,25/04/2016,2135,OTHER EST - SEN PROVISION,V000994226
ROCHDALE BOROUGH COUNCIL,01/04/2016,FINANCE SERVICES,FORBES SOLICITORS,01/04/2016,3052.2,INPUT VAT -  ADJUSTMENTS,V000994227
ROCHDALE BOROUGH COUNCIL,04/04/2016,FINANCE SERVICES,FORBES SOLICITORS,04/04/2016,651.7,INPUT VAT -  ADJUSTMENTS,V000994228
ROCHDALE BOROUGH COUNCIL,15/04/2016,NEIGHBOURHOODS AND ENVIRONMENT,XN LEISURE SYSTEMS LTD,15/04/2016,8233,SOFTWARE,V000994229
ROCHDALE BOROUGH COUNCIL,15/04/2016,NEIGHBOURHOODS AND ENVIRONMENT,XN LEISURE SYSTEMS LTD,15/04/2016,13980.32,SOFTWARE,V000994229
ROCHDALE BOROUGH COUNCIL,01/04/2016,PHYSICAL DIS & OLDER PEOPLE,CLEGGSWORTH CARE HOME LIMITED,01/04/2016,518.02,RESIDENTIAL LONG TERM,V000994365
ROCHDALE BOROUGH COUNCIL,01/04/2016,PHYSICAL DIS & OLDER PEOPLE,FOUR SEASONS HEALTHCARE,01/04/2016,632.1,RESIDENTIAL LONG TERM,V000994366
ROCHDALE BOROUGH COUNCIL,01/04/2016,PHYSICAL DIS & OLDER PEOPLE,HALF ACRE HOUSE,01/04/2016,549.88,RESIDENTIAL LONG TERM,V000994367
ROCHDALE BOROUGH COUNCIL,01/04/2016,PHYSICAL DIS & OLDER PEOPLE,FOUR SEASONS HEALTHCARE,01/04/2016,802.48,NURSING LONG TERM,V000994368
ROCHDALE BOROUGH COUNCIL,01/04/2016,PHYSICAL DIS & OLDER PEOPLE,FOUR SEASONS HEALTHCARE,01/04/2016,609.26,RESIDENTIAL LONG TERM,V000994369
ROCHDALE BOROUGH COUNCIL,01/04/2016,PHYSICAL DIS & OLDER PEOPLE,CLEGGSWORTH CARE HOME LIMITED,01/04/2016,549.88,RESIDENTIAL LONG TERM,V000994370
ROCHDALE BOROUGH COUNCIL,01/04/2016,PHYSICAL DIS & OLDER PEOPLE,CLEGGSWORTH CARE HOME LIMITED,01/04/2016,542.2,RESIDENTIAL LONG TERM,V000994371
ROCHDALE BOROUGH COUNCIL,01/04/2016,PHYSICAL DIS & OLDER PEOPLE,FIELDHOUSE NURSING HOME,01/04/2016,549.88,RESIDENTIAL LONG TERM,V000994373
ROCHDALE BOROUGH COUNCIL,01/04/2016,PHYSICAL DIS & OLDER PEOPLE,ASHBOURNE NURSING HOME,01/04/2016,549.88,RESIDENTIAL LONG TERM,V000994374
ROCHDALE BOROUGH COUNCIL,01/04/2016,PHYSICAL DIS & OLDER PEOPLE,ASHBOURNE NURSING HOME,01/04/2016,531.76,RESIDENTIAL LONG TERM,V000994376
ROCHDALE BOROUGH COUNCIL,01/04/2016,PHYSICAL DIS & OLDER PEOPLE,HALF ACRE HOUSE,01/04/2016,549.88,RESIDENTIAL LONG TERM,V000994377
ROCHDALE BOROUGH COUNCIL,01/04/2016,PHYSICAL DIS & OLDER PEOPLE,CLEGGSWORTH CARE HOME LIMITED,01/04/2016,549.88,RESIDENTIAL LONG TERM,V000994378
ROCHDALE BOROUGH COUNCIL,01/04/2016,PHYSICAL DIS & OLDER PEOPLE,FOUR SEASONS HEALTHCARE,01/04/2016,620.3,RESIDENTIAL LONG TERM,V000994379
ROCHDALE BOROUGH COUNCIL,01/04/2016,PHYSICAL DIS & OLDER PEOPLE,FIELDHOUSE NURSING HOME,01/04/2016,549.88,RESIDENTIAL LONG TERM,V000994380
ROCHDALE BOROUGH COUNCIL,01/04/2016,PHYSICAL DIS & OLDER PEOPLE,FOUR SEASONS HEALTHCARE,01/04/2016,549.88,RESIDENTIAL LONG TERM,V000994383
ROCHDALE BOROUGH COUNCIL,01/04/2016,PHYSICAL DIS & OLDER PEOPLE,CLEGGSWORTH CARE HOME LIMITED,01/04/2016,543.94,RESIDENTIAL LONG TERM,V000994385
ROCHDALE BOROUGH COUNCIL,01/04/2016,PHYSICAL DIS & OLDER PEOPLE,HALF ACRE HOUSE,01/04/2016,549.88,RESIDENTIAL LONG TERM,V000994386
ROCHDALE BOROUGH COUNCIL,01/04/2016,PHYSICAL DIS & OLDER PEOPLE,FOUR SEASONS HEALTHCARE,01/04/2016,612.26,RESIDENTIAL LONG TERM,V000994387
ROCHDALE BOROUGH COUNCIL,01/04/2016,PHYSICAL DIS & OLDER PEOPLE,FIELDHOUSE NURSING HOME,01/04/2016,549.88,RESIDENTIAL LONG TERM,V000994388
ROCHDALE BOROUGH COUNCIL,01/04/2016,PHYSICAL DIS & OLDER PEOPLE,CLEGGSWORTH CARE HOME LIMITED,01/04/2016,549.88,RESIDENTIAL LONG TERM,V000994389
ROCHDALE BOROUGH COUNCIL,01/04/2016,LEARNING DIS & MENTAL HEALTH,FOUR SEASONS HEALTHCARE,01/04/2016,802.48,RESIDENTIAL LONG TERM,V000994391
ROCHDALE BOROUGH COUNCIL,01/04/2016,PHYSICAL DIS & OLDER PEOPLE,FIELDHOUSE NURSING HOME,01/04/2016,513.7,RESIDENTIAL LONG TERM,V000994392
ROCHDALE BOROUGH COUNCIL,01/04/2016,PHYSICAL DIS & OLDER PEOPLE,FIELDHOUSE NURSING HOME,01/04/2016,549.88,RESIDENTIAL LONG TERM,V000994393
ROCHDALE BOROUGH COUNCIL,01/04/2016,PHYSICAL DIS & OLDER PEOPLE,ASHBOURNE NURSING HOME,01/04/2016,529.8,RESIDENTIAL LONG TERM,V000994394
ROCHDALE BOROUGH COUNCIL,01/04/2016,PHYSICAL DIS & OLDER PEOPLE,CLEGGSWORTH CARE HOME LIMITED,01/04/2016,549.88,RESIDENTIAL LONG TERM,V000994395
ROCHDALE BOROUGH COUNCIL,01/04/2016,PHYSICAL DIS & OLDER PEOPLE,FOUR SEASONS HEALTHCARE,01/04/2016,632.1,RESIDENTIAL LONG TERM,V000994397
ROCHDALE BOROUGH COUNCIL,01/04/2016,PHYSICAL DIS & OLDER PEOPLE,FOUR SEASONS HEALTHCARE,01/04/2016,632.1,RESIDENTIAL LONG TERM,V000994398
ROCHDALE BOROUGH COUNCIL,01/04/2016,PHYSICAL DIS & OLDER PEOPLE,ASHBOURNE NURSING HOME,01/04/2016,514.6,RESIDENTIAL LONG TERM,V000994399
ROCHDALE BOROUGH COUNCIL,01/04/2016,PHYSICAL DIS & OLDER PEOPLE,ASHBOURNE NURSING HOME,01/04/2016,543.88,RESIDENTIAL LONG TERM,V000994400
ROCHDALE BOROUGH COUNCIL,01/04/2016,PHYSICAL DIS & OLDER PEOPLE,FOUR SEASONS HEALTHCARE,01/04/2016,564.48,NURSING LONG TERM,V000994401
ROCHDALE BOROUGH COUNCIL,01/04/2016,PHYSICAL DIS & OLDER PEOPLE,FIELDHOUSE NURSING HOME,01/04/2016,549.88,RESIDENTIAL LONG TERM,V000994403
ROCHDALE BOROUGH COUNCIL,01/04/2016,NEIGHBOURHOODS AND ENVIRONMENT,THE COOPERATIVE FUNERALCARE,01/04/2016,1216,UNDERTAKERS COSTS,V000994404
ROCHDALE BOROUGH COUNCIL,01/04/2016,PHYSICAL DIS & OLDER PEOPLE,FOUR SEASONS HEALTHCARE,01/04/2016,539.9,RESIDENTIAL LONG TERM,V000994406
ROCHDALE BOROUGH COUNCIL,01/04/2016,PHYSICAL DIS & OLDER PEOPLE,CLEGGSWORTH CARE HOME LIMITED,01/04/2016,549.88,RESIDENTIAL LONG TERM,V000994408
ROCHDALE BOROUGH COUNCIL,01/04/2016,PHYSICAL DIS & OLDER PEOPLE,FOUR SEASONS HEALTHCARE,01/04/2016,510,RESIDENTIAL LONG TERM,V000994409
ROCHDALE BOROUGH COUNCIL,01/04/2016,PHYSICAL DIS & OLDER PEOPLE,ASHBOURNE NURSING HOME,01/04/2016,511.78,RESIDENTIAL LONG TERM,V000994410
ROCHDALE BOROUGH COUNCIL,01/04/2016,PHYSICAL DIS & OLDER PEOPLE,CLEGGSWORTH CARE HOME LIMITED,01/04/2016,549.88,RESIDENTIAL LONG TERM,V000994411
ROCHDALE BOROUGH COUNCIL,01/04/2016,NEIGHBOURHOODS AND ENVIRONMENT,THE COOPERATIVE FUNERALCARE,01/04/2016,1064,UNDERTAKERS COSTS,V000994412
ROCHDALE BOROUGH COUNCIL,01/04/2016,PHYSICAL DIS & OLDER PEOPLE,FOUR SEASONS HEALTHCARE,01/04/2016,776.34,RESIDENTIAL LONG TERM,V000994414
ROCHDALE BOROUGH COUNCIL,01/04/2016,PHYSICAL DIS & OLDER PEOPLE,FOUR SEASONS HEALTHCARE,01/04/2016,536.3,RESIDENTIAL LONG TERM,V000994416
ROCHDALE BOROUGH COUNCIL,01/04/2016,PHYSICAL DIS & OLDER PEOPLE,FIELDHOUSE NURSING HOME,01/04/2016,549.88,RESIDENTIAL LONG TERM,V000994417
ROCHDALE BOROUGH COUNCIL,01/04/2016,PHYSICAL DIS & OLDER PEOPLE,FOUR SEASONS HEALTHCARE,01/04/2016,606.04,RESIDENTIAL LONG TERM,V000994420
ROCHDALE BOROUGH COUNCIL,01/04/2016,PHYSICAL DIS & OLDER PEOPLE,CLEGGSWORTH CARE HOME LIMITED,01/04/2016,541.76,RESIDENTIAL LONG TERM,V000994422
ROCHDALE BOROUGH COUNCIL,01/04/2016,PHYSICAL DIS & OLDER PEOPLE,FOUR SEASONS HEALTHCARE,01/04/2016,630.66,RESIDENTIAL LONG TERM,V000994423
ROCHDALE BOROUGH COUNCIL,01/04/2016,PHYSICAL DIS & OLDER PEOPLE,ASHBOURNE NURSING HOME,01/04/2016,533.12,NURSING LONG TERM,V000994425
ROCHDALE BOROUGH COUNCIL,01/04/2016,PHYSICAL DIS & OLDER PEOPLE,FIELDHOUSE NURSING HOME,01/04/2016,530.08,RESIDENTIAL LONG TERM,V000994427
ROCHDALE BOROUGH COUNCIL,01/04/2016,PHYSICAL DIS & OLDER PEOPLE,FOUR SEASONS HEALTHCARE,01/04/2016,541,RESIDENTIAL LONG TERM,V000994428
ROCHDALE BOROUGH COUNCIL,01/04/2016,PHYSICAL DIS & OLDER PEOPLE,FIELDHOUSE NURSING HOME,01/04/2016,529.6,RESIDENTIAL LONG TERM,V000994429
ROCHDALE BOROUGH COUNCIL,01/04/2016,PHYSICAL DIS & OLDER PEOPLE,FOUR SEASONS HEALTHCARE,01/04/2016,527.36,NURSING LONG TERM,V000994431
ROCHDALE BOROUGH COUNCIL,01/04/2016,PHYSICAL DIS & OLDER PEOPLE,FOUR SEASONS HEALTHCARE,01/04/2016,558.4,RESIDENTIAL LONG TERM,V000994433
ROCHDALE BOROUGH COUNCIL,01/04/2016,PHYSICAL DIS & OLDER PEOPLE,FOUR SEASONS HEALTHCARE,01/04/2016,632.1,RESIDENTIAL LONG TERM,V000994436
ROCHDALE BOROUGH COUNCIL,01/04/2016,PHYSICAL DIS & OLDER PEOPLE,FIELDHOUSE NURSING HOME,01/04/2016,551.88,RESIDENTIAL LONG TERM,V000994438
ROCHDALE BOROUGH COUNCIL,01/04/2016,NEIGHBOURHOODS AND ENVIRONMENT,THE COOPERATIVE FUNERALCARE,01/04/2016,988,UNDERTAKERS COSTS,V000994440
ROCHDALE BOROUGH COUNCIL,01/04/2016,PHYSICAL DIS & OLDER PEOPLE,HALF ACRE HOUSE,01/04/2016,523.2,RESIDENTIAL LONG TERM,V000994442
ROCHDALE BOROUGH COUNCIL,01/04/2016,PHYSICAL DIS & OLDER PEOPLE,ASHBOURNE NURSING HOME,01/04/2016,511.02,RESIDENTIAL LONG TERM,V000994443
ROCHDALE BOROUGH COUNCIL,01/04/2016,PHYSICAL DIS & OLDER PEOPLE,HALF ACRE HOUSE,01/04/2016,511.54,RESIDENTIAL LONG TERM,V000994444
ROCHDALE BOROUGH COUNCIL,01/04/2016,PHYSICAL DIS & OLDER PEOPLE,CLEGGSWORTH CARE HOME LIMITED,01/04/2016,549.88,RESIDENTIAL LONG TERM,V000994445
ROCHDALE BOROUGH COUNCIL,01/04/2016,PHYSICAL DIS & OLDER PEOPLE,FIELDHOUSE NURSING HOME,01/04/2016,559.88,RESIDENTIAL LONG TERM,V000994446
ROCHDALE BOROUGH COUNCIL,01/04/2016,PHYSICAL DIS & OLDER PEOPLE,FIELDHOUSE NURSING HOME,01/04/2016,563.88,RESIDENTIAL LONG TERM,V000994449
ROCHDALE BOROUGH COUNCIL,01/04/2016,PHYSICAL DIS & OLDER PEOPLE,FOUR SEASONS HEALTHCARE,01/04/2016,-632.1,RESIDENTIAL LONG TERM,V000994450
ROCHDALE BOROUGH COUNCIL,01/04/2016,PHYSICAL DIS & OLDER PEOPLE,FOUR SEASONS HEALTHCARE,01/04/2016,694.18,RESIDENTIAL LONG TERM,V000994451
ROCHDALE BOROUGH COUNCIL,01/04/2016,PHYSICAL DIS & OLDER PEOPLE,FOUR SEASONS HEALTHCARE,01/04/2016,884.7,RESIDENTIAL LONG TERM,V000994452
ROCHDALE BOROUGH COUNCIL,01/04/2016,NEIGHBOURHOODS AND ENVIRONMENT,THE COOPERATIVE FUNERALCARE,01/04/2016,1520,UNDERTAKERS COSTS,V000994454
ROCHDALE BOROUGH COUNCIL,01/04/2016,PHYSICAL DIS & OLDER PEOPLE,FOUR SEASONS HEALTHCARE,01/04/2016,549.88,NURSING LONG TERM,V000994457
ROCHDALE BOROUGH COUNCIL,07/04/2016,NEIGHBOURHOODS AND ENVIRONMENT,ROCHDALE HOUSING INITIATIVE,07/04/2016,10000,FEES -CONSTRUCTION CONVERSION RENOVATION,V000994463
ROCHDALE BOROUGH COUNCIL,06/04/2016,PHYSICAL DIS & OLDER PEOPLE,ST JOHNS PLUMBING HEATING & BATHROOMS LTD,06/04/2016,1752,IMPROVEMENTS-EXTENSIONS & ALTERATIONS,V000994468
ROCHDALE BOROUGH COUNCIL,06/04/2016,PHYSICAL DIS & OLDER PEOPLE,ST JOHNS PLUMBING HEATING & BATHROOMS LTD,06/04/2016,2628,IMPROVEMENTS-EXTENSIONS & ALTERATIONS,V000994468
ROCHDALE BOROUGH COUNCIL,04/04/2016,PHYSICAL DIS & OLDER PEOPLE,STANNAH LIFT SERVICES LTD,04/04/2016,4439,TRANSACTIONS-EXPENDITURE,V000994469
ROCHDALE BOROUGH COUNCIL,01/04/2016,PHYSICAL DIS & OLDER PEOPLE,NEWLINE ADAPTATIONS LTD,01/04/2016,1983.82,IMPROVEMENTS-EXTENSIONS & ALTERATIONS,V000994471
ROCHDALE BOROUGH COUNCIL,01/04/2016,PHYSICAL DIS & OLDER PEOPLE,NEWLINE ADAPTATIONS LTD,01/04/2016,11241.68,IMPROVEMENTS-EXTENSIONS & ALTERATIONS,V000994471
ROCHDALE BOROUGH COUNCIL,21/04/2016,EARLY HELP AND SCHOOLS,BOLTON MBC,21/04/2016,859.95,TRAVELLING GENERAL EXPENSES,V000994486
ROCHDALE BOROUGH COUNCIL,22/04/2016,EARLY HELP AND SCHOOLS,HOLY CROSS COLLEGE,22/04/2016,1420.56,OTHER EST - SEN PROVISION,V000994488
ROCHDALE BOROUGH COUNCIL,14/04/2016,EARLY HELP AND SCHOOLS,HOPWOOD HALL COLLEGE,14/04/2016,57671,OTHER EST - SEN PROVISION,V000994490
ROCHDALE BOROUGH COUNCIL,12/04/2016,EARLY HELP AND SCHOOLS,HOPWOOD HALL COLLEGE,12/04/2016,57671,OTHER EST - SEN PROVISION,V000994491
ROCHDALE BOROUGH COUNCIL,01/04/2016,NEIGHBOURHOODS AND ENVIRONMENT,ORCHARD  RECYCLING SERVICE LTD,01/04/2016,2455.3,EQUIPMENT - GENERAL,V000994494
ROCHDALE BOROUGH COUNCIL,01/04/2016,NEIGHBOURHOODS AND ENVIRONMENT,ORCHARD  RECYCLING SERVICE LTD,01/04/2016,549,EQUIPMENT - GENERAL,V000994495
ROCHDALE BOROUGH COUNCIL,06/04/2016,PHYSICAL DIS & OLDER PEOPLE,MANCHESTER WORKING LIMITED,06/04/2016,9515,MAINTENANCE STAIRLIFTS,V000994497
ROCHDALE BOROUGH COUNCIL,01/04/2016,FINANCE SERVICES,OFFICE DEPOT UK LIMITED,01/04/2016,553.11,PRINTING & STATIONERY,V000994498
ROCHDALE BOROUGH COUNCIL,01/04/2016,PHYSICAL DIS & OLDER PEOPLE,STANNAH LIFT SERVICES LTD,01/04/2016,1773,IMPROVEMENTS-EXTENSIONS & ALTERATIONS,V000994524
ROCHDALE BOROUGH COUNCIL,04/04/2016,NEIGHBOURHOODS AND ENVIRONMENT,ASKEWS AND HOLTS LIBRARY SERVICES LTD,04/04/2016,532.52,REFERENCE BOOKS/NEWSPAPERS/PERIODICALS,V000994538
ROCHDALE BOROUGH COUNCIL,06/04/2016,FINANCE SERVICES,ROYAL MAIL GROUP PLC,06/04/2016,-734.24,POSTAGE,V000994542
ROCHDALE BOROUGH COUNCIL,04/04/2016,PUBLIC HEALTH,PETERLOO MEDICAL CENTRE,04/04/2016,1727.48,PH LCS PAYMENTS,V000994552
ROCHDALE BOROUGH COUNCIL,07/04/2016,NEIGHBOURHOODS AND ENVIRONMENT,NO GRAFFITI LTD,07/04/2016,7400,CONTRACTED SERVICES,V000994555
ROCHDALE BOROUGH COUNCIL,06/04/2016,NEIGHBOURHOODS AND ENVIRONMENT,NO GRAFFITI LTD,06/04/2016,10456,CONTRACTED SERVICES,V000994556
ROCHDALE BOROUGH COUNCIL,01/04/2016,ECONOMY DIRECTORATE,URBAN VISION PARTNERSHIP LTD,01/04/2016,2837.68,AGENCY STAFF,V000994560
ROCHDALE BOROUGH COUNCIL,04/04/2016,PHYSICAL DIS & OLDER PEOPLE,MICK TAYLOR LIMITED,04/04/2016,1800,TRANSACTIONS-EXPENDITURE,V000994565
ROCHDALE BOROUGH COUNCIL,04/04/2016,PHYSICAL DIS & OLDER PEOPLE,MICK TAYLOR LIMITED,04/04/2016,1960,TRANSACTIONS-EXPENDITURE,V000994565
ROCHDALE BOROUGH COUNCIL,22/04/2016,PUBLIC HEALTH,SALFORD CITY COUNCIL,22/04/2016,5250,AGMA,V000994628
ROCHDALE BOROUGH COUNCIL,01/04/2016,FINANCE SERVICES,FORBES SOLICITORS,01/04/2016,607.4,INPUT VAT -  ADJUSTMENTS,V000994654
ROCHDALE BOROUGH COUNCIL,08/04/2016,PROPERTY AND HIGHWAYS,NAB CONTRACTORS LTD,08/04/2016,1510.14,IMPROVEMENTS-MODERNISATION,V000994678
ROCHDALE BOROUGH COUNCIL,08/04/2016,PROPERTY AND HIGHWAYS,FRS ROOFING SERVICES LIMITED,08/04/2016,1807.24,IMPROVEMENTS-MODERNISATION,V000994679
ROCHDALE BOROUGH COUNCIL,01/04/2016,NEIGHBOURHOODS AND ENVIRONMENT,ROCHDALE & DIST CITIZENS ADVICE BUREAU,01/04/2016,34583.33,CITIZENS ADVICE BUREAU,V000994685
ROCHDALE BOROUGH COUNCIL,01/04/2016,NEIGHBOURHOODS AND ENVIRONMENT,CRIMBLE CROFT COMMUNITY CENTRE,01/04/2016,8125,GRANTS TO THE VOLUNTARY SECTOR,V000994686
ROCHDALE BOROUGH COUNCIL,01/04/2016,NEIGHBOURHOODS AND ENVIRONMENT,SPOTLAND COMMUNITY CENTRE,01/04/2016,5588.49,GRANTS TO THE VOLUNTARY SECTOR,V000994688
ROCHDALE BOROUGH COUNCIL,01/04/2016,NEIGHBOURHOODS AND ENVIRONMENT,MEADOWFIELD COMMUNITY CENTRE,01/04/2016,9575,GRANTS TO THE VOLUNTARY SECTOR,V000994689
ROCHDALE BOROUGH COUNCIL,01/04/2016,NEIGHBOURHOODS AND ENVIRONMENT,DEMESNE COMMUNITY ASSOCIATION,01/04/2016,10100,GRANTS TO THE VOLUNTARY SECTOR,V000994690
ROCHDALE BOROUGH COUNCIL,01/04/2016,NEIGHBOURHOODS AND ENVIRONMENT,BURNSIDE CENTRE ACCOUNT,01/04/2016,6550,GRANTS TO THE VOLUNTARY SECTOR,V000994691
ROCHDALE BOROUGH COUNCIL,01/04/2016,NEIGHBOURHOODS AND ENVIRONMENT,WARDLEWORTH COMMUNITY CENTRE ASSOCIATION,01/04/2016,11675,GRANTS TO THE VOLUNTARY SECTOR,V000994692
ROCHDALE BOROUGH COUNCIL,01/04/2016,NEIGHBOURHOODS AND ENVIRONMENT,SPARTH COMMUNITY CENTRE,01/04/2016,11425,GRANTS TO THE VOLUNTARY SECTOR,V000994693
ROCHDALE BOROUGH COUNCIL,29/04/2016,ECONOMY DIRECTORATE,ROCHDALE DEVELOPMENT AGENCY,29/04/2016,34124.25,CONTRACTED SERVICES,V000994694
ROCHDALE BOROUGH COUNCIL,01/04/2016,NEIGHBOURHOODS AND ENVIRONMENT,REDACTED - PERSONAL DATA,01/04/2016,1000,ROOM HIRE,V000994695
ROCHDALE BOROUGH COUNCIL,01/04/2016,NEIGHBOURHOODS AND ENVIRONMENT,NORTH AREA PARTNERSHIP,01/04/2016,4125,GRANTS TO THE VOLUNTARY SECTOR,V000994696
ROCHDALE BOROUGH COUNCIL,01/04/2016,NEIGHBOURHOODS AND ENVIRONMENT,BROOKSIDE COMMUNITY ASSOCIATION,01/04/2016,900,GRANTS TO THE VOLUNTARY SECTOR,V000994697
ROCHDALE BOROUGH COUNCIL,01/04/2016,NEIGHBOURHOODS AND ENVIRONMENT,SUDDEN & BRIMROD COMMUNITY CENTRE,01/04/2016,2325,GRANTS TO THE VOLUNTARY SECTOR,V000994698
ROCHDALE BOROUGH COUNCIL,01/04/2016,NEIGHBOURHOODS AND ENVIRONMENT,KASHMIR YOUTH PROJECT,01/04/2016,4200,GRANTS TO THE VOLUNTARY SECTOR,V000994699
ROCHDALE BOROUGH COUNCIL,01/04/2016,NEIGHBOURHOODS AND ENVIRONMENT,DEEPLISH COMMUNITY CENTRE,01/04/2016,10800,GRANTS TO THE VOLUNTARY SECTOR,V000994700
ROCHDALE BOROUGH COUNCIL,01/04/2016,NEIGHBOURHOODS AND ENVIRONMENT,TURF HILL INITIATIVE CENTRE,01/04/2016,2800,GRANTS TO THE VOLUNTARY SECTOR,V000994701
ROCHDALE BOROUGH COUNCIL,01/04/2016,NEIGHBOURHOODS AND ENVIRONMENT,BANGLADESH ASSOCIATION AND COMMUNITY PROJECT,01/04/2016,8375,GRANTS TO THE VOLUNTARY SECTOR,V000994702
ROCHDALE BOROUGH COUNCIL,01/04/2016,NEIGHBOURHOODS AND ENVIRONMENT,CLEWORTH CHILDRENS ACTIVITY CENTRE,01/04/2016,5800,GRANTS TO THE VOLUNTARY SECTOR,V000994703
ROCHDALE BOROUGH COUNCIL,01/04/2016,NEIGHBOURHOODS AND ENVIRONMENT,PENNINE CARE NHS,01/04/2016,143727,CONTRACTED SERVICES,V000994704
ROCHDALE BOROUGH COUNCIL,01/04/2016,NEIGHBOURHOODS AND ENVIRONMENT,EARLY BREAK,01/04/2016,94850,CONTRACTED SERVICES,V000994705
ROCHDALE BOROUGH COUNCIL,01/04/2016,NEIGHBOURHOODS AND ENVIRONMENT,HIGH LEVEL (NORTHERN) TRUST,01/04/2016,93900,CONTRACTED SERVICES,V000994706
ROCHDALE BOROUGH COUNCIL,01/04/2016,NEIGHBOURHOODS AND ENVIRONMENT,LAMBERT SMITH HAMPTON,01/04/2016,10689.11,OTHER LOCAL AUTHORITIES,V000994710
ROCHDALE BOROUGH COUNCIL,01/04/2016,NEIGHBOURHOODS AND ENVIRONMENT,ROCHDALE FOODBANK,01/04/2016,750,SUPPLIES AND SERVICES PROVISION,V000994711
ROCHDALE BOROUGH COUNCIL,01/04/2016,NEIGHBOURHOODS AND ENVIRONMENT,NORTHGATE PUBLIC SERVICES (UK) LTD,01/04/2016,49686.25,SUPPLIES AND SERVICES PROVISION,V000994714
ROCHDALE BOROUGH COUNCIL,01/04/2016,NEIGHBOURHOODS AND ENVIRONMENT,ROCHDALE BOROUGHWIDE HOUSING,01/04/2016,50651.67,CONTRACTS,V000994715
ROCHDALE BOROUGH COUNCIL,01/04/2016,EARLY HELP AND SCHOOLS,RAINBOW TRUST CHILDRENS CHARITY,01/04/2016,1250,ACTIVITIES,V000994716
ROCHDALE BOROUGH COUNCIL,01/04/2016,EARLY HELP AND SCHOOLS,CROSSROADS CARE IN GREATER MANCHESTER,01/04/2016,3320.83,ACTIVITIES,V000994717
ROCHDALE BOROUGH COUNCIL,01/04/2016,FINANCE SERVICES,ROCHDALE BOROUGHWIDE HOUSING,01/04/2016,1875,RECHARGES TO RBH,V000994718
ROCHDALE BOROUGH COUNCIL,01/04/2016,FINANCE SERVICES,ROCHDALE BOROUGHWIDE HOUSING,01/04/2016,3125,RECHARGES TO RBH,V000994719
ROCHDALE BOROUGH COUNCIL,01/04/2016,FINANCE SERVICES,ROCHDALE BOROUGHWIDE HOUSING,01/04/2016,1645,RECHARGES TO RBH,V000994720
ROCHDALE BOROUGH COUNCIL,01/04/2016,PUBLIC HEALTH,LAMBERT SMITH HAMPTON,01/04/2016,11515,RENTS,V000994721
ROCHDALE BOROUGH COUNCIL,01/04/2016,PUBLIC HEALTH,LAMBERT SMITH HAMPTON,01/04/2016,2906.3,RENTS,V000994722
ROCHDALE BOROUGH COUNCIL,01/04/2016,EARLY HELP AND SCHOOLS,ROCHDALE GATEWAY LEISURE LIMITED,01/04/2016,1088.31,ACTIVITIES,V000994723
ROCHDALE BOROUGH COUNCIL,01/04/2016,PUBLIC HEALTH,LINK4LIFE (CHARITY),01/04/2016,36175,LINK 4 LIFE CONTRACT,V000994724
ROCHDALE BOROUGH COUNCIL,01/04/2016,PUBLIC HEALTH,LINK4LIFE (CHARITY),01/04/2016,12250,LINK 4 LIFE CONTRACT,V000994725
ROCHDALE BOROUGH COUNCIL,01/04/2016,PUBLIC HEALTH,LINK4LIFE (CHARITY),01/04/2016,234681,LINK 4 LIFE CONTRACT,V000994725
ROCHDALE BOROUGH COUNCIL,01/04/2016,PUBLIC HEALTH,LINK4LIFE (TRADING),01/04/2016,6225,LINK 4 LIFE CONTRACT,V000994726
ROCHDALE BOROUGH COUNCIL,01/04/2016,NEIGHBOURHOODS AND ENVIRONMENT,CASTLEMERE COMMUNITY CENTRE,01/04/2016,3275,GRANTS TO THE VOLUNTARY SECTOR,V000994727
ROCHDALE BOROUGH COUNCIL,01/04/2016,NEIGHBOURHOODS AND ENVIRONMENT,ROCHDALE WOMENS WELFARE ASSOCIATION,01/04/2016,4550,GRANTS TO THE VOLUNTARY SECTOR,V000994728
ROCHDALE BOROUGH COUNCIL,13/04/2016,PUBLIC HEALTH,HOPWOOD MEDICAL CENTRE,13/04/2016,531.89,PH LCS PAYMENTS,V000994790
ROCHDALE BOROUGH COUNCIL,01/04/2016,LEARNING DIS & MENTAL HEALTH,SEVACARE,01/04/2016,850.08,PERSONAL BUDGETS - MANAGED,V000994795
ROCHDALE BOROUGH COUNCIL,01/04/2016,CHILDREN�S SOCIAL CARE,JANE CROWLEY QC,01/04/2016,59550,PROFESSIONAL FEES,V000994797
ROCHDALE BOROUGH COUNCIL,07/04/2016,NEIGHBOURHOODS AND ENVIRONMENT,CARIBOU GREEN WARMTH LLP,07/04/2016,126820.8,PROPERTY REFURBISHMENT (HOUSING),V000994865
ROCHDALE BOROUGH COUNCIL,07/04/2016,NEIGHBOURHOODS AND ENVIRONMENT,CARIBOU GREEN WARMTH LLP,07/04/2016,126820.8,PROPERTY REFURBISHMENT (HOUSING),V000994866
ROCHDALE BOROUGH COUNCIL,01/04/2016,CHILDREN�S SOCIAL CARE,ANGLIA DNA SERVICES LTD,01/04/2016,650,MEDICAL FEES,V000994868
ROCHDALE BOROUGH COUNCIL,01/04/2016,CHILDREN�S SOCIAL CARE,ALERE TOXICOLOGY PLC,01/04/2016,653,MEDICAL FEES,V000994871
ROCHDALE BOROUGH COUNCIL,06/04/2016,NEIGHBOURHOODS AND ENVIRONMENT,EMO OIL LIMITED,06/04/2016,24957.5,TRANSACTIONS-EXPENDITURE,V000994882
ROCHDALE BOROUGH COUNCIL,01/04/2016,NEIGHBOURHOODS AND ENVIRONMENT,HEALTH AND SAFETY EXECUTIVE,01/04/2016,1574.8,EQUIPMENT - GENERAL,V000994885
ROCHDALE BOROUGH COUNCIL,08/04/2016,ECONOMY DIRECTORATE,NO WORRIES IT LTD,08/04/2016,3290.86,GRANTS TO THE NON VOLUNTARY SECTOR,V000994887
ROCHDALE BOROUGH COUNCIL,08/04/2016,ECONOMY DIRECTORATE,NEW MIND INTERNET CONSULTANCY LTD,08/04/2016,2400,EXPENSES - GENERAL,V000994891
ROCHDALE BOROUGH COUNCIL,08/04/2016,EARLY HELP AND SCHOOLS,ONESTAGE LIMITED,08/04/2016,4500,ACTIVITIES,V000994892
ROCHDALE BOROUGH COUNCIL,01/04/2016,EARLY HELP AND SCHOOLS,ROCHDALE HOUSING INITIATIVE,01/04/2016,723,SPECIFIED MAINTENANCE,V000994896
ROCHDALE BOROUGH COUNCIL,28/04/2016,EARLY HELP AND SCHOOLS,ROCHDALE CONNECTION TRUST,28/04/2016,7000,TRAINING,V000994897
ROCHDALE BOROUGH COUNCIL,08/04/2016,NEIGHBOURHOODS AND ENVIRONMENT,THE CHILDRENS SOCIETY SERVICES LTD,08/04/2016,9995,ACTIVITIES,V000994899
ROCHDALE BOROUGH COUNCIL,01/04/2016,EARLY HELP AND SCHOOLS,SONOVA LIMITED,01/04/2016,3442.5,EQUIPMENT - GENERAL,V000994900
ROCHDALE BOROUGH COUNCIL,25/04/2016,PUBLIC HEALTH,STOCKPORT NHS FOUNDATION TRUST,25/04/2016,771.84,PH OTHER CONTRACTS,V000994904
ROCHDALE BOROUGH COUNCIL,01/04/2016,NEIGHBOURHOODS AND ENVIRONMENT,YELDALL CHRISTAIN CENTRES,01/04/2016,919.29,CONTRACTED SERVICES,V000994906
ROCHDALE BOROUGH COUNCIL,01/04/2016,EARLY HELP AND SCHOOLS,BUILDING BLOCKS DAY NURSERY NW LTD,01/04/2016,1144.8,MANDATORY AWARDS,V000994922
ROCHDALE BOROUGH COUNCIL,01/04/2016,EARLY HELP AND SCHOOLS,BURNSIDE PRE-SCHOOL ACCOUNT,01/04/2016,675.75,MANDATORY AWARDS,V000994923
ROCHDALE BOROUGH COUNCIL,01/04/2016,EARLY HELP AND SCHOOLS,CABBAGE PATCH PRESCHOOL,01/04/2016,954,MANDATORY AWARDS,V000994926
ROCHDALE BOROUGH COUNCIL,01/04/2016,EARLY HELP AND SCHOOLS,COSY TOES PRIVATE DAY NURSERY,01/04/2016,858.6,MANDATORY AWARDS,V000994931
ROCHDALE BOROUGH COUNCIL,01/04/2016,EARLY HELP AND SCHOOLS,CRECHE N CO LIMITED,01/04/2016,572.4,MANDATORY AWARDS,V000994934
ROCHDALE BOROUGH COUNCIL,01/04/2016,EARLY HELP AND SCHOOLS,CRIMBLE CROFT PLAYGROUP,01/04/2016,572.4,MANDATORY AWARDS,V000994936
ROCHDALE BOROUGH COUNCIL,01/04/2016,EARLY HELP AND SCHOOLS,DEEPLISH ACADEMY,01/04/2016,1431,MANDATORY AWARDS,V000994938
ROCHDALE BOROUGH COUNCIL,01/04/2016,EARLY HELP AND SCHOOLS,FISHERFIELD FARM NURSERY,01/04/2016,667.8,MANDATORY AWARDS,V000994948
ROCHDALE BOROUGH COUNCIL,01/04/2016,EARLY HELP AND SCHOOLS,GENESIS DAY CARE NURSERY,01/04/2016,763.2,MANDATORY AWARDS,V000994950
ROCHDALE BOROUGH COUNCIL,01/04/2016,EARLY HELP AND SCHOOLS,GENESIS DAY CARE NURSERY LIMITED,01/04/2016,1240.2,MANDATORY AWARDS,V000994951
ROCHDALE BOROUGH COUNCIL,01/04/2016,EARLY HELP AND SCHOOLS,HAPPY JACKS CHILDREN DAY NURSERY LTD,01/04/2016,667.8,MANDATORY AWARDS,V000994952
ROCHDALE BOROUGH COUNCIL,01/04/2016,EARLY HELP AND SCHOOLS,HAPPYTOTS,01/04/2016,686.88,MANDATORY AWARDS,V000994954
ROCHDALE BOROUGH COUNCIL,01/04/2016,EARLY HELP AND SCHOOLS,LAROCHE DAY CARE NURSERY,01/04/2016,588.3,MANDATORY AWARDS,V000994957
ROCHDALE BOROUGH COUNCIL,01/04/2016,EARLY HELP AND SCHOOLS,NEWBOLD CHILDRENS CENTRE NURSERY,01/04/2016,1049.4,MANDATORY AWARDS,V000994965
ROCHDALE BOROUGH COUNCIL,01/04/2016,EARLY HELP AND SCHOOLS,RHODES PRESCHOOL,01/04/2016,667.8,MANDATORY AWARDS,V000994967
ROCHDALE BOROUGH COUNCIL,01/04/2016,EARLY HELP AND SCHOOLS,ROLY POLEYS PRIVATE DAY NURSERY,01/04/2016,810.9,MANDATORY AWARDS,V000994968
ROCHDALE BOROUGH COUNCIL,01/04/2016,EARLY HELP AND SCHOOLS,SANDBROOK CHILDRENS CENTRE NURSERY,01/04/2016,1011.24,MANDATORY AWARDS,V000994969
ROCHDALE BOROUGH COUNCIL,01/04/2016,EARLY HELP AND SCHOOLS,SCAMPS PRE-SCHOOL PLAYGROUP,01/04/2016,566.04,MANDATORY AWARDS,V000994970
ROCHDALE BOROUGH COUNCIL,01/04/2016,EARLY HELP AND SCHOOLS,SEEROS PRIVATE DAY NURSERY,01/04/2016,667.8,MANDATORY AWARDS,V000994971
ROCHDALE BOROUGH COUNCIL,01/04/2016,EARLY HELP AND SCHOOLS,SMALL WORLD NURSERIES LTD,01/04/2016,572.4,MANDATORY AWARDS,V000994972
ROCHDALE BOROUGH COUNCIL,01/04/2016,EARLY HELP AND SCHOOLS,ST JOSEPHS PRESCHOOL NURSERY LTD,01/04/2016,1335.6,MANDATORY AWARDS,V000994974
ROCHDALE BOROUGH COUNCIL,01/04/2016,EARLY HELP AND SCHOOLS,SUNFLOWER NURSERIES LIMITED,01/04/2016,572.4,MANDATORY AWARDS,V000994976
ROCHDALE BOROUGH COUNCIL,01/04/2016,EARLY HELP AND SCHOOLS,WENDYS,01/04/2016,858.6,MANDATORY AWARDS,V000994987
ROCHDALE BOROUGH COUNCIL,01/04/2016,EARLY HELP AND SCHOOLS,REDACTED - PERSONAL DATA,01/04/2016,620,MANDATORY AWARDS,V000994991
ROCHDALE BOROUGH COUNCIL,01/04/2016,EARLY HELP AND SCHOOLS,REDACTED - PERSONAL DATA,01/04/2016,891,MANDATORY AWARDS,V000994992
ROCHDALE BOROUGH COUNCIL,01/04/2016,EARLY HELP AND SCHOOLS,REDACTED - PERSONAL DATA,01/04/2016,682.2,MANDATORY AWARDS,V000994993
ROCHDALE BOROUGH COUNCIL,01/04/2016,EARLY HELP AND SCHOOLS,REDACTED - PERSONAL DATA,01/04/2016,9632.7,MANDATORY AWARDS,V000994994
ROCHDALE BOROUGH COUNCIL,01/04/2016,EARLY HELP AND SCHOOLS,REDACTED - PERSONAL DATA,01/04/2016,1783.11,MANDATORY AWARDS,V000994995
ROCHDALE BOROUGH COUNCIL,01/04/2016,EARLY HELP AND SCHOOLS,REDACTED - PERSONAL DATA,01/04/2016,2285,MANDATORY AWARDS,V000994996
ROCHDALE BOROUGH COUNCIL,01/04/2016,EARLY HELP AND SCHOOLS,REDACTED - PERSONAL DATA,01/04/2016,730.8,MANDATORY AWARDS,V000995000
ROCHDALE BOROUGH COUNCIL,01/04/2016,EARLY HELP AND SCHOOLS,REDACTED - PERSONAL DATA,01/04/2016,5006.75,MANDATORY AWARDS,V000995001
ROCHDALE BOROUGH COUNCIL,01/04/2016,EARLY HELP AND SCHOOLS,REDACTED - PERSONAL DATA,01/04/2016,599.4,MANDATORY AWARDS,V000995002
ROCHDALE BOROUGH COUNCIL,01/04/2016,EARLY HELP AND SCHOOLS,REDACTED - PERSONAL DATA,01/04/2016,1567.8,MANDATORY AWARDS,V000995003
ROCHDALE BOROUGH COUNCIL,01/04/2016,EARLY HELP AND SCHOOLS,REDACTED - PERSONAL DATA,01/04/2016,7330.62,MANDATORY AWARDS,V000995004
ROCHDALE BOROUGH COUNCIL,01/04/2016,EARLY HELP AND SCHOOLS,REDACTED - PERSONAL DATA,01/04/2016,2175.6,MANDATORY AWARDS,V000995005
ROCHDALE BOROUGH COUNCIL,01/04/2016,EARLY HELP AND SCHOOLS,REDACTED - PERSONAL DATA,01/04/2016,12991.99,MANDATORY AWARDS,V000995006
ROCHDALE BOROUGH COUNCIL,01/04/2016,EARLY HELP AND SCHOOLS,REDACTED - PERSONAL DATA,01/04/2016,13325.64,MANDATORY AWARDS,V000995007
ROCHDALE BOROUGH COUNCIL,01/04/2016,EARLY HELP AND SCHOOLS,REDACTED - PERSONAL DATA,01/04/2016,3635.28,MANDATORY AWARDS,V000995008
ROCHDALE BOROUGH COUNCIL,01/04/2016,EARLY HELP AND SCHOOLS,REDACTED - PERSONAL DATA,01/04/2016,658.8,MANDATORY AWARDS,V000995009
ROCHDALE BOROUGH COUNCIL,01/04/2016,EARLY HELP AND SCHOOLS,REDACTED - PERSONAL DATA,01/04/2016,9009,MANDATORY AWARDS,V000995010
ROCHDALE BOROUGH COUNCIL,01/04/2016,EARLY HELP AND SCHOOLS,REDACTED - PERSONAL DATA,01/04/2016,2355.45,MANDATORY AWARDS,V000995011
ROCHDALE BOROUGH COUNCIL,01/04/2016,EARLY HELP AND SCHOOLS,REDACTED - PERSONAL DATA,01/04/2016,682.2,MANDATORY AWARDS,V000995012
ROCHDALE BOROUGH COUNCIL,01/04/2016,EARLY HELP AND SCHOOLS,REDACTED - PERSONAL DATA,01/04/2016,4838.4,MANDATORY AWARDS,V000995014
ROCHDALE BOROUGH COUNCIL,01/04/2016,EARLY HELP AND SCHOOLS,REDACTED - PERSONAL DATA,01/04/2016,3100.75,MANDATORY AWARDS,V000995015
ROCHDALE BOROUGH COUNCIL,01/04/2016,EARLY HELP AND SCHOOLS,REDACTED - PERSONAL DATA,01/04/2016,4066.56,MANDATORY AWARDS,V000995016
ROCHDALE BOROUGH COUNCIL,01/04/2016,EARLY HELP AND SCHOOLS,REDACTED - PERSONAL DATA,01/04/2016,595.8,MANDATORY AWARDS,V000995017
ROCHDALE BOROUGH COUNCIL,01/04/2016,EARLY HELP AND SCHOOLS,REDACTED - PERSONAL DATA,01/04/2016,2067.12,MANDATORY AWARDS,V000995018
ROCHDALE BOROUGH COUNCIL,01/04/2016,EARLY HELP AND SCHOOLS,REDACTED - PERSONAL DATA,01/04/2016,1525.25,MANDATORY AWARDS,V000995019
ROCHDALE BOROUGH COUNCIL,01/04/2016,EARLY HELP AND SCHOOLS,REDACTED - PERSONAL DATA,01/04/2016,621,MANDATORY AWARDS,V000995020
ROCHDALE BOROUGH COUNCIL,01/04/2016,EARLY HELP AND SCHOOLS,REDACTED - PERSONAL DATA,01/04/2016,1792.8,MANDATORY AWARDS,V000995021
ROCHDALE BOROUGH COUNCIL,01/04/2016,EARLY HELP AND SCHOOLS,REDACTED - PERSONAL DATA,01/04/2016,3749.76,MANDATORY AWARDS,V000995022
ROCHDALE BOROUGH COUNCIL,01/04/2016,EARLY HELP AND SCHOOLS,REDACTED - PERSONAL DATA,01/04/2016,4725,MANDATORY AWARDS,V000995023
ROCHDALE BOROUGH COUNCIL,01/04/2016,EARLY HELP AND SCHOOLS,REDACTED - PERSONAL DATA,01/04/2016,668.25,DAY CARE,V000995026
ROCHDALE BOROUGH COUNCIL,01/04/2016,EARLY HELP AND SCHOOLS,REDACTED - PERSONAL DATA,01/04/2016,4009.5,DAY CARE,V000995027
ROCHDALE BOROUGH COUNCIL,01/04/2016,EARLY HELP AND SCHOOLS,REDACTED - PERSONAL DATA,01/04/2016,3638.25,DAY CARE,V000995028
ROCHDALE BOROUGH COUNCIL,01/04/2016,EARLY HELP AND SCHOOLS,REDACTED - PERSONAL DATA,01/04/2016,519.75,DAY CARE,V000995029
ROCHDALE BOROUGH COUNCIL,01/04/2016,EARLY HELP AND SCHOOLS,REDACTED - PERSONAL DATA,01/04/2016,1039.5,DAY CARE,V000995030
ROCHDALE BOROUGH COUNCIL,01/04/2016,EARLY HELP AND SCHOOLS,REDACTED - PERSONAL DATA,01/04/2016,1039.5,DAY CARE,V000995031
ROCHDALE BOROUGH COUNCIL,01/04/2016,EARLY HELP AND SCHOOLS,REDACTED - PERSONAL DATA,01/04/2016,3118.5,DAY CARE,V000995032
ROCHDALE BOROUGH COUNCIL,01/04/2016,EARLY HELP AND SCHOOLS,REDACTED - PERSONAL DATA,01/04/2016,2079,DAY CARE,V000995033
ROCHDALE BOROUGH COUNCIL,01/04/2016,EARLY HELP AND SCHOOLS,REDACTED - PERSONAL DATA,01/04/2016,4071.36,DAY CARE,V000995035
ROCHDALE BOROUGH COUNCIL,01/04/2016,EARLY HELP AND SCHOOLS,REDACTED - PERSONAL DATA,01/04/2016,2910.6,DAY CARE,V000995036
ROCHDALE BOROUGH COUNCIL,01/04/2016,EARLY HELP AND SCHOOLS,REDACTED - PERSONAL DATA,01/04/2016,1039.5,DAY CARE,V000995037
ROCHDALE BOROUGH COUNCIL,01/04/2016,EARLY HELP AND SCHOOLS,REDACTED - PERSONAL DATA,01/04/2016,2702.7,DAY CARE,V000995038
ROCHDALE BOROUGH COUNCIL,01/04/2016,EARLY HELP AND SCHOOLS,REDACTED - PERSONAL DATA,01/04/2016,3118.5,DAY CARE,V000995039
ROCHDALE BOROUGH COUNCIL,01/04/2016,EARLY HELP AND SCHOOLS,REDACTED - PERSONAL DATA,01/04/2016,7722,DAY CARE,V000995040
ROCHDALE BOROUGH COUNCIL,01/04/2016,EARLY HELP AND SCHOOLS,REDACTED - PERSONAL DATA,01/04/2016,5346,DAY CARE,V000995041
ROCHDALE BOROUGH COUNCIL,01/04/2016,EARLY HELP AND SCHOOLS,REDACTED - PERSONAL DATA,01/04/2016,891,DAY CARE,V000995042
ROCHDALE BOROUGH COUNCIL,01/04/2016,EARLY HELP AND SCHOOLS,REDACTED - PERSONAL DATA,01/04/2016,891,DAY CARE,V000995043
ROCHDALE BOROUGH COUNCIL,01/04/2016,EARLY HELP AND SCHOOLS,REDACTED - PERSONAL DATA,01/04/2016,3564,DAY CARE,V000995044
ROCHDALE BOROUGH COUNCIL,01/04/2016,EARLY HELP AND SCHOOLS,REDACTED - PERSONAL DATA,01/04/2016,6593.4,DAY CARE,V000995045
ROCHDALE BOROUGH COUNCIL,01/04/2016,EARLY HELP AND SCHOOLS,REDACTED - PERSONAL DATA,01/04/2016,534.6,DAY CARE,V000995046
ROCHDALE BOROUGH COUNCIL,01/04/2016,EARLY HELP AND SCHOOLS,REDACTED - PERSONAL DATA,01/04/2016,1782,DAY CARE,V000995047
ROCHDALE BOROUGH COUNCIL,01/04/2016,EARLY HELP AND SCHOOLS,REDACTED - PERSONAL DATA,01/04/2016,3564,DAY CARE,V000995048
ROCHDALE BOROUGH COUNCIL,01/04/2016,EARLY HELP AND SCHOOLS,REDACTED - PERSONAL DATA,01/04/2016,891,DAY CARE,V000995049
ROCHDALE BOROUGH COUNCIL,01/04/2016,EARLY HELP AND SCHOOLS,REDACTED - PERSONAL DATA,01/04/2016,7573.5,DAY CARE,V000995050
ROCHDALE BOROUGH COUNCIL,01/04/2016,EARLY HELP AND SCHOOLS,REDACTED - PERSONAL DATA,01/04/2016,3564,DAY CARE,V000995051
ROCHDALE BOROUGH COUNCIL,01/04/2016,EARLY HELP AND SCHOOLS,REDACTED - PERSONAL DATA,01/04/2016,4677.75,DAY CARE,V000995053
ROCHDALE BOROUGH COUNCIL,01/04/2016,EARLY HELP AND SCHOOLS,REDACTED - PERSONAL DATA,01/04/2016,1003.85,DAY CARE,V000995054
ROCHDALE BOROUGH COUNCIL,01/04/2016,EARLY HELP AND SCHOOLS,REDACTED - PERSONAL DATA,01/04/2016,6058.8,DAY CARE,V000995055
ROCHDALE BOROUGH COUNCIL,01/04/2016,EARLY HELP AND SCHOOLS,REDACTED - PERSONAL DATA,01/04/2016,5452.92,DAY CARE,V000995057
ROCHDALE BOROUGH COUNCIL,01/04/2016,EARLY HELP AND SCHOOLS,REDACTED - PERSONAL DATA,01/04/2016,2108.7,DAY CARE,V000995058
ROCHDALE BOROUGH COUNCIL,01/04/2016,EARLY HELP AND SCHOOLS,REDACTED - PERSONAL DATA,01/04/2016,3296.7,DAY CARE,V000995060
ROCHDALE BOROUGH COUNCIL,01/04/2016,EARLY HELP AND SCHOOLS,REDACTED - PERSONAL DATA,01/04/2016,668.25,DAY CARE,V000995061
ROCHDALE BOROUGH COUNCIL,01/04/2016,EARLY HELP AND SCHOOLS,BRIGHT STARS CHILDCARE,01/04/2016,840,GRANTS TO THE NON VOLUNTARY SECTOR,V000995062
ROCHDALE BOROUGH COUNCIL,01/04/2016,EARLY HELP AND SCHOOLS,RAISE THE YOUTH FOUNDATION CIC,01/04/2016,1330,INDEPENDENT UNITS,V000995074
ROCHDALE BOROUGH COUNCIL,01/04/2016,CHILDREN�S SOCIAL CARE,STOCKPORT PSYCHOLOGY SERVICES LIMITED,01/04/2016,552.03,MEDICAL FEES,V000995077
ROCHDALE BOROUGH COUNCIL,01/04/2016,CHILDREN�S SOCIAL CARE,ALERE TOXICOLOGY PLC,01/04/2016,700,MEDICAL FEES,V000995080
ROCHDALE BOROUGH COUNCIL,13/04/2016,PUBLIC HEALTH,ASHWORTH STREET SURGERY,13/04/2016,2122.75,PH LCS PAYMENTS,V000995082
ROCHDALE BOROUGH COUNCIL,01/04/2016,LEARNING DIS & MENTAL HEALTH,COMMUNITY CARE LINE SERVICES,01/04/2016,697.68,PERSONAL BUDGETS - MANAGED,V000995083
ROCHDALE BOROUGH COUNCIL,01/04/2016,LEARNING DIS & MENTAL HEALTH,THE NATIONAL AUTISTIC SOCIETY,01/04/2016,2115.25,SUPPORTED LIVING,V000995085
ROCHDALE BOROUGH COUNCIL,08/04/2016,ECONOMY DIRECTORATE,TG PRODUCTION SUPPLY LTD,08/04/2016,3700,EVENTS,V000995090
ROCHDALE BOROUGH COUNCIL,01/04/2016,ECONOMY DIRECTORATE,CORONA ENERGY RETAIL 4 LIMITED,01/04/2016,652.09,GAS,V000995095
ROCHDALE BOROUGH COUNCIL,01/04/2016,ECONOMY DIRECTORATE,CORONA ENERGY RETAIL 4 LIMITED,01/04/2016,645.41,GAS,V000995096
ROCHDALE BOROUGH COUNCIL,01/04/2016,ECONOMY DIRECTORATE,CORONA ENERGY RETAIL 4 LIMITED,01/04/2016,585.2,GAS,V000995097
ROCHDALE BOROUGH COUNCIL,01/04/2016,ECONOMY DIRECTORATE,CORONA ENERGY RETAIL 4 LIMITED,01/04/2016,508.35,GAS,V000995098
ROCHDALE BOROUGH COUNCIL,01/04/2016,ECONOMY DIRECTORATE,CORONA ENERGY RETAIL 4 LIMITED,01/04/2016,666.36,GAS,V000995101
ROCHDALE BOROUGH COUNCIL,01/04/2016,ECONOMY DIRECTORATE,CORONA ENERGY RETAIL 4 LIMITED,01/04/2016,1217.67,GAS,V000995102
ROCHDALE BOROUGH COUNCIL,01/04/2016,ECONOMY DIRECTORATE,CORONA ENERGY RETAIL 4 LIMITED,01/04/2016,603.15,GAS,V000995103
ROCHDALE BOROUGH COUNCIL,01/04/2016,ECONOMY DIRECTORATE,CORONA ENERGY RETAIL 4 LIMITED,01/04/2016,552.47,GAS,V000995104
ROCHDALE BOROUGH COUNCIL,01/04/2016,ECONOMY DIRECTORATE,CORONA ENERGY RETAIL 4 LIMITED,01/04/2016,709.5,GAS,V000995117
ROCHDALE BOROUGH COUNCIL,01/04/2016,NEIGHBOURHOODS AND ENVIRONMENT,CHARTERED INSTITUTE OF HOUSING,01/04/2016,1650,PROFESSIONAL FEES,V000995121
ROCHDALE BOROUGH COUNCIL,01/04/2016,ECONOMY DIRECTORATE,CORONA ENERGY RETAIL 4 LIMITED,01/04/2016,563.61,GAS,V000995122
ROCHDALE BOROUGH COUNCIL,22/04/2016,PUBLIC HEALTH,4C FOOD SAFETY,22/04/2016,1200,EQUIPMENT - GENERAL,V000995124
ROCHDALE BOROUGH COUNCIL,06/04/2016,LEARNING DIS & MENTAL HEALTH,MENCAP,06/04/2016,33436,SUPPORTED LIVING,V000995126
ROCHDALE BOROUGH COUNCIL,08/04/2016,NEIGHBOURHOODS AND ENVIRONMENT,MRM STREET FURNITURE LTD,08/04/2016,4348,ACTIVITIES,V000995127
ROCHDALE BOROUGH COUNCIL,13/04/2016,PROPERTY AND HIGHWAYS,A E YATES LTD,13/04/2016,14607.2,TRANSACTIONS-EXPENDITURE,V000995135
ROCHDALE BOROUGH COUNCIL,13/04/2016,PROPERTY AND HIGHWAYS,A E YATES LTD,13/04/2016,73036.01,ROADWORKS,V000995135
ROCHDALE BOROUGH COUNCIL,01/04/2016,ECONOMY DIRECTORATE,CORONA ENERGY RETAIL 4 LIMITED,01/04/2016,933.47,GAS,V000995144
ROCHDALE BOROUGH COUNCIL,01/04/2016,ECONOMY DIRECTORATE,CORONA ENERGY RETAIL 4 LIMITED,01/04/2016,2509.59,GAS,V000995145
ROCHDALE BOROUGH COUNCIL,01/04/2016,ECONOMY DIRECTORATE,CORONA ENERGY RETAIL 4 LIMITED,01/04/2016,2847.46,GAS,V000995146
ROCHDALE BOROUGH COUNCIL,26/04/2016,CHILDREN�S SOCIAL CARE,STOCKPORT METROPOLITAN BOROUGH COUNCIL,26/04/2016,517.24,ADVERTISING,V000995149
ROCHDALE BOROUGH COUNCIL,26/04/2016,CHILDREN�S SOCIAL CARE,STOCKPORT METROPOLITAN BOROUGH COUNCIL,26/04/2016,3266.59,ADVERTISING,V000995149
ROCHDALE BOROUGH COUNCIL,01/04/2016,ECONOMY DIRECTORATE,CORONA ENERGY RETAIL 4 LIMITED,01/04/2016,569.08,GAS,V000995151
ROCHDALE BOROUGH COUNCIL,13/04/2016,PROPERTY AND HIGHWAYS,A E YATES LTD,13/04/2016,7758.4,TRANSACTIONS-EXPENDITURE,V000995152
ROCHDALE BOROUGH COUNCIL,13/04/2016,NEIGHBOURHOODS AND ENVIRONMENT,A E YATES LTD,13/04/2016,38791.97,DRAINAGE AND SEWERS,V000995152
ROCHDALE BOROUGH COUNCIL,01/04/2016,NEIGHBOURHOODS AND ENVIRONMENT,BRAKE BROS FOOD SERVICE LTD,01/04/2016,575.26,PROVISIONS,V000995155
ROCHDALE BOROUGH COUNCIL,13/04/2016,PROPERTY AND HIGHWAYS,C E S LTD,13/04/2016,2202.65,TRANSACTIONS-EXPENDITURE,V000995156
ROCHDALE BOROUGH COUNCIL,13/04/2016,PROPERTY AND HIGHWAYS,C E S LTD,13/04/2016,4405.31,IMPROVEMENTS-MODERNISATION,V000995156
ROCHDALE BOROUGH COUNCIL,13/04/2016,PROPERTY AND HIGHWAYS,C E S LTD,13/04/2016,6607.96,IMPROVEMENTS-MODERNISATION,V000995156
ROCHDALE BOROUGH COUNCIL,07/04/2016,PROPERTY AND HIGHWAYS,NICK BAYLISS GLASS LIMITED,07/04/2016,1370.8,IMPROVEMENTS-MODERNISATION,V000995161
ROCHDALE BOROUGH COUNCIL,01/04/2016,NEIGHBOURHOODS AND ENVIRONMENT,GLOBECAR LTD,01/04/2016,510,TAXI HIRE,V000995164
ROCHDALE BOROUGH COUNCIL,01/04/2016,NEIGHBOURHOODS AND ENVIRONMENT,GLOBECAR LTD,01/04/2016,544,TAXI HIRE,V000995165
ROCHDALE BOROUGH COUNCIL,08/04/2016,FINANCE SERVICES,JACOBS,08/04/2016,1603,INPUT VAT -  ADJUSTMENTS,V000995172
ROCHDALE BOROUGH COUNCIL,28/04/2016,FINANCE SERVICES,ROSSENDALES,28/04/2016,770,INPUT VAT -  ADJUSTMENTS,V000995173
ROCHDALE BOROUGH COUNCIL,22/04/2016,FINANCE SERVICES,ROSSENDALES,22/04/2016,686.72,INPUT VAT -  ADJUSTMENTS,V000995174
ROCHDALE BOROUGH COUNCIL,08/04/2016,EARLY HELP AND SCHOOLS,TES  GLOBAL  LIMITED,08/04/2016,1093.75,ADVERTISING,V000995175
ROCHDALE BOROUGH COUNCIL,01/04/2016,NEIGHBOURHOODS AND ENVIRONMENT,BRAKE BROS FOOD SERVICE LTD,01/04/2016,514.51,PROVISIONS,V000995178
ROCHDALE BOROUGH COUNCIL,01/04/2016,NEIGHBOURHOODS AND ENVIRONMENT,BRAKE BROS FOOD SERVICE LTD,01/04/2016,586.56,PROVISIONS,V000995178
ROCHDALE BOROUGH COUNCIL,01/04/2016,NEIGHBOURHOODS AND ENVIRONMENT,BRAKE BROS FOOD SERVICE LTD,01/04/2016,640.87,PROVISIONS,V000995178
ROCHDALE BOROUGH COUNCIL,27/04/2016,PROPERTY AND HIGHWAYS,BOLTON MBC,27/04/2016,3786.49,FEES / COMMISSION,V000995180
ROCHDALE BOROUGH COUNCIL,04/04/2016,EARLY HELP AND SCHOOLS,CORONA ENERGY RETAIL 4 LIMITED,04/04/2016,-542.61,GAS,V000995186
ROCHDALE BOROUGH COUNCIL,04/04/2016,EARLY HELP AND SCHOOLS,CORONA ENERGY RETAIL 4 LIMITED,04/04/2016,585.69,GAS,V000995189
ROCHDALE BOROUGH COUNCIL,06/04/2016,NEIGHBOURHOODS AND ENVIRONMENT,STHREE PARTNERSHIP LLP,06/04/2016,1750,CAPITAL SALARIES,V000995200
ROCHDALE BOROUGH COUNCIL,06/04/2016,NEIGHBOURHOODS AND ENVIRONMENT,SENITOR RECRUITMENT,06/04/2016,2000,CAPITAL SALARIES,V000995201
ROCHDALE BOROUGH COUNCIL,06/04/2016,NEIGHBOURHOODS AND ENVIRONMENT,STHREE PARTNERSHIP LLP,06/04/2016,1300,CAPITAL SALARIES,V000995202
ROCHDALE BOROUGH COUNCIL,06/04/2016,NEIGHBOURHOODS AND ENVIRONMENT,STHREE PARTNERSHIP LLP,06/04/2016,1120,CAPITAL SALARIES,V000995203
ROCHDALE BOROUGH COUNCIL,06/04/2016,NEIGHBOURHOODS AND ENVIRONMENT,STHREE PARTNERSHIP LLP,06/04/2016,1750,CAPITAL SALARIES,V000995204
ROCHDALE BOROUGH COUNCIL,06/04/2016,NEIGHBOURHOODS AND ENVIRONMENT,STHREE PARTNERSHIP LLP,06/04/2016,1750,CAPITAL SALARIES,V000995205
ROCHDALE BOROUGH COUNCIL,04/04/2016,NEIGHBOURHOODS AND ENVIRONMENT,EDENHOUSE SOLUTIONS LTD,04/04/2016,5950,SOFTWARE,V000995206
ROCHDALE BOROUGH COUNCIL,07/04/2016,NEIGHBOURHOODS AND ENVIRONMENT,SOFTCAT LTD,07/04/2016,1500,CONSULTANT FEES,V000995207
ROCHDALE BOROUGH COUNCIL,21/04/2016,NEIGHBOURHOODS AND ENVIRONMENT,CAPITA BUSINESS SERVICES LIMITED,21/04/2016,160234.82,SOFTWARE,V000995211
ROCHDALE BOROUGH COUNCIL,04/04/2016,NEIGHBOURHOODS AND ENVIRONMENT,MIDLAND SOFTWARE LTD,04/04/2016,1540.78,SOFTWARE,V000995226
ROCHDALE BOROUGH COUNCIL,04/04/2016,NEIGHBOURHOODS AND ENVIRONMENT,THE LOCAL DEMOCRACY THINK TANK,04/04/2016,3750,PURCHASE OF ICT HARDWARE,V000995227
ROCHDALE BOROUGH COUNCIL,04/04/2016,NEIGHBOURHOODS AND ENVIRONMENT,MIDLAND SOFTWARE LTD,04/04/2016,1933.45,SOFTWARE,V000995229
ROCHDALE BOROUGH COUNCIL,06/04/2016,NEIGHBOURHOODS AND ENVIRONMENT,GRAITEC LIMITED,06/04/2016,8570,SOFTWARE,V000995231
ROCHDALE BOROUGH COUNCIL,08/04/2016,NEIGHBOURHOODS AND ENVIRONMENT,XMA LIMITED,08/04/2016,23100,PURCHASE OF ICT HARDWARE,V000995232
ROCHDALE BOROUGH COUNCIL,01/04/2016,PHYSICAL DIS & OLDER PEOPLE,SILVERDALE CARE HOMES LIMITED,01/04/2016,2654.1,ASSESSMENT CARE,V000995233
ROCHDALE BOROUGH COUNCIL,01/04/2016,LEARNING DIS & MENTAL HEALTH,EAST & WEST HEALTHCARE LIMITED,01/04/2016,2407.44,ASSESSMENT CARE,V000995234
ROCHDALE BOROUGH COUNCIL,01/04/2016,PHYSICAL DIS & OLDER PEOPLE,FOUR SEASONS HEALTHCARE,01/04/2016,2407.44,ASSESSMENT CARE,V000995235
ROCHDALE BOROUGH COUNCIL,01/04/2016,PHYSICAL DIS & OLDER PEOPLE,ATLANTIS MEDICARE LTD,01/04/2016,2407.44,ASSESSMENT CARE,V000995236
ROCHDALE BOROUGH COUNCIL,06/04/2016,PHYSICAL DIS & OLDER PEOPLE,HORIZON  RESIDENTIAL HOMES LTD,06/04/2016,2006.2,SHORT TERM CARE - RESIDENTIAL,V000995237
ROCHDALE BOROUGH COUNCIL,01/04/2016,PHYSICAL DIS & OLDER PEOPLE,FOUR SEASONS HEALTHCARE,01/04/2016,2654.1,SHORT TERM CARE - RESIDENTIAL,V000995238
ROCHDALE BOROUGH COUNCIL,01/04/2016,LEARNING DIS & MENTAL HEALTH,EAST & WEST HEALTHCARE LIMITED,01/04/2016,802.48,ASSESSMENT CARE,V000995239
ROCHDALE BOROUGH COUNCIL,01/04/2016,LEARNING DIS & MENTAL HEALTH,STAMFORD HOUSE REST HOME LIMITED,01/04/2016,917.12,SHORT TERM CARE - RESIDENTIAL,V000995240
ROCHDALE BOROUGH COUNCIL,01/04/2016,PHYSICAL DIS & OLDER PEOPLE,ROSEMARY CARE HOME,01/04/2016,802.48,SHORT TERM CARE - RESIDENTIAL,V000995241
ROCHDALE BOROUGH COUNCIL,01/04/2016,PHYSICAL DIS & OLDER PEOPLE,LITTLEBOROUGH CARE HOME LIMITED,01/04/2016,1089.08,SHORT TERM CARE - RESIDENTIAL,V000995242
ROCHDALE BOROUGH COUNCIL,01/04/2016,LEARNING DIS & MENTAL HEALTH,FOUR SEASONS HEALTHCARE,01/04/2016,1769.4,SHORT TERM CARE - RESIDENTIAL,V000995243
ROCHDALE BOROUGH COUNCIL,01/04/2016,PHYSICAL DIS & OLDER PEOPLE,EAGLE CARE HOMES LTD,01/04/2016,917.12,SHORT TERM CARE - RESIDENTIAL,V000995244
ROCHDALE BOROUGH COUNCIL,01/04/2016,PHYSICAL DIS & OLDER PEOPLE,BRIARMEDE CARE LTD,01/04/2016,1490.32,SHORT TERM CARE - RESIDENTIAL,V000995245
ROCHDALE BOROUGH COUNCIL,01/04/2016,PHYSICAL DIS & OLDER PEOPLE,EAGLE CARE HOMES LTD,01/04/2016,1706.21,SHORT TERM CARE - RESIDENTIAL,V000995246
ROCHDALE BOROUGH COUNCIL,04/04/2016,NEIGHBOURHOODS AND ENVIRONMENT,CRAWFORD DOMESTIC APPLIANCES LIMITED,04/04/2016,4875,EQUIPMENT - GENERAL,V000995249
ROCHDALE BOROUGH COUNCIL,08/04/2016,NEIGHBOURHOODS AND ENVIRONMENT,ALLIANCE DISPOSABLES LIMITED,08/04/2016,1081.86,EQUIPMENT - GENERAL,V000995250
ROCHDALE BOROUGH COUNCIL,15/04/2016,EARLY HELP AND SCHOOLS,WARDLE ACADEMY,15/04/2016,3013.82,SEN COSTS MET BY SCHOOLS,V000995256
ROCHDALE BOROUGH COUNCIL,08/04/2016,NEIGHBOURHOODS AND ENVIRONMENT,STHREE PARTNERSHIP LLP,08/04/2016,1400,CAPITAL SALARIES,V000995259
ROCHDALE BOROUGH COUNCIL,08/04/2016,NEIGHBOURHOODS AND ENVIRONMENT,SENITOR RECRUITMENT,08/04/2016,1600,CAPITAL SALARIES,V000995261
ROCHDALE BOROUGH COUNCIL,04/04/2016,NEIGHBOURHOODS AND ENVIRONMENT,SPECIALIST COMPUTER CENTRES PLC,04/04/2016,41391.2,PURCHASE OF ICT HARDWARE,V000995262
ROCHDALE BOROUGH COUNCIL,08/04/2016,NEIGHBOURHOODS AND ENVIRONMENT,STHREE PARTNERSHIP LLP,08/04/2016,780,CAPITAL SALARIES,V000995263
ROCHDALE BOROUGH COUNCIL,06/04/2016,NEIGHBOURHOODS AND ENVIRONMENT,STHREE PARTNERSHIP LLP,06/04/2016,2400,CAPITAL SALARIES,V000995266
ROCHDALE BOROUGH COUNCIL,04/04/2016,NEIGHBOURHOODS AND ENVIRONMENT,FREEDOM COMMUNICATIONS,04/04/2016,13000,CONSULTANTS FEES,V000995267
ROCHDALE BOROUGH COUNCIL,04/04/2016,NEIGHBOURHOODS AND ENVIRONMENT,FREEDOM COMMUNICATIONS,04/04/2016,6623,PURCHASE OF ICT SOFTWARE,V000995269
ROCHDALE BOROUGH COUNCIL,04/04/2016,NEIGHBOURHOODS AND ENVIRONMENT,FREEDOM COMMUNICATIONS,04/04/2016,23248,PURCHASE OF ICT SOFTWARE,V000995269
ROCHDALE BOROUGH COUNCIL,13/04/2016,NEIGHBOURHOODS AND ENVIRONMENT,ALLIANCE DISPOSABLES LIMITED,13/04/2016,2792.28,EQUIPMENT - GENERAL,V000995270
ROCHDALE BOROUGH COUNCIL,08/04/2016,NEIGHBOURHOODS AND ENVIRONMENT,SENITOR RECRUITMENT,08/04/2016,1600,CAPITAL SALARIES,V000995271
ROCHDALE BOROUGH COUNCIL,11/04/2016,NEIGHBOURHOODS AND ENVIRONMENT,STHREE PARTNERSHIP LLP,11/04/2016,1400,CAPITAL SALARIES,V000995272
ROCHDALE BOROUGH COUNCIL,13/04/2016,PROPERTY AND HIGHWAYS,H BELL & SONS ROCHDALE LTD,13/04/2016,789,IMPROVEMENTS-MODERNISATION,V000995276
ROCHDALE BOROUGH COUNCIL,04/04/2016,PUBLIC HEALTH,NHS HEYWOOD MIDDLETON AND ROCHDALE CCG,04/04/2016,604030,PH PENNINE ACUTE CONTRACT,V000995280
ROCHDALE BOROUGH COUNCIL,13/04/2016,PROPERTY AND HIGHWAYS,TOMAX BUILDING SERVICES LTD,13/04/2016,1382.86,TRANSACTIONS-EXPENDITURE,V000995281
ROCHDALE BOROUGH COUNCIL,13/04/2016,PROPERTY AND HIGHWAYS,TOMAX BUILDING SERVICES LTD,13/04/2016,6914.28,IMPROVEMENTS-MODERNISATION,V000995281
ROCHDALE BOROUGH COUNCIL,14/04/2016,NEIGHBOURHOODS AND ENVIRONMENT,CAPITA BUSINESS SERVICES LIMITED,14/04/2016,166225.9,SOFTWARE,V000995282
ROCHDALE BOROUGH COUNCIL,14/04/2016,NEIGHBOURHOODS AND ENVIRONMENT,CAPITA BUSINESS SERVICES LIMITED,14/04/2016,-166225.9,SOFTWARE,V000995283
ROCHDALE BOROUGH COUNCIL,07/04/2016,PROPERTY AND HIGHWAYS,F S MOULT & SON,07/04/2016,3000,TRANSACTIONS-EXPENDITURE,V000995288
ROCHDALE BOROUGH COUNCIL,07/04/2016,PROPERTY AND HIGHWAYS,F S MOULT & SON,07/04/2016,20526.75,TRANSACTIONS-EXPENDITURE,V000995288
ROCHDALE BOROUGH COUNCIL,04/04/2016,PROPERTY AND HIGHWAYS,BUCHANAN ORDER MANAGEMENT,04/04/2016,531.65,SOFTWARE,V000995292
ROCHDALE BOROUGH COUNCIL,06/04/2016,PROPERTY AND HIGHWAYS,GREENFIELDS,06/04/2016,26433.95,TRANSACTIONS-EXPENDITURE,V000995300
ROCHDALE BOROUGH COUNCIL,06/04/2016,PROPERTY AND HIGHWAYS,GREENFIELDS,06/04/2016,132169.73,IMPROVEMENTS-MODERNISATION,V000995300
ROCHDALE BOROUGH COUNCIL,14/04/2016,NEIGHBOURHOODS AND ENVIRONMENT,UPDATA INFRASTRUCTURE UK LTD,14/04/2016,940,COMMUNICATION AND COMPUTING - GENERAL,V000995303
ROCHDALE BOROUGH COUNCIL,14/04/2016,NEIGHBOURHOODS AND ENVIRONMENT,UPDATA INFRASTRUCTURE UK LTD,14/04/2016,940,COMMUNICATION AND COMPUTING - GENERAL,V000995304
ROCHDALE BOROUGH COUNCIL,14/04/2016,NEIGHBOURHOODS AND ENVIRONMENT,UPDATA INFRASTRUCTURE UK LTD,14/04/2016,1445,COMMUNICATION AND COMPUTING - GENERAL,V000995304
ROCHDALE BOROUGH COUNCIL,14/04/2016,NEIGHBOURHOODS AND ENVIRONMENT,UPDATA INFRASTRUCTURE UK LTD,14/04/2016,980,COMMUNICATION AND COMPUTING - GENERAL,V000995305
ROCHDALE BOROUGH COUNCIL,04/04/2016,PHYSICAL DIS & OLDER PEOPLE,LILY CARE LIMITED,04/04/2016,2407.44,ASSESSMENT CARE,V000995306
ROCHDALE BOROUGH COUNCIL,04/04/2016,PHYSICAL DIS & OLDER PEOPLE,BUPA CARE HOMES LIMITED,04/04/2016,2407.44,ASSESSMENT CARE,V000995307
ROCHDALE BOROUGH COUNCIL,04/04/2016,PHYSICAL DIS & OLDER PEOPLE,LEYTON HEALTHCARE NO 12 LTD,04/04/2016,802.48,SHORT TERM CARE - NURSING,V000995308
ROCHDALE BOROUGH COUNCIL,04/04/2016,PHYSICAL DIS & OLDER PEOPLE,STAMFORD HOUSE REST HOME LIMITED,04/04/2016,2407.44,ASSESSMENT CARE,V000995309
ROCHDALE BOROUGH COUNCIL,04/04/2016,PHYSICAL DIS & OLDER PEOPLE,EAST & WEST HEALTHCARE LIMITED,04/04/2016,802.48,ASSESSMENT CARE,V000995310
ROCHDALE BOROUGH COUNCIL,04/04/2016,PHYSICAL DIS & OLDER PEOPLE,LEIGHTON HOUSE RETIREMENT HOME LIMITED,04/04/2016,2407.44,SHORT TERM CARE - RESIDENTIAL,V000995311
ROCHDALE BOROUGH COUNCIL,04/04/2016,PHYSICAL DIS & OLDER PEOPLE,BUPA CARE HOMES LIMITED,04/04/2016,745.16,SHORT TERM CARE - RESIDENTIAL,V000995312
ROCHDALE BOROUGH COUNCIL,04/04/2016,PHYSICAL DIS & OLDER PEOPLE,ASHBOURNE NURSING HOME,04/04/2016,802.48,SHORT TERM CARE - RESIDENTIAL,V000995313
ROCHDALE BOROUGH COUNCIL,04/04/2016,NEIGHBOURHOODS AND ENVIRONMENT,CONNECT CARS MIDDLETON LIMITED,04/04/2016,557,TAXI HIRE,V000995318
ROCHDALE BOROUGH COUNCIL,04/04/2016,NEIGHBOURHOODS AND ENVIRONMENT,CONNECT CARS MIDDLETON LIMITED,04/04/2016,888,TAXI HIRE,V000995321
ROCHDALE BOROUGH COUNCIL,04/04/2016,NEIGHBOURHOODS AND ENVIRONMENT,CAR 2000 HEYWOOD LLP,04/04/2016,760,TAXI HIRE,V000995325
ROCHDALE BOROUGH COUNCIL,04/04/2016,NEIGHBOURHOODS AND ENVIRONMENT,CAR 2000 HEYWOOD LLP,04/04/2016,1425,TAXI HIRE,V000995327
ROCHDALE BOROUGH COUNCIL,04/04/2016,NEIGHBOURHOODS AND ENVIRONMENT,CAR 2000 HEYWOOD LLP,04/04/2016,970,TAXI HIRE,V000995329
ROCHDALE BOROUGH COUNCIL,04/04/2016,NEIGHBOURHOODS AND ENVIRONMENT,CAR 2000 HEYWOOD LLP,04/04/2016,752,TAXI HIRE,V000995330
ROCHDALE BOROUGH COUNCIL,04/04/2016,NEIGHBOURHOODS AND ENVIRONMENT,CAR 2000 HEYWOOD LLP,04/04/2016,1034,TAXI HIRE,V000995330
ROCHDALE BOROUGH COUNCIL,04/04/2016,NEIGHBOURHOODS AND ENVIRONMENT,H A BURROW,04/04/2016,604,TAXI HIRE,V000995337
ROCHDALE BOROUGH COUNCIL,04/04/2016,NEIGHBOURHOODS AND ENVIRONMENT,H A BURROW,04/04/2016,726,TAXI HIRE,V000995338
ROCHDALE BOROUGH COUNCIL,04/04/2016,NEIGHBOURHOODS AND ENVIRONMENT,S P EXECUTIVE TRAVEL,04/04/2016,1980,TAXI HIRE,V000995339
ROCHDALE BOROUGH COUNCIL,04/04/2016,NEIGHBOURHOODS AND ENVIRONMENT,COACH OPTIONS LIMITED,04/04/2016,2160,TAXI HIRE,V000995342
ROCHDALE BOROUGH COUNCIL,04/04/2016,NEIGHBOURHOODS AND ENVIRONMENT,STREAMLINE TAXIS,04/04/2016,787,TAXI HIRE,V000995343
ROCHDALE BOROUGH COUNCIL,04/04/2016,NEIGHBOURHOODS AND ENVIRONMENT,COACH OPTIONS LIMITED,04/04/2016,1617,TAXI HIRE,V000995346
ROCHDALE BOROUGH COUNCIL,04/04/2016,NEIGHBOURHOODS AND ENVIRONMENT,DALE INDUSTRIAL SERVICES LIMITED,04/04/2016,1980,TAXI HIRE,V000995348
ROCHDALE BOROUGH COUNCIL,04/04/2016,NEIGHBOURHOODS AND ENVIRONMENT,DALE INDUSTRIAL SERVICES LIMITED,04/04/2016,2040,TAXI HIRE,V000995348
ROCHDALE BOROUGH COUNCIL,04/04/2016,NEIGHBOURHOODS AND ENVIRONMENT,DALE INDUSTRIAL SERVICES LIMITED,04/04/2016,2040,TAXI HIRE,V000995348
ROCHDALE BOROUGH COUNCIL,04/04/2016,NEIGHBOURHOODS AND ENVIRONMENT,DALE INDUSTRIAL SERVICES LIMITED,04/04/2016,2040,TAXI HIRE,V000995348
ROCHDALE BOROUGH COUNCIL,04/04/2016,NEIGHBOURHOODS AND ENVIRONMENT,DALE INDUSTRIAL SERVICES LIMITED,04/04/2016,2100,TAXI HIRE,V000995348
ROCHDALE BOROUGH COUNCIL,04/04/2016,NEIGHBOURHOODS AND ENVIRONMENT,DALE INDUSTRIAL SERVICES LIMITED,04/04/2016,2160,TAXI HIRE,V000995348
ROCHDALE BOROUGH COUNCIL,04/04/2016,NEIGHBOURHOODS AND ENVIRONMENT,DALE INDUSTRIAL SERVICES LIMITED,04/04/2016,2304,TAXI HIRE,V000995348
ROCHDALE BOROUGH COUNCIL,04/04/2016,NEIGHBOURHOODS AND ENVIRONMENT,DALE INDUSTRIAL SERVICES LIMITED,04/04/2016,1080,TAXI HIRE,V000995349
ROCHDALE BOROUGH COUNCIL,04/04/2016,NEIGHBOURHOODS AND ENVIRONMENT,DALE INDUSTRIAL SERVICES LIMITED,04/04/2016,2360,TAXI HIRE,V000995349
ROCHDALE BOROUGH COUNCIL,04/04/2016,NEIGHBOURHOODS AND ENVIRONMENT,DALE INDUSTRIAL SERVICES LIMITED,04/04/2016,2520,TAXI HIRE,V000995349
ROCHDALE BOROUGH COUNCIL,04/04/2016,NEIGHBOURHOODS AND ENVIRONMENT,DALE INDUSTRIAL SERVICES LIMITED,04/04/2016,3240,TAXI HIRE,V000995349
ROCHDALE BOROUGH COUNCIL,04/04/2016,NEIGHBOURHOODS AND ENVIRONMENT,LITTLEBOROUGH PRIVATE HIRE,04/04/2016,840,TAXI HIRE,V000995350
ROCHDALE BOROUGH COUNCIL,04/04/2016,NEIGHBOURHOODS AND ENVIRONMENT,MILNROW CARS,04/04/2016,720,TAXI HIRE,V000995351
ROCHDALE BOROUGH COUNCIL,06/04/2016,NEIGHBOURHOODS AND ENVIRONMENT,BRAKE BROS FOOD SERVICE LTD,06/04/2016,513.56,PROVISIONS,V000995360
ROCHDALE BOROUGH COUNCIL,06/04/2016,NEIGHBOURHOODS AND ENVIRONMENT,BRAKE BROS FOOD SERVICE LTD,06/04/2016,524.62,PROVISIONS,V000995360
ROCHDALE BOROUGH COUNCIL,06/04/2016,NEIGHBOURHOODS AND ENVIRONMENT,BRAKE BROS FOOD SERVICE LTD,06/04/2016,546.16,PROVISIONS,V000995360
ROCHDALE BOROUGH COUNCIL,06/04/2016,NEIGHBOURHOODS AND ENVIRONMENT,BRAKE BROS FOOD SERVICE LTD,06/04/2016,567.21,PROVISIONS,V000995360
ROCHDALE BOROUGH COUNCIL,06/04/2016,NEIGHBOURHOODS AND ENVIRONMENT,BRAKE BROS FOOD SERVICE LTD,06/04/2016,679.19,PROVISIONS,V000995360
ROCHDALE BOROUGH COUNCIL,06/04/2016,NEIGHBOURHOODS AND ENVIRONMENT,BRAKE BROS FOOD SERVICE LTD,06/04/2016,716.11,PROVISIONS,V000995360
ROCHDALE BOROUGH COUNCIL,06/04/2016,CHILDREN�S SOCIAL CARE,RICOH UK LTD,06/04/2016,528.35,REPROGRAPHIC EXPENSES,V000995361
ROCHDALE BOROUGH COUNCIL,06/04/2016,PHYSICAL DIS & OLDER PEOPLE,RICOH UK LTD,06/04/2016,537.69,REPROGRAPHIC EXPENSES,V000995361
ROCHDALE BOROUGH COUNCIL,06/04/2016,FINANCE SERVICES,RICOH UK LTD,06/04/2016,570.71,REPROGRAPHIC EXPENSES,V000995361
ROCHDALE BOROUGH COUNCIL,06/04/2016,CHILDREN�S SOCIAL CARE,RICOH UK LTD,06/04/2016,616.94,REPROGRAPHIC EXPENSES,V000995361
ROCHDALE BOROUGH COUNCIL,06/04/2016,EARLY HELP AND SCHOOLS,RICOH UK LTD,06/04/2016,631.33,REPROGRAPHIC EXPENSES,V000995361
ROCHDALE BOROUGH COUNCIL,06/04/2016,FINANCE SERVICES,RICOH UK LTD,06/04/2016,640.3,REPROGRAPHIC EXPENSES,V000995361
ROCHDALE BOROUGH COUNCIL,06/04/2016,FINANCE SERVICES,RICOH UK LTD,06/04/2016,695.26,REPROGRAPHIC EXPENSES,V000995361
ROCHDALE BOROUGH COUNCIL,06/04/2016,PHYSICAL DIS & OLDER PEOPLE,RICOH UK LTD,06/04/2016,722.67,REPROGRAPHIC EXPENSES,V000995361
ROCHDALE BOROUGH COUNCIL,06/04/2016,NEIGHBOURHOODS AND ENVIRONMENT,RICOH UK LTD,06/04/2016,1232.83,REPROGRAPHIC EXPENSES,V000995361
ROCHDALE BOROUGH COUNCIL,06/04/2016,FINANCE SERVICES,RICOH UK LTD,06/04/2016,1735.65,REPROGRAPHIC EXPENSES,V000995361
ROCHDALE BOROUGH COUNCIL,06/04/2016,NEIGHBOURHOODS AND ENVIRONMENT,RICOH UK LTD,06/04/2016,1837.65,REPROGRAPHIC EXPENSES,V000995361
ROCHDALE BOROUGH COUNCIL,06/04/2016,CHILDREN�S SOCIAL CARE,RICOH UK LTD,06/04/2016,2150.47,REPROGRAPHIC EXPENSES,V000995361
ROCHDALE BOROUGH COUNCIL,06/04/2016,ECONOMY DIRECTORATE,NORTH WEST EVERGREEN LTD PARTNERSHIP,06/04/2016,25000,AGMA,V000995363
ROCHDALE BOROUGH COUNCIL,15/04/2016,NEIGHBOURHOODS AND ENVIRONMENT,ACT NOW TRAINING LIMITED,15/04/2016,1200,TRAINING,V000995365
ROCHDALE BOROUGH COUNCIL,15/04/2016,PROPERTY AND HIGHWAYS,AIRBORNE ENVIRONMENTAL CONSULTANTS LTD,15/04/2016,800,MAINTENANCE,V000995366
ROCHDALE BOROUGH COUNCIL,06/04/2016,NEIGHBOURHOODS AND ENVIRONMENT,UNITED UTILITIES WATER PLC,06/04/2016,787.5,WATER CHARGES,V000995367
ROCHDALE BOROUGH COUNCIL,14/04/2016,PROPERTY AND HIGHWAYS,H ROTHWELL & CO LTD,14/04/2016,660.05,MAINTENANCE,V000995373
ROCHDALE BOROUGH COUNCIL,06/04/2016,NEIGHBOURHOODS AND ENVIRONMENT,UNITED UTILITIES WATER PLC,06/04/2016,577.53,WATER CHARGES,V000995374
ROCHDALE BOROUGH COUNCIL,06/04/2016,NEIGHBOURHOODS AND ENVIRONMENT,UNITED UTILITIES WATER PLC,06/04/2016,525,WATER CHARGES,V000995375
ROCHDALE BOROUGH COUNCIL,06/04/2016,EARLY HELP AND SCHOOLS,JOHN ABBOTT LTD,06/04/2016,3827.5,IMPROVEMENTS-MODERNISATION,V000995376
ROCHDALE BOROUGH COUNCIL,06/04/2016,PUBLIC HEALTH,AUSTIN WELCH,06/04/2016,2770.5,FEES / COMMISSION,V000995380
ROCHDALE BOROUGH COUNCIL,14/04/2016,PROPERTY AND HIGHWAYS,KABERRY CONSTRUCTION LIMITED,14/04/2016,5418.28,TRANSACTIONS-EXPENDITURE,V000995383
ROCHDALE BOROUGH COUNCIL,14/04/2016,PROPERTY AND HIGHWAYS,KABERRY CONSTRUCTION LIMITED,14/04/2016,27091.4,IMPROVEMENTS-MODERNISATION,V000995383
ROCHDALE BOROUGH COUNCIL,14/04/2016,PROPERTY AND HIGHWAYS,TOMAX BUILDING SERVICES LTD,14/04/2016,3541.43,TRANSACTIONS-EXPENDITURE,V000995387
ROCHDALE BOROUGH COUNCIL,14/04/2016,PROPERTY AND HIGHWAYS,TOMAX BUILDING SERVICES LTD,14/04/2016,7161,IMPROVEMENTS-MODERNISATION,V000995387
ROCHDALE BOROUGH COUNCIL,14/04/2016,NEIGHBOURHOODS AND ENVIRONMENT,TOMAX BUILDING SERVICES LTD,14/04/2016,10546.14,IMPROVEMENTS-MODERNISATION,V000995387
ROCHDALE BOROUGH COUNCIL,08/04/2016,PROPERTY AND HIGHWAYS,J COONEY LTD,08/04/2016,17532.54,TRANSACTIONS-EXPENDITURE,V000995388
ROCHDALE BOROUGH COUNCIL,08/04/2016,PROPERTY AND HIGHWAYS,J COONEY LTD,08/04/2016,87662.71,IMPROVEMENTS-MODERNISATION,V000995388
ROCHDALE BOROUGH COUNCIL,06/04/2016,PHYSICAL DIS & OLDER PEOPLE,SUNSHINE CARE CO-OP,06/04/2016,2509.06,HOME CARE - ADULT SERVICES,V000995389
ROCHDALE BOROUGH COUNCIL,06/04/2016,PHYSICAL DIS & OLDER PEOPLE,SEVACARE,06/04/2016,13879.08,HOME CARE - ADULT SERVICES,V000995390
ROCHDALE BOROUGH COUNCIL,06/04/2016,PHYSICAL DIS & OLDER PEOPLE,PREMIER CARE,06/04/2016,10098,HOME CARE - ADULT SERVICES,V000995392
ROCHDALE BOROUGH COUNCIL,06/04/2016,PHYSICAL DIS & OLDER PEOPLE,THE MEARS GROUP,06/04/2016,931.82,HOME CARE - ADULT SERVICES,V000995393
ROCHDALE BOROUGH COUNCIL,06/04/2016,PHYSICAL DIS & OLDER PEOPLE,HOMECARE4U LTD,06/04/2016,5739.77,HOME CARE - ADULT SERVICES,V000995394
ROCHDALE BOROUGH COUNCIL,06/04/2016,PHYSICAL DIS & OLDER PEOPLE,HG CARE SERVICES LIMITED,06/04/2016,3670.7,HOME CARE - ADULT SERVICES,V000995395
ROCHDALE BOROUGH COUNCIL,06/04/2016,PHYSICAL DIS & OLDER PEOPLE,HOMECARE SUPPORT,06/04/2016,2666.3,HOME CARE - ADULT SERVICES,V000995397
ROCHDALE BOROUGH COUNCIL,06/04/2016,PHYSICAL DIS & OLDER PEOPLE,GRACE LIVE IN CARERS,06/04/2016,938.95,HOME CARE - ADULT SERVICES,V000995398
ROCHDALE BOROUGH COUNCIL,06/04/2016,PHYSICAL DIS & OLDER PEOPLE,DIRECT HEALTH UK LTD,06/04/2016,2425.03,HOME CARE - ADULT SERVICES,V000995399
ROCHDALE BOROUGH COUNCIL,06/04/2016,PHYSICAL DIS & OLDER PEOPLE,CROSSROADS CARE IN GREATER MANCHESTER,06/04/2016,2888.57,HOME CARE - ADULT SERVICES,V000995403
ROCHDALE BOROUGH COUNCIL,06/04/2016,PHYSICAL DIS & OLDER PEOPLE,COTTAGE HOMECARE SERVICES,06/04/2016,3011.47,HOME CARE - ADULT SERVICES,V000995404
ROCHDALE BOROUGH COUNCIL,06/04/2016,NEIGHBOURHOODS AND ENVIRONMENT, HEYWOOD CAR SPECIALISTS,06/04/2016,650,GRANTS TO THE NON VOLUNTARY SECTOR,V000995407
ROCHDALE BOROUGH COUNCIL,06/04/2016,PHYSICAL DIS & OLDER PEOPLE,COMFORT CALL LTD,06/04/2016,12597.12,HOME CARE - ADULT SERVICES,V000995408
ROCHDALE BOROUGH COUNCIL,06/04/2016,PHYSICAL DIS & OLDER PEOPLE,COMMUNITY CARE LINE SERVICES,06/04/2016,4544.86,HOME CARE - ADULT SERVICES,V000995409
ROCHDALE BOROUGH COUNCIL,06/04/2016,PHYSICAL DIS & OLDER PEOPLE,CAREWATCH CARE SERVICES LTD,06/04/2016,4745.3,HOME CARE - ADULT SERVICES,V000995410
ROCHDALE BOROUGH COUNCIL,06/04/2016,PHYSICAL DIS & OLDER PEOPLE,CARE 4 U,06/04/2016,8605.22,HOME CARE - ADULT SERVICES,V000995411
ROCHDALE BOROUGH COUNCIL,06/04/2016,PHYSICAL DIS & OLDER PEOPLE,CALDERDALE HOMECARE LIMITED,06/04/2016,6094.44,HOME CARE - ADULT SERVICES,V000995412
ROCHDALE BOROUGH COUNCIL,06/04/2016,PHYSICAL DIS & OLDER PEOPLE,ALLIED HEALTHCARE GROUP LIMITED,06/04/2016,12316.75,HOME CARE - ADULT SERVICES,V000995413
ROCHDALE BOROUGH COUNCIL,06/04/2016,ECONOMY DIRECTORATE,ROYAL MAIL GROUP PLC,06/04/2016,787,SUPPLIES AND SERVICES PROVISION,V000995416
ROCHDALE BOROUGH COUNCIL,15/04/2016,PROPERTY AND HIGHWAYS,J COONEY LTD,15/04/2016,1100,TRANSACTIONS-EXPENDITURE,V000995417
ROCHDALE BOROUGH COUNCIL,15/04/2016,PROPERTY AND HIGHWAYS,J COONEY LTD,15/04/2016,1800,MAINTENANCE,V000995418
ROCHDALE BOROUGH COUNCIL,06/04/2016,PROPERTY AND HIGHWAYS,YOTTA LIMITED,06/04/2016,8500,CONSULTANT FEES,V000995419
ROCHDALE BOROUGH COUNCIL,06/04/2016,PHYSICAL DIS & OLDER PEOPLE,BUPA CARE HOMES LIMITED,06/04/2016,2407.44,SHORT TERM CARE - RESIDENTIAL,V000995475
ROCHDALE BOROUGH COUNCIL,06/04/2016,PHYSICAL DIS & OLDER PEOPLE,ROSEMARY CARE HOME,06/04/2016,2407.44,ASSESSMENT CARE,V000995476
ROCHDALE BOROUGH COUNCIL,06/04/2016,PHYSICAL DIS & OLDER PEOPLE,EAGLE CARE HOMES LTD,06/04/2016,802.48,SHORT TERM CARE - RESIDENTIAL,V000995477
ROCHDALE BOROUGH COUNCIL,06/04/2016,PHYSICAL DIS & OLDER PEOPLE,BUPA CARE HOMES LIMITED,06/04/2016,2407.44,ASSESSMENT CARE,V000995478
ROCHDALE BOROUGH COUNCIL,06/04/2016,PHYSICAL DIS & OLDER PEOPLE,FOUR SEASONS HEALTHCARE,06/04/2016,2654.1,ASSESSMENT CARE,V000995479
ROCHDALE BOROUGH COUNCIL,06/04/2016,PHYSICAL DIS & OLDER PEOPLE,ANTONI & RIENZIE LTD,06/04/2016,2407.44,SHORT TERM CARE - RESIDENTIAL,V000995480
ROCHDALE BOROUGH COUNCIL,06/04/2016,LEARNING DIS & MENTAL HEALTH,HC ONE LTD,06/04/2016,1769.4,SEWERAGE,V000995481
ROCHDALE BOROUGH COUNCIL,06/04/2016,PHYSICAL DIS & OLDER PEOPLE,FOUR SEASONS HEALTHCARE,06/04/2016,2407.44,SHORT TERM CARE - RESIDENTIAL,V000995482
ROCHDALE BOROUGH COUNCIL,06/04/2016,PHYSICAL DIS & OLDER PEOPLE,LILY CARE LIMITED,06/04/2016,2407.44,ASSESSMENT CARE,V000995483
ROCHDALE BOROUGH COUNCIL,06/04/2016,PHYSICAL DIS & OLDER PEOPLE,EAGLE CARE HOMES LTD,06/04/2016,2211.75,SHORT TERM CARE - RESIDENTIAL,V000995484
ROCHDALE BOROUGH COUNCIL,06/04/2016,LEARNING DIS & MENTAL HEALTH,FIELDHOUSE NURSING HOME,06/04/2016,802.48,ASSESSMENT CARE,V000995485
ROCHDALE BOROUGH COUNCIL,06/04/2016,NEIGHBOURHOODS AND ENVIRONMENT,NEATIC,06/04/2016,625,GRANTS TO THE NON VOLUNTARY SECTOR,V000995486
ROCHDALE BOROUGH COUNCIL,06/04/2016,NEIGHBOURHOODS AND ENVIRONMENT,BETTER DREAMS LTD,06/04/2016,20000,GRANTS TO THE NON VOLUNTARY SECTOR,V000995487
ROCHDALE BOROUGH COUNCIL,06/04/2016,NEIGHBOURHOODS AND ENVIRONMENT,CAFE INTERCHANGE ROCHDALE LTD,06/04/2016,2686,GRANTS TO THE NON VOLUNTARY SECTOR,V000995488
ROCHDALE BOROUGH COUNCIL,06/04/2016,NEIGHBOURHOODS AND ENVIRONMENT,LA MANCHA LTD,06/04/2016,2500,GRANTS TO THE NON VOLUNTARY SECTOR,V000995489
ROCHDALE BOROUGH COUNCIL,06/04/2016,EARLY HELP AND SCHOOLS,AXIOM EDUCATION (ROCHDALE) LIMITED,06/04/2016,31502.12,MEALS,V000995490
ROCHDALE BOROUGH COUNCIL,06/04/2016,FINANCE SERVICES,REDACTED - PERSONAL DATA,06/04/2016,887.05,RENT ALLOWS-PRIVATE TENANTS ST,V000995504
ROCHDALE BOROUGH COUNCIL,06/04/2016,FINANCE SERVICES,REDACTED - PERSONAL DATA,06/04/2016,672,RENT ALLOWS-PRIVATE TENANTS ST,V000995513
ROCHDALE BOROUGH COUNCIL,06/04/2016,FINANCE SERVICES,REDACTED - PERSONAL DATA,06/04/2016,726.95,RENT ALLOWS-PRIVATE TENANTS ST,V000995525
ROCHDALE BOROUGH COUNCIL,07/04/2016,PHYSICAL DIS & OLDER PEOPLE,ROUTES HEALTHCARE (NORTH),07/04/2016,594,PERSONAL BUDGETS - MANAGED,V000995532
ROCHDALE BOROUGH COUNCIL,13/04/2016,PHYSICAL DIS & OLDER PEOPLE,ROUTES HEALTHCARE (NORTH),13/04/2016,709.5,PERSONAL BUDGETS - MANAGED,V000995534
ROCHDALE BOROUGH COUNCIL,07/04/2016,FINANCE SERVICES,SLATER GORDON,07/04/2016,895.5,PROVISIONS UTILISED IN YEAR,V000995535
ROCHDALE BOROUGH COUNCIL,07/04/2016,FINANCE SERVICES,SLATER GORDON,07/04/2016,4030,TRANSACTIONS-EXPENDITURE,V000995535
ROCHDALE BOROUGH COUNCIL,07/04/2016,FINANCE SERVICES,SLATER GORDON,07/04/2016,5074.5,TRANSACTIONS-EXPENDITURE,V000995535
ROCHDALE BOROUGH COUNCIL,07/04/2016,FINANCE SERVICES,DWP,07/04/2016,12337.93,TRANSACTIONS-EXPENDITURE,V000995536
ROCHDALE BOROUGH COUNCIL,07/04/2016,PHYSICAL DIS & OLDER PEOPLE,SIMPLY MOVING AND SLEEPING LTD,07/04/2016,2363.8,IMPROVEMENTS-EXTENSIONS & ALTERATIONS,V000995537
ROCHDALE BOROUGH COUNCIL,08/04/2016,LEARNING DIS & MENTAL HEALTH,HF TRUST LTD,08/04/2016,1977.36,INDIVIDUAL SERVICE FUND,V000995642
ROCHDALE BOROUGH COUNCIL,08/04/2016,LEARNING DIS & MENTAL HEALTH,ALTERNATIVE FUTURES GROUP LTD,08/04/2016,6957.44,INDIVIDUAL SERVICE FUND,V000995643
ROCHDALE BOROUGH COUNCIL,08/04/2016,LEARNING DIS & MENTAL HEALTH,LIFEWAYS COMMUNITY CARE LTD,08/04/2016,1074.52,SUPPORTED LIVING,V000995644
ROCHDALE BOROUGH COUNCIL,08/04/2016,LEARNING DIS & MENTAL HEALTH,LIFEWAYS COMMUNITY CARE LTD,08/04/2016,1925.24,INDIVIDUAL SERVICE FUND,V000995645
ROCHDALE BOROUGH COUNCIL,08/04/2016,LEARNING DIS & MENTAL HEALTH,CAMPHILL M K COMMUNITIES,08/04/2016,1997.52,INDIVIDUAL SERVICE FUND,V000995646
ROCHDALE BOROUGH COUNCIL,08/04/2016,LEARNING DIS & MENTAL HEALTH,RESPITE NORTH WEST LIMITED,08/04/2016,3550.24,INDIVIDUAL SERVICE FUND,V000995647
ROCHDALE BOROUGH COUNCIL,08/04/2016,LEARNING DIS & MENTAL HEALTH,UNITED RESPONSE,08/04/2016,6488.72,SUPPORTED LIVING,V000995648
ROCHDALE BOROUGH COUNCIL,08/04/2016,LEARNING DIS & MENTAL HEALTH,ALTERNATIVE FUTURES GROUP LTD,08/04/2016,3955,INDIVIDUAL SERVICE FUND,V000995649
ROCHDALE BOROUGH COUNCIL,08/04/2016,LEARNING DIS & MENTAL HEALTH,POSSABILITIES CIC ISF,08/04/2016,4048.16,INDIVIDUAL SERVICE FUND,V000995650
ROCHDALE BOROUGH COUNCIL,08/04/2016,LEARNING DIS & MENTAL HEALTH,WELLESLEY HOUSE,08/04/2016,4797.52,INDIVIDUAL SERVICE FUND,V000995651
ROCHDALE BOROUGH COUNCIL,08/04/2016,LEARNING DIS & MENTAL HEALTH,FUTURE DIRECTIONS CIC,08/04/2016,6889,SUPPORTED LIVING,V000995652
ROCHDALE BOROUGH COUNCIL,08/04/2016,LEARNING DIS & MENTAL HEALTH,POSSABILITIES CIC ISF,08/04/2016,660,INDIVIDUAL SERVICE FUND,V000995653
ROCHDALE BOROUGH COUNCIL,08/04/2016,LEARNING DIS & MENTAL HEALTH,ASPIRATIONS CARE LTD,08/04/2016,4398.48,INDIVIDUAL SERVICE FUND,V000995654
ROCHDALE BOROUGH COUNCIL,08/04/2016,LEARNING DIS & MENTAL HEALTH,POSSABILITIES CIC ISF,08/04/2016,651.08,INDIVIDUAL SERVICE FUND,V000995656
ROCHDALE BOROUGH COUNCIL,08/04/2016,LEARNING DIS & MENTAL HEALTH,ALTERNATIVE FUTURES GROUP LTD,08/04/2016,3341.6,INDIVIDUAL SERVICE FUND,V000995658
ROCHDALE BOROUGH COUNCIL,08/04/2016,LEARNING DIS & MENTAL HEALTH,ASPIRATIONS CARE LTD,08/04/2016,4959.36,INDIVIDUAL SERVICE FUND,V000995659
ROCHDALE BOROUGH COUNCIL,08/04/2016,LEARNING DIS & MENTAL HEALTH,HEALEY CARE LIMITED ISF PAYMENTS,08/04/2016,1075.36,INDIVIDUAL SERVICE FUND,V000995660
ROCHDALE BOROUGH COUNCIL,08/04/2016,LEARNING DIS & MENTAL HEALTH,POSSABILITIES CIC ISF,08/04/2016,1061.52,INDIVIDUAL SERVICE FUND,V000995661
ROCHDALE BOROUGH COUNCIL,08/04/2016,LEARNING DIS & MENTAL HEALTH,FUTURE DIRECTIONS CIC,08/04/2016,3265.04,INDIVIDUAL SERVICE FUND,V000995662
ROCHDALE BOROUGH COUNCIL,08/04/2016,LEARNING DIS & MENTAL HEALTH,FUTURE DIRECTIONS CIC,08/04/2016,770.4,INDIVIDUAL SERVICE FUND,V000995664
ROCHDALE BOROUGH COUNCIL,08/04/2016,LEARNING DIS & MENTAL HEALTH,POSSABILITIES CIC ISF,08/04/2016,583.84,INDIVIDUAL SERVICE FUND,V000995666
ROCHDALE BOROUGH COUNCIL,08/04/2016,LEARNING DIS & MENTAL HEALTH,PENDLETON CARE LTD,08/04/2016,6903.6,INDIVIDUAL SERVICE FUND,V000995667
ROCHDALE BOROUGH COUNCIL,08/04/2016,LEARNING DIS & MENTAL HEALTH,FUTURE DIRECTIONS CIC,08/04/2016,3812.72,INDIVIDUAL SERVICE FUND,V000995668
ROCHDALE BOROUGH COUNCIL,08/04/2016,LEARNING DIS & MENTAL HEALTH,HEALEY CARE LIMITED ISF PAYMENTS,08/04/2016,994.12,INDIVIDUAL SERVICE FUND,V000995669
ROCHDALE BOROUGH COUNCIL,08/04/2016,PHYSICAL DIS & OLDER PEOPLE,STEPPING STONES,08/04/2016,2212.72,SUPPORTED LIVING,V000995670
ROCHDALE BOROUGH COUNCIL,08/04/2016,LEARNING DIS & MENTAL HEALTH,POSSABILITIES CIC ISF,08/04/2016,545.76,INDIVIDUAL SERVICE FUND,V000995671
ROCHDALE BOROUGH COUNCIL,08/04/2016,LEARNING DIS & MENTAL HEALTH,LINKABILITY ISF,08/04/2016,1195.2,INDIVIDUAL SERVICE FUND,V000995672
ROCHDALE BOROUGH COUNCIL,08/04/2016,LEARNING DIS & MENTAL HEALTH,FUTURE DIRECTIONS CIC,08/04/2016,2142.65,SUPPORTED LIVING,V000995673
ROCHDALE BOROUGH COUNCIL,08/04/2016,LEARNING DIS & MENTAL HEALTH,FUTURE DIRECTIONS CIC,08/04/2016,5364.4,INDIVIDUAL SERVICE FUND,V000995674
ROCHDALE BOROUGH COUNCIL,08/04/2016,LEARNING DIS & MENTAL HEALTH,PENDLETON CARE LTD,08/04/2016,2758.8,INDIVIDUAL SERVICE FUND,V000995675
ROCHDALE BOROUGH COUNCIL,08/04/2016,LEARNING DIS & MENTAL HEALTH,CIC GROUP EACHSTEP BLACKLEY,08/04/2016,1530.26,SUPPORTED LIVING,V000995676
ROCHDALE BOROUGH COUNCIL,08/04/2016,LEARNING DIS & MENTAL HEALTH,POSSABILITIES CIC ISF,08/04/2016,850.4,INDIVIDUAL SERVICE FUND,V000995677
ROCHDALE BOROUGH COUNCIL,08/04/2016,LEARNING DIS & MENTAL HEALTH,ALTERNATIVE FUTURES GROUP LTD,08/04/2016,6990.2,INDIVIDUAL SERVICE FUND,V000995678
ROCHDALE BOROUGH COUNCIL,08/04/2016,LEARNING DIS & MENTAL HEALTH,ALTERNATIVE FUTURES GROUP LTD,08/04/2016,3650.64,INDIVIDUAL SERVICE FUND,V000995679
ROCHDALE BOROUGH COUNCIL,08/04/2016,LEARNING DIS & MENTAL HEALTH,LIFEWAYS COMMUNITY CARE LTD,08/04/2016,1608.26,SUPPORTED LIVING,V000995680
ROCHDALE BOROUGH COUNCIL,08/04/2016,LEARNING DIS & MENTAL HEALTH,CIC GROUP EACHSTEP BLACKLEY,08/04/2016,2500.76,SUPPORTED LIVING,V000995681
ROCHDALE BOROUGH COUNCIL,08/04/2016,LEARNING DIS & MENTAL HEALTH,CIC GROUP EACHSTEP BLACKLEY,08/04/2016,615.52,INDIVIDUAL SERVICE FUND,V000995683
ROCHDALE BOROUGH COUNCIL,08/04/2016,LEARNING DIS & MENTAL HEALTH,CIC GROUP EACHSTEP BLACKLEY,08/04/2016,2101.36,INDIVIDUAL SERVICE FUND,V000995686
ROCHDALE BOROUGH COUNCIL,08/04/2016,LEARNING DIS & MENTAL HEALTH,FUTURE DIRECTIONS CIC,08/04/2016,4628,INDIVIDUAL SERVICE FUND,V000995689
ROCHDALE BOROUGH COUNCIL,08/04/2016,LEARNING DIS & MENTAL HEALTH,FUTURE DIRECTIONS CIC,08/04/2016,6363,INDIVIDUAL SERVICE FUND,V000995690
ROCHDALE BOROUGH COUNCIL,08/04/2016,LEARNING DIS & MENTAL HEALTH,FUTURE DIRECTIONS CIC,08/04/2016,1721.84,INDIVIDUAL SERVICE FUND,V000995691
ROCHDALE BOROUGH COUNCIL,08/04/2016,LEARNING DIS & MENTAL HEALTH,FUTURE DIRECTIONS CIC,08/04/2016,5943,INDIVIDUAL SERVICE FUND,V000995692
ROCHDALE BOROUGH COUNCIL,08/04/2016,LEARNING DIS & MENTAL HEALTH,FUTURE DIRECTIONS CIC,08/04/2016,3699,SUPPORTED LIVING,V000995693
ROCHDALE BOROUGH COUNCIL,08/04/2016,LEARNING DIS & MENTAL HEALTH,FUTURE DIRECTIONS CIC,08/04/2016,3699,SUPPORTED LIVING,V000995694
ROCHDALE BOROUGH COUNCIL,08/04/2016,LEARNING DIS & MENTAL HEALTH,FUTURE DIRECTIONS CIC,08/04/2016,3699,SUPPORTED LIVING,V000995695
ROCHDALE BOROUGH COUNCIL,08/04/2016,LEARNING DIS & MENTAL HEALTH,CIC GROUP EACHSTEP BLACKLEY,08/04/2016,2423.24,INDIVIDUAL SERVICE FUND,V000995696
ROCHDALE BOROUGH COUNCIL,08/04/2016,LEARNING DIS & MENTAL HEALTH,CIC GROUP EACHSTEP BLACKLEY,08/04/2016,2249.92,INDIVIDUAL SERVICE FUND,V000995697
ROCHDALE BOROUGH COUNCIL,08/04/2016,LEARNING DIS & MENTAL HEALTH,FUTURE DIRECTIONS CIC,08/04/2016,2431.96,INDIVIDUAL SERVICE FUND,V000995698
ROCHDALE BOROUGH COUNCIL,08/04/2016,LEARNING DIS & MENTAL HEALTH,FUTURE DIRECTIONS CIC,08/04/2016,4514.3,SUPPORTED LIVING,V000995699
ROCHDALE BOROUGH COUNCIL,08/04/2016,LEARNING DIS & MENTAL HEALTH,FUTURE DIRECTIONS CIC,08/04/2016,2817.95,SUPPORTED LIVING,V000995700
ROCHDALE BOROUGH COUNCIL,08/04/2016,LEARNING DIS & MENTAL HEALTH,FUTURE DIRECTIONS CIC,08/04/2016,4496.52,INDIVIDUAL SERVICE FUND,V000995701
ROCHDALE BOROUGH COUNCIL,08/04/2016,LEARNING DIS & MENTAL HEALTH,FUTURE DIRECTIONS CIC,08/04/2016,5903.55,SUPPORTED LIVING,V000995702
ROCHDALE BOROUGH COUNCIL,08/04/2016,LEARNING DIS & MENTAL HEALTH,FUTURE DIRECTIONS CIC,08/04/2016,3865.3,SUPPORTED LIVING,V000995703
ROCHDALE BOROUGH COUNCIL,08/04/2016,LEARNING DIS & MENTAL HEALTH,FUTURE DIRECTIONS CIC,08/04/2016,4680.6,INDIVIDUAL SERVICE FUND,V000995704
ROCHDALE BOROUGH COUNCIL,08/04/2016,LEARNING DIS & MENTAL HEALTH,FUTURE DIRECTIONS CIC,08/04/2016,3641.75,SUPPORTED LIVING,V000995705
ROCHDALE BOROUGH COUNCIL,08/04/2016,LEARNING DIS & MENTAL HEALTH,FUTURE DIRECTIONS CIC,08/04/2016,3181.5,SUPPORTED LIVING,V000995706
ROCHDALE BOROUGH COUNCIL,08/04/2016,LEARNING DIS & MENTAL HEALTH,FUTURE DIRECTIONS CIC,08/04/2016,4891,SUPPORTED LIVING,V000995707
ROCHDALE BOROUGH COUNCIL,08/04/2016,LEARNING DIS & MENTAL HEALTH,FUTURE DIRECTIONS CIC,08/04/2016,1537.76,INDIVIDUAL SERVICE FUND,V000995708
ROCHDALE BOROUGH COUNCIL,08/04/2016,LEARNING DIS & MENTAL HEALTH,FUTURE DIRECTIONS CIC,08/04/2016,1985.65,SUPPORTED LIVING,V000995709
ROCHDALE BOROUGH COUNCIL,08/04/2016,LEARNING DIS & MENTAL HEALTH,FUTURE DIRECTIONS CIC,08/04/2016,4089.25,SUPPORTED LIVING,V000995710
ROCHDALE BOROUGH COUNCIL,08/04/2016,LEARNING DIS & MENTAL HEALTH,CIC GROUP EACHSTEP BLACKLEY,08/04/2016,3684.38,SUPPORTED LIVING,V000995711
ROCHDALE BOROUGH COUNCIL,08/04/2016,LEARNING DIS & MENTAL HEALTH,FUTURE DIRECTIONS CIC,08/04/2016,4474.84,INDIVIDUAL SERVICE FUND,V000995712
ROCHDALE BOROUGH COUNCIL,08/04/2016,LEARNING DIS & MENTAL HEALTH,FUTURE DIRECTIONS CIC,08/04/2016,4891,SUPPORTED LIVING,V000995713
ROCHDALE BOROUGH COUNCIL,08/04/2016,LEARNING DIS & MENTAL HEALTH,LINKABILITY ISF,08/04/2016,1743,INDIVIDUAL SERVICE FUND,V000995714
ROCHDALE BOROUGH COUNCIL,08/04/2016,LEARNING DIS & MENTAL HEALTH,FUTURE DIRECTIONS CIC,08/04/2016,5022.5,SUPPORTED LIVING,V000995715
ROCHDALE BOROUGH COUNCIL,08/04/2016,LEARNING DIS & MENTAL HEALTH,FUTURE DIRECTIONS CIC,08/04/2016,3681.6,INDIVIDUAL SERVICE FUND,V000995716
ROCHDALE BOROUGH COUNCIL,08/04/2016,LEARNING DIS & MENTAL HEALTH,FUTURE DIRECTIONS CIC,08/04/2016,2577,INDIVIDUAL SERVICE FUND,V000995717
ROCHDALE BOROUGH COUNCIL,08/04/2016,LEARNING DIS & MENTAL HEALTH,FUTURE DIRECTIONS CIC,08/04/2016,4303.92,INDIVIDUAL SERVICE FUND,V000995718
ROCHDALE BOROUGH COUNCIL,08/04/2016,LEARNING DIS & MENTAL HEALTH,FUTURE DIRECTIONS CIC,08/04/2016,3922.56,INDIVIDUAL SERVICE FUND,V000995719
ROCHDALE BOROUGH COUNCIL,08/04/2016,LEARNING DIS & MENTAL HEALTH,FUTURE DIRECTIONS CIC,08/04/2016,3067.8,INDIVIDUAL SERVICE FUND,V000995720
ROCHDALE BOROUGH COUNCIL,08/04/2016,LEARNING DIS & MENTAL HEALTH,FUTURE DIRECTIONS CIC,08/04/2016,3067.8,INDIVIDUAL SERVICE FUND,V000995721
ROCHDALE BOROUGH COUNCIL,08/04/2016,LEARNING DIS & MENTAL HEALTH,FUTURE DIRECTIONS CIC,08/04/2016,3080.96,INDIVIDUAL SERVICE FUND,V000995722
ROCHDALE BOROUGH COUNCIL,08/04/2016,LEARNING DIS & MENTAL HEALTH,FUTURE DIRECTIONS CIC,08/04/2016,5995.6,INDIVIDUAL SERVICE FUND,V000995723
ROCHDALE BOROUGH COUNCIL,08/04/2016,LEARNING DIS & MENTAL HEALTH,FUTURE DIRECTIONS CIC,08/04/2016,4838.4,INDIVIDUAL SERVICE FUND,V000995724
ROCHDALE BOROUGH COUNCIL,08/04/2016,LEARNING DIS & MENTAL HEALTH,FUTURE DIRECTIONS CIC,08/04/2016,5154,INDIVIDUAL SERVICE FUND,V000995725
ROCHDALE BOROUGH COUNCIL,08/04/2016,LEARNING DIS & MENTAL HEALTH,CIC GROUP EACHSTEP BLACKLEY,08/04/2016,-1683.24,SUPPORTED LIVING,V000995726
ROCHDALE BOROUGH COUNCIL,08/04/2016,LEARNING DIS & MENTAL HEALTH,CIC GROUP EACHSTEP BLACKLEY,08/04/2016,1683.24,INDIVIDUAL SERVICE FUND,V000995727
ROCHDALE BOROUGH COUNCIL,08/04/2016,LEARNING DIS & MENTAL HEALTH,CIC GROUP EACHSTEP BLACKLEY,08/04/2016,1745.58,INDIVIDUAL SERVICE FUND,V000995728
ROCHDALE BOROUGH COUNCIL,08/04/2016,LEARNING DIS & MENTAL HEALTH,CIC GROUP EACHSTEP BLACKLEY,08/04/2016,3944.36,INDIVIDUAL SERVICE FUND,V000995729
ROCHDALE BOROUGH COUNCIL,08/04/2016,LEARNING DIS & MENTAL HEALTH,CIC GROUP EACHSTEP BLACKLEY,08/04/2016,1295.04,SUPPORTED LIVING,V000995730
ROCHDALE BOROUGH COUNCIL,08/04/2016,LEARNING DIS & MENTAL HEALTH,NEWBARN LTD,08/04/2016,1300,INDIVIDUAL SERVICE FUND,V000995731
ROCHDALE BOROUGH COUNCIL,08/04/2016,LEARNING DIS & MENTAL HEALTH,FUTURE DIRECTIONS CIC,08/04/2016,3313,INDIVIDUAL SERVICE FUND,V000995732
ROCHDALE BOROUGH COUNCIL,08/04/2016,LEARNING DIS & MENTAL HEALTH,FUTURE DIRECTIONS CIC,08/04/2016,3181.5,SUPPORTED LIVING,V000995733
ROCHDALE BOROUGH COUNCIL,08/04/2016,LEARNING DIS & MENTAL HEALTH,ALTERNATIVE FUTURES GROUP LTD,08/04/2016,595.35,SUPPORTED LIVING,V000995734
ROCHDALE BOROUGH COUNCIL,08/04/2016,LEARNING DIS & MENTAL HEALTH,HEALEY CARE LIMITED ISF PAYMENTS,08/04/2016,5617.48,INDIVIDUAL SERVICE FUND,V000995735
ROCHDALE BOROUGH COUNCIL,08/04/2016,LEARNING DIS & MENTAL HEALTH,ALTERNATIVE FUTURES GROUP LTD,08/04/2016,4483.43,SUPPORTED LIVING,V000995736
ROCHDALE BOROUGH COUNCIL,08/04/2016,LEARNING DIS & MENTAL HEALTH,ALTERNATIVE FUTURES GROUP LTD,08/04/2016,1217.16,INDIVIDUAL SERVICE FUND,V000995737
ROCHDALE BOROUGH COUNCIL,08/04/2016,LEARNING DIS & MENTAL HEALTH,ALTERNATIVE FUTURES GROUP LTD,08/04/2016,5039.88,INDIVIDUAL SERVICE FUND,V000995738
ROCHDALE BOROUGH COUNCIL,08/04/2016,LEARNING DIS & MENTAL HEALTH,ALTERNATIVE FUTURES GROUP LTD,08/04/2016,3836.28,INDIVIDUAL SERVICE FUND,V000995739
ROCHDALE BOROUGH COUNCIL,08/04/2016,LEARNING DIS & MENTAL HEALTH,ALTERNATIVE FUTURES GROUP LTD,08/04/2016,3042.48,SUPPORTED LIVING,V000995740
ROCHDALE BOROUGH COUNCIL,08/04/2016,LEARNING DIS & MENTAL HEALTH,ALTERNATIVE FUTURES GROUP LTD,08/04/2016,3042.48,INDIVIDUAL SERVICE FUND,V000995741
ROCHDALE BOROUGH COUNCIL,08/04/2016,LEARNING DIS & MENTAL HEALTH,ALTERNATIVE FUTURES GROUP LTD,08/04/2016,3320.31,SUPPORTED LIVING,V000995742
ROCHDALE BOROUGH COUNCIL,08/04/2016,LEARNING DIS & MENTAL HEALTH,ALTERNATIVE FUTURES GROUP LTD,08/04/2016,3320.31,SUPPORTED LIVING,V000995743
ROCHDALE BOROUGH COUNCIL,08/04/2016,LEARNING DIS & MENTAL HEALTH,ALTERNATIVE FUTURES GROUP LTD,08/04/2016,4656.54,SUPPORTED LIVING,V000995744
ROCHDALE BOROUGH COUNCIL,08/04/2016,LEARNING DIS & MENTAL HEALTH,ALTERNATIVE FUTURES GROUP LTD,08/04/2016,3579.72,INDIVIDUAL SERVICE FUND,V000995745
ROCHDALE BOROUGH COUNCIL,08/04/2016,LEARNING DIS & MENTAL HEALTH,ALTERNATIVE FUTURES GROUP LTD,08/04/2016,2971.15,SUPPORTED LIVING,V000995746
ROCHDALE BOROUGH COUNCIL,08/04/2016,LEARNING DIS & MENTAL HEALTH,ALTERNATIVE FUTURES GROUP LTD,08/04/2016,5502.91,SUPPORTED LIVING,V000995747
ROCHDALE BOROUGH COUNCIL,08/04/2016,LEARNING DIS & MENTAL HEALTH,ALTERNATIVE FUTURES GROUP LTD,08/04/2016,2870.14,SUPPORTED LIVING,V000995748
ROCHDALE BOROUGH COUNCIL,08/04/2016,LEARNING DIS & MENTAL HEALTH,ALTERNATIVE FUTURES GROUP LTD,08/04/2016,6587,SUPPORTED LIVING,V000995749
ROCHDALE BOROUGH COUNCIL,08/04/2016,LEARNING DIS & MENTAL HEALTH,NEWBARN LTD,08/04/2016,3666,INDIVIDUAL SERVICE FUND,V000995750
ROCHDALE BOROUGH COUNCIL,08/04/2016,LEARNING DIS & MENTAL HEALTH,NEWBARN LTD,08/04/2016,1558.68,INDIVIDUAL SERVICE FUND,V000995751
ROCHDALE BOROUGH COUNCIL,08/04/2016,LEARNING DIS & MENTAL HEALTH,ALTERNATIVE FUTURES GROUP LTD,08/04/2016,3700.44,INDIVIDUAL SERVICE FUND,V000995752
ROCHDALE BOROUGH COUNCIL,08/04/2016,LEARNING DIS & MENTAL HEALTH,ALTERNATIVE FUTURES GROUP LTD,08/04/2016,3592.96,SUPPORTED LIVING,V000995753
ROCHDALE BOROUGH COUNCIL,08/04/2016,LEARNING DIS & MENTAL HEALTH,ALTERNATIVE FUTURES GROUP LTD,08/04/2016,4153.44,INDIVIDUAL SERVICE FUND,V000995754
ROCHDALE BOROUGH COUNCIL,08/04/2016,LEARNING DIS & MENTAL HEALTH,ALTERNATIVE FUTURES GROUP LTD,08/04/2016,4193.12,INDIVIDUAL SERVICE FUND,V000995755
ROCHDALE BOROUGH COUNCIL,08/04/2016,LEARNING DIS & MENTAL HEALTH,ALTERNATIVE FUTURES GROUP LTD,08/04/2016,5701.36,SUPPORTED LIVING,V000995756
ROCHDALE BOROUGH COUNCIL,08/04/2016,LEARNING DIS & MENTAL HEALTH,ALTERNATIVE FUTURES GROUP LTD,08/04/2016,5900.16,SUPPORTED LIVING,V000995757
ROCHDALE BOROUGH COUNCIL,08/04/2016,LEARNING DIS & MENTAL HEALTH,ALTERNATIVE FUTURES GROUP LTD,08/04/2016,1282.88,INDIVIDUAL SERVICE FUND,V000995758
ROCHDALE BOROUGH COUNCIL,08/04/2016,LEARNING DIS & MENTAL HEALTH,ALTERNATIVE FUTURES GROUP LTD,08/04/2016,3875.97,SUPPORTED LIVING,V000995759
ROCHDALE BOROUGH COUNCIL,08/04/2016,LEARNING DIS & MENTAL HEALTH,ALTERNATIVE FUTURES GROUP LTD,08/04/2016,3875.97,SUPPORTED LIVING,V000995760
ROCHDALE BOROUGH COUNCIL,08/04/2016,LEARNING DIS & MENTAL HEALTH,ALTERNATIVE FUTURES GROUP LTD,08/04/2016,2724.96,INDIVIDUAL SERVICE FUND,V000995761
ROCHDALE BOROUGH COUNCIL,08/04/2016,LEARNING DIS & MENTAL HEALTH,ALTERNATIVE FUTURES GROUP LTD,08/04/2016,5265.12,SUPPORTED LIVING,V000995762
ROCHDALE BOROUGH COUNCIL,08/04/2016,LEARNING DIS & MENTAL HEALTH,ALTERNATIVE FUTURES GROUP LTD,08/04/2016,4734.8,INDIVIDUAL SERVICE FUND,V000995763
ROCHDALE BOROUGH COUNCIL,08/04/2016,LEARNING DIS & MENTAL HEALTH,ALTERNATIVE FUTURES GROUP LTD,08/04/2016,4563.6,INDIVIDUAL SERVICE FUND,V000995764
ROCHDALE BOROUGH COUNCIL,08/04/2016,LEARNING DIS & MENTAL HEALTH,ALTERNATIVE FUTURES GROUP LTD,08/04/2016,3849.51,SUPPORTED LIVING,V000995765
ROCHDALE BOROUGH COUNCIL,08/04/2016,LEARNING DIS & MENTAL HEALTH,ALTERNATIVE FUTURES GROUP LTD,08/04/2016,3849.51,SUPPORTED LIVING,V000995766
ROCHDALE BOROUGH COUNCIL,08/04/2016,LEARNING DIS & MENTAL HEALTH,ROYAL MENCAP SOCIETY,08/04/2016,4349.6,INDIVIDUAL SERVICE FUND,V000995767
ROCHDALE BOROUGH COUNCIL,08/04/2016,LEARNING DIS & MENTAL HEALTH,FUTURE DIRECTIONS CIC,08/04/2016,2314,INDIVIDUAL SERVICE FUND,V000995768
ROCHDALE BOROUGH COUNCIL,08/04/2016,LEARNING DIS & MENTAL HEALTH,ROYAL MENCAP SOCIETY,08/04/2016,3287,INDIVIDUAL SERVICE FUND,V000995769
ROCHDALE BOROUGH COUNCIL,08/04/2016,LEARNING DIS & MENTAL HEALTH,ROYAL MENCAP SOCIETY,08/04/2016,3742.4,INDIVIDUAL SERVICE FUND,V000995770
ROCHDALE BOROUGH COUNCIL,08/04/2016,LEARNING DIS & MENTAL HEALTH,ROYAL MENCAP SOCIETY,08/04/2016,2654.48,INDIVIDUAL SERVICE FUND,V000995771
ROCHDALE BOROUGH COUNCIL,08/04/2016,LEARNING DIS & MENTAL HEALTH,ROYAL MENCAP SOCIETY,08/04/2016,2654.48,INDIVIDUAL SERVICE FUND,V000995772
ROCHDALE BOROUGH COUNCIL,08/04/2016,LEARNING DIS & MENTAL HEALTH,ROYAL MENCAP SOCIETY,08/04/2016,11634,SUPPORTED LIVING,V000995773
ROCHDALE BOROUGH COUNCIL,08/04/2016,LEARNING DIS & MENTAL HEALTH,POSSABILITIES CIC ISF,08/04/2016,960.72,INDIVIDUAL SERVICE FUND,V000995774
ROCHDALE BOROUGH COUNCIL,08/04/2016,LEARNING DIS & MENTAL HEALTH,ALTERNATIVE FUTURES GROUP LTD,08/04/2016,2772.24,INDIVIDUAL SERVICE FUND,V000995775
ROCHDALE BOROUGH COUNCIL,08/04/2016,LEARNING DIS & MENTAL HEALTH,WELLESLEY HOUSE,08/04/2016,8856.96,SUPPORTED LIVING,V000995776
ROCHDALE BOROUGH COUNCIL,08/04/2016,LEARNING DIS & MENTAL HEALTH,FUTURE DIRECTIONS CIC,08/04/2016,1906.76,INDIVIDUAL SERVICE FUND,V000995777
ROCHDALE BOROUGH COUNCIL,08/04/2016,LEARNING DIS & MENTAL HEALTH,NEWBARN LTD,08/04/2016,884,INDIVIDUAL SERVICE FUND,V000995778
ROCHDALE BOROUGH COUNCIL,08/04/2016,LEARNING DIS & MENTAL HEALTH,ROYAL MENCAP SOCIETY,08/04/2016,2676.25,SUPPORTED LIVING,V000995781
ROCHDALE BOROUGH COUNCIL,08/04/2016,LEARNING DIS & MENTAL HEALTH,ROYAL MENCAP SOCIETY,08/04/2016,2802.76,INDIVIDUAL SERVICE FUND,V000995782
ROCHDALE BOROUGH COUNCIL,08/04/2016,LEARNING DIS & MENTAL HEALTH,ROYAL MENCAP SOCIETY,08/04/2016,3005.16,INDIVIDUAL SERVICE FUND,V000995783
ROCHDALE BOROUGH COUNCIL,08/04/2016,LEARNING DIS & MENTAL HEALTH,ROYAL MENCAP SOCIETY,08/04/2016,3915.95,SUPPORTED LIVING,V000995784
ROCHDALE BOROUGH COUNCIL,08/04/2016,LEARNING DIS & MENTAL HEALTH,ROYAL MENCAP SOCIETY,08/04/2016,4741.75,SUPPORTED LIVING,V000995785
ROCHDALE BOROUGH COUNCIL,08/04/2016,LEARNING DIS & MENTAL HEALTH,ROYAL MENCAP SOCIETY,08/04/2016,5715.8,SUPPORTED LIVING,V000995786
ROCHDALE BOROUGH COUNCIL,08/04/2016,LEARNING DIS & MENTAL HEALTH,POSSABILITIES CIC ISF,08/04/2016,1174.8,INDIVIDUAL SERVICE FUND,V000995787
ROCHDALE BOROUGH COUNCIL,08/04/2016,LEARNING DIS & MENTAL HEALTH,POSSABILITIES CIC ISF,08/04/2016,1174.8,INDIVIDUAL SERVICE FUND,V000995788
ROCHDALE BOROUGH COUNCIL,08/04/2016,LEARNING DIS & MENTAL HEALTH,POSSABILITIES CIC ISF,08/04/2016,2657.04,INDIVIDUAL SERVICE FUND,V000995789
ROCHDALE BOROUGH COUNCIL,08/04/2016,LEARNING DIS & MENTAL HEALTH,POSSABILITIES CIC ISF,08/04/2016,3577.2,INDIVIDUAL SERVICE FUND,V000995796
ROCHDALE BOROUGH COUNCIL,08/04/2016,LEARNING DIS & MENTAL HEALTH,POSSABILITIES CIC ISF,08/04/2016,3168,INDIVIDUAL SERVICE FUND,V000995803
ROCHDALE BOROUGH COUNCIL,08/04/2016,LEARNING DIS & MENTAL HEALTH,POSSABILITIES CIC ISF,08/04/2016,3911.04,INDIVIDUAL SERVICE FUND,V000995804
ROCHDALE BOROUGH COUNCIL,08/04/2016,LEARNING DIS & MENTAL HEALTH,POSSABILITIES CIC ISF,08/04/2016,3422.64,INDIVIDUAL SERVICE FUND,V000995806
ROCHDALE BOROUGH COUNCIL,08/04/2016,LEARNING DIS & MENTAL HEALTH,POSSABILITIES CIC ISF,08/04/2016,782.1,INDIVIDUAL SERVICE FUND,V000995807
ROCHDALE BOROUGH COUNCIL,08/04/2016,LEARNING DIS & MENTAL HEALTH,POSSABILITIES CIC ISF,08/04/2016,3589.14,INDIVIDUAL SERVICE FUND,V000995808
ROCHDALE BOROUGH COUNCIL,08/04/2016,LEARNING DIS & MENTAL HEALTH,POSSABILITIES CIC ISF,08/04/2016,711.2,INDIVIDUAL SERVICE FUND,V000995809
ROCHDALE BOROUGH COUNCIL,08/04/2016,LEARNING DIS & MENTAL HEALTH,POSSABILITIES CIC ISF,08/04/2016,571.48,INDIVIDUAL SERVICE FUND,V000995810
ROCHDALE BOROUGH COUNCIL,08/04/2016,LEARNING DIS & MENTAL HEALTH,LINKABILITY ISF,08/04/2016,6223,INDIVIDUAL SERVICE FUND,V000995811
ROCHDALE BOROUGH COUNCIL,08/04/2016,LEARNING DIS & MENTAL HEALTH,POSSABILITIES CIC ISF,08/04/2016,4197.32,INDIVIDUAL SERVICE FUND,V000995814
ROCHDALE BOROUGH COUNCIL,08/04/2016,LEARNING DIS & MENTAL HEALTH,POSSABILITIES CIC ISF,08/04/2016,1900.52,INDIVIDUAL SERVICE FUND,V000995817
ROCHDALE BOROUGH COUNCIL,08/04/2016,LEARNING DIS & MENTAL HEALTH,POSSABILITIES CIC ISF,08/04/2016,4597.44,INDIVIDUAL SERVICE FUND,V000995818
ROCHDALE BOROUGH COUNCIL,08/04/2016,LEARNING DIS & MENTAL HEALTH,POSSABILITIES CIC ISF,08/04/2016,7074.36,INDIVIDUAL SERVICE FUND,V000995819
ROCHDALE BOROUGH COUNCIL,08/04/2016,LEARNING DIS & MENTAL HEALTH,POSSABILITIES CIC ISF,08/04/2016,11640.72,INDIVIDUAL SERVICE FUND,V000995820
ROCHDALE BOROUGH COUNCIL,08/04/2016,LEARNING DIS & MENTAL HEALTH,POSSABILITIES CIC ISF,08/04/2016,3127.56,INDIVIDUAL SERVICE FUND,V000995821
ROCHDALE BOROUGH COUNCIL,08/04/2016,LEARNING DIS & MENTAL HEALTH,POSSABILITIES CIC ISF,08/04/2016,4117.56,INDIVIDUAL SERVICE FUND,V000995822
ROCHDALE BOROUGH COUNCIL,08/04/2016,LEARNING DIS & MENTAL HEALTH,POSSABILITIES CIC ISF,08/04/2016,6466.32,INDIVIDUAL SERVICE FUND,V000995824
ROCHDALE BOROUGH COUNCIL,08/04/2016,LEARNING DIS & MENTAL HEALTH,LIFEWAYS COMMUNITY CARE LTD,08/04/2016,1074.52,SUPPORTED LIVING,V000995825
ROCHDALE BOROUGH COUNCIL,08/04/2016,LEARNING DIS & MENTAL HEALTH,POSSABILITIES CIC ISF,08/04/2016,1355.67,INDIVIDUAL SERVICE FUND,V000995829
ROCHDALE BOROUGH COUNCIL,08/04/2016,LEARNING DIS & MENTAL HEALTH,POSSABILITIES CIC ISF,08/04/2016,2195.04,INDIVIDUAL SERVICE FUND,V000995833
ROCHDALE BOROUGH COUNCIL,08/04/2016,LEARNING DIS & MENTAL HEALTH,POSSABILITIES CIC ISF,08/04/2016,558.8,INDIVIDUAL SERVICE FUND,V000995834
ROCHDALE BOROUGH COUNCIL,08/04/2016,LEARNING DIS & MENTAL HEALTH,POSSABILITIES CIC ISF,08/04/2016,3805.44,INDIVIDUAL SERVICE FUND,V000995835
ROCHDALE BOROUGH COUNCIL,08/04/2016,LEARNING DIS & MENTAL HEALTH,POSSABILITIES CIC ISF,08/04/2016,4666.64,INDIVIDUAL SERVICE FUND,V000995836
ROCHDALE BOROUGH COUNCIL,08/04/2016,LEARNING DIS & MENTAL HEALTH,POSSABILITIES CIC ISF,08/04/2016,3805.44,INDIVIDUAL SERVICE FUND,V000995837
ROCHDALE BOROUGH COUNCIL,08/04/2016,LEARNING DIS & MENTAL HEALTH,POSSABILITIES CIC ISF,08/04/2016,5151.84,INDIVIDUAL SERVICE FUND,V000995838
ROCHDALE BOROUGH COUNCIL,08/04/2016,LEARNING DIS & MENTAL HEALTH,POSSABILITIES CIC ISF,08/04/2016,5798.64,INDIVIDUAL SERVICE FUND,V000995839
ROCHDALE BOROUGH COUNCIL,08/04/2016,LEARNING DIS & MENTAL HEALTH,POSSABILITIES CIC ISF,08/04/2016,5957.04,INDIVIDUAL SERVICE FUND,V000995840
ROCHDALE BOROUGH COUNCIL,08/04/2016,LEARNING DIS & MENTAL HEALTH,POSSABILITIES CIC ISF,08/04/2016,752.4,INDIVIDUAL SERVICE FUND,V000995842
ROCHDALE BOROUGH COUNCIL,08/04/2016,LEARNING DIS & MENTAL HEALTH,POSSABILITIES CIC ISF,08/04/2016,7057.08,INDIVIDUAL SERVICE FUND,V000995843
ROCHDALE BOROUGH COUNCIL,08/04/2016,LEARNING DIS & MENTAL HEALTH,POSSABILITIES CIC ISF,08/04/2016,3277.44,INDIVIDUAL SERVICE FUND,V000995844
ROCHDALE BOROUGH COUNCIL,08/04/2016,LEARNING DIS & MENTAL HEALTH,POSSABILITIES CIC ISF,08/04/2016,5728.36,INDIVIDUAL SERVICE FUND,V000995845
ROCHDALE BOROUGH COUNCIL,08/04/2016,LEARNING DIS & MENTAL HEALTH,POSSABILITIES CIC ISF,08/04/2016,-6739.87,INDIVIDUAL SERVICE FUND,V000995846
ROCHDALE BOROUGH COUNCIL,08/04/2016,LEARNING DIS & MENTAL HEALTH,POSSABILITIES CIC ISF,08/04/2016,-7258.32,INDIVIDUAL SERVICE FUND,V000995847
ROCHDALE BOROUGH COUNCIL,08/04/2016,LEARNING DIS & MENTAL HEALTH,POSSABILITIES CIC ISF,08/04/2016,-7258.32,INDIVIDUAL SERVICE FUND,V000995848
ROCHDALE BOROUGH COUNCIL,08/04/2016,LEARNING DIS & MENTAL HEALTH,POSSABILITIES CIC ISF,08/04/2016,4350.51,INDIVIDUAL SERVICE FUND,V000995849
ROCHDALE BOROUGH COUNCIL,08/04/2016,LEARNING DIS & MENTAL HEALTH,POSSABILITIES CIC ISF,08/04/2016,4685.16,INDIVIDUAL SERVICE FUND,V000995850
ROCHDALE BOROUGH COUNCIL,08/04/2016,LEARNING DIS & MENTAL HEALTH,POSSABILITIES CIC ISF,08/04/2016,4685.16,INDIVIDUAL SERVICE FUND,V000995851
ROCHDALE BOROUGH COUNCIL,08/04/2016,LEARNING DIS & MENTAL HEALTH,POSSABILITIES CIC ISF,08/04/2016,4685.16,INDIVIDUAL SERVICE FUND,V000995852
ROCHDALE BOROUGH COUNCIL,08/04/2016,LEARNING DIS & MENTAL HEALTH,POSSABILITIES CIC ISF,08/04/2016,3726.24,INDIVIDUAL SERVICE FUND,V000995853
ROCHDALE BOROUGH COUNCIL,08/04/2016,LEARNING DIS & MENTAL HEALTH,POSSABILITIES CIC ISF,08/04/2016,1083.36,INDIVIDUAL SERVICE FUND,V000995854
ROCHDALE BOROUGH COUNCIL,08/04/2016,LEARNING DIS & MENTAL HEALTH,POSSABILITIES CIC ISF,08/04/2016,3170.88,INDIVIDUAL SERVICE FUND,V000995855
ROCHDALE BOROUGH COUNCIL,08/04/2016,LEARNING DIS & MENTAL HEALTH,FUTURE DIRECTIONS CIC,08/04/2016,2357.72,INDIVIDUAL SERVICE FUND,V000995856
ROCHDALE BOROUGH COUNCIL,08/04/2016,LEARNING DIS & MENTAL HEALTH,ALTERNATIVE FUTURES GROUP LTD,08/04/2016,1468.53,SUPPORTED LIVING,V000995857
ROCHDALE BOROUGH COUNCIL,08/04/2016,LEARNING DIS & MENTAL HEALTH,ALTERNATIVE FUTURES GROUP LTD,08/04/2016,1971.28,INDIVIDUAL SERVICE FUND,V000995859
ROCHDALE BOROUGH COUNCIL,08/04/2016,LEARNING DIS & MENTAL HEALTH,POSSABILITIES CIC ISF,08/04/2016,708.72,INDIVIDUAL SERVICE FUND,V000995860
ROCHDALE BOROUGH COUNCIL,08/04/2016,LEARNING DIS & MENTAL HEALTH,LINKABILITY ISF,08/04/2016,2975.56,INDIVIDUAL SERVICE FUND,V000995861
ROCHDALE BOROUGH COUNCIL,08/04/2016,LEARNING DIS & MENTAL HEALTH,ALTERNATIVE FUTURES GROUP LTD,08/04/2016,859.96,INDIVIDUAL SERVICE FUND,V000995862
ROCHDALE BOROUGH COUNCIL,08/04/2016,LEARNING DIS & MENTAL HEALTH,FUTURE DIRECTIONS CIC,08/04/2016,2121,SUPPORTED LIVING,V000995863
ROCHDALE BOROUGH COUNCIL,08/04/2016,LEARNING DIS & MENTAL HEALTH,POSSABILITIES CIC ISF,08/04/2016,583.84,INDIVIDUAL SERVICE FUND,V000995864
ROCHDALE BOROUGH COUNCIL,08/04/2016,LEARNING DIS & MENTAL HEALTH,POSSABILITIES CIC ISF,08/04/2016,2177.72,INDIVIDUAL SERVICE FUND,V000995871
ROCHDALE BOROUGH COUNCIL,08/04/2016,LEARNING DIS & MENTAL HEALTH,POSSABILITIES CIC ISF,08/04/2016,2692.8,INDIVIDUAL SERVICE FUND,V000995872
ROCHDALE BOROUGH COUNCIL,08/04/2016,LEARNING DIS & MENTAL HEALTH,FUTURE DIRECTIONS CIC,08/04/2016,4944,INDIVIDUAL SERVICE FUND,V000995873
ROCHDALE BOROUGH COUNCIL,08/04/2016,LEARNING DIS & MENTAL HEALTH,FUTURE DIRECTIONS CIC,08/04/2016,1946.2,INDIVIDUAL SERVICE FUND,V000995874
ROCHDALE BOROUGH COUNCIL,08/04/2016,PHYSICAL DIS & OLDER PEOPLE,COMFORT CALL LTD,08/04/2016,880,INDIVIDUAL SERVICE FUND,V000995875
ROCHDALE BOROUGH COUNCIL,08/04/2016,PHYSICAL DIS & OLDER PEOPLE,COMFORT CALL LTD,08/04/2016,532,INDIVIDUAL SERVICE FUND,V000995877
ROCHDALE BOROUGH COUNCIL,08/04/2016,LEARNING DIS & MENTAL HEALTH,POSSABILITIES CIC ISF,08/04/2016,533.08,INDIVIDUAL SERVICE FUND,V000995878
ROCHDALE BOROUGH COUNCIL,08/04/2016,LEARNING DIS & MENTAL HEALTH,LINKABILITY ISF,08/04/2016,7270.8,INDIVIDUAL SERVICE FUND,V000995879
ROCHDALE BOROUGH COUNCIL,08/04/2016,LEARNING DIS & MENTAL HEALTH,POSSABILITIES CIC ISF,08/04/2016,1115.76,INDIVIDUAL SERVICE FUND,V000995880
ROCHDALE BOROUGH COUNCIL,08/04/2016,LEARNING DIS & MENTAL HEALTH,LINKABILITY ISF,08/04/2016,2597.24,INDIVIDUAL SERVICE FUND,V000995881
ROCHDALE BOROUGH COUNCIL,08/04/2016,LEARNING DIS & MENTAL HEALTH,ALTERNATIVE FUTURES GROUP LTD,08/04/2016,781.2,INDIVIDUAL SERVICE FUND,V000995882
ROCHDALE BOROUGH COUNCIL,08/04/2016,LEARNING DIS & MENTAL HEALTH,LINKABILITY ISF,08/04/2016,3859.52,INDIVIDUAL SERVICE FUND,V000995884
ROCHDALE BOROUGH COUNCIL,08/04/2016,LEARNING DIS & MENTAL HEALTH,LINKABILITY ISF,08/04/2016,2597.24,INDIVIDUAL SERVICE FUND,V000995885
ROCHDALE BOROUGH COUNCIL,08/04/2016,LEARNING DIS & MENTAL HEALTH,LINKABILITY ISF,08/04/2016,634.96,INDIVIDUAL SERVICE FUND,V000995886
ROCHDALE BOROUGH COUNCIL,08/04/2016,LEARNING DIS & MENTAL HEALTH,LINKABILITY ISF,08/04/2016,3285.8,INDIVIDUAL SERVICE FUND,V000995887
ROCHDALE BOROUGH COUNCIL,08/04/2016,LEARNING DIS & MENTAL HEALTH,POSSABILITIES CIC ISF,08/04/2016,842.8,INDIVIDUAL SERVICE FUND,V000995888
ROCHDALE BOROUGH COUNCIL,08/04/2016,LEARNING DIS & MENTAL HEALTH,HEALEY CARE LIMITED ISF PAYMENTS,08/04/2016,5010,INDIVIDUAL SERVICE FUND,V000995889
ROCHDALE BOROUGH COUNCIL,08/04/2016,LEARNING DIS & MENTAL HEALTH,RESPITE NORTH WEST LIMITED,08/04/2016,7222.48,INDIVIDUAL SERVICE FUND,V000995890
ROCHDALE BOROUGH COUNCIL,08/04/2016,LEARNING DIS & MENTAL HEALTH,ALTERNATIVE FUTURES GROUP LTD,08/04/2016,4404.84,INDIVIDUAL SERVICE FUND,V000995891
ROCHDALE BOROUGH COUNCIL,08/04/2016,LEARNING DIS & MENTAL HEALTH,ALTERNATIVE FUTURES GROUP LTD,08/04/2016,882,INDIVIDUAL SERVICE FUND,V000995892
ROCHDALE BOROUGH COUNCIL,08/04/2016,LEARNING DIS & MENTAL HEALTH,POSSABILITIES CIC ISF,08/04/2016,508,INDIVIDUAL SERVICE FUND,V000995893
ROCHDALE BOROUGH COUNCIL,08/04/2016,LEARNING DIS & MENTAL HEALTH,LINKABILITY ISF,08/04/2016,522.92,INDIVIDUAL SERVICE FUND,V000995894
ROCHDALE BOROUGH COUNCIL,08/04/2016,LEARNING DIS & MENTAL HEALTH,LIFEWAYS COMMUNITY CARE LTD,08/04/2016,1329.52,SUPPORTED LIVING,V000995895
ROCHDALE BOROUGH COUNCIL,08/04/2016,LEARNING DIS & MENTAL HEALTH,POSSABILITIES CIC ISF,08/04/2016,1524,INDIVIDUAL SERVICE FUND,V000995897
ROCHDALE BOROUGH COUNCIL,08/04/2016,LEARNING DIS & MENTAL HEALTH,ALTERNATIVE FUTURES GROUP LTD,08/04/2016,3121.52,INDIVIDUAL SERVICE FUND,V000995898
ROCHDALE BOROUGH COUNCIL,08/04/2016,LEARNING DIS & MENTAL HEALTH,FUTURE DIRECTIONS CIC,08/04/2016,2379.75,SUPPORTED LIVING,V000995899
ROCHDALE BOROUGH COUNCIL,08/04/2016,LEARNING DIS & MENTAL HEALTH,STEPPING STONES SERVICES LTD,08/04/2016,-3806.25,INDIVIDUAL SERVICE FUND,V000995901
ROCHDALE BOROUGH COUNCIL,08/04/2016,LEARNING DIS & MENTAL HEALTH,POSSABILITIES CIC ISF,08/04/2016,812.8,INDIVIDUAL SERVICE FUND,V000995902
ROCHDALE BOROUGH COUNCIL,08/04/2016,LEARNING DIS & MENTAL HEALTH,POSSABILITIES CIC ISF,08/04/2016,558.8,INDIVIDUAL SERVICE FUND,V000995903
ROCHDALE BOROUGH COUNCIL,08/04/2016,LEARNING DIS & MENTAL HEALTH,POSSABILITIES CIC ISF,08/04/2016,897.6,INDIVIDUAL SERVICE FUND,V000995907
ROCHDALE BOROUGH COUNCIL,08/04/2016,PHYSICAL DIS & OLDER PEOPLE,ALTERNATIVE FUTURES GROUP LTD,08/04/2016,5193.48,INDIVIDUAL SERVICE FUND,V000995908
ROCHDALE BOROUGH COUNCIL,08/04/2016,LEARNING DIS & MENTAL HEALTH,RESPITE NORTH WEST LIMITED,08/04/2016,8241.4,INDIVIDUAL SERVICE FUND,V000995909
ROCHDALE BOROUGH COUNCIL,08/04/2016,PHYSICAL DIS & OLDER PEOPLE,NEWBARN LTD,08/04/2016,1932.8,INDIVIDUAL SERVICE FUND,V000995910
ROCHDALE BOROUGH COUNCIL,08/04/2016,LEARNING DIS & MENTAL HEALTH,MOUNTBATTON CARE,08/04/2016,8358,INDIVIDUAL SERVICE FUND,V000995912
ROCHDALE BOROUGH COUNCIL,08/04/2016,LEARNING DIS & MENTAL HEALTH,POSSABILITIES CIC ISF,08/04/2016,1478.4,INDIVIDUAL SERVICE FUND,V000995913
ROCHDALE BOROUGH COUNCIL,08/04/2016,LEARNING DIS & MENTAL HEALTH,POSSABILITIES CIC ISF,08/04/2016,762,INDIVIDUAL SERVICE FUND,V000995914
ROCHDALE BOROUGH COUNCIL,08/04/2016,LEARNING DIS & MENTAL HEALTH,POSSABILITIES CIC ISF,08/04/2016,1813.96,INDIVIDUAL SERVICE FUND,V000995915
ROCHDALE BOROUGH COUNCIL,08/04/2016,LEARNING DIS & MENTAL HEALTH,POSSABILITIES CIC ISF,08/04/2016,1026.92,INDIVIDUAL SERVICE FUND,V000995916
ROCHDALE BOROUGH COUNCIL,08/04/2016,LEARNING DIS & MENTAL HEALTH,POSSABILITIES CIC ISF,08/04/2016,1422.4,INDIVIDUAL SERVICE FUND,V000995917
ROCHDALE BOROUGH COUNCIL,08/04/2016,LEARNING DIS & MENTAL HEALTH,POSSABILITIES CIC ISF,08/04/2016,3351.76,INDIVIDUAL SERVICE FUND,V000995918
ROCHDALE BOROUGH COUNCIL,08/04/2016,LEARNING DIS & MENTAL HEALTH,POSSABILITIES CIC ISF,08/04/2016,571.16,INDIVIDUAL SERVICE FUND,V000995919
ROCHDALE BOROUGH COUNCIL,08/04/2016,LEARNING DIS & MENTAL HEALTH,HEALEY CARE LIMITED ISF PAYMENTS,08/04/2016,5825,INDIVIDUAL SERVICE FUND,V000995920
ROCHDALE BOROUGH COUNCIL,08/04/2016,LEARNING DIS & MENTAL HEALTH,POSSABILITIES CIC ISF,08/04/2016,1025.6,INDIVIDUAL SERVICE FUND,V000995921
ROCHDALE BOROUGH COUNCIL,08/04/2016,LEARNING DIS & MENTAL HEALTH,POSSABILITIES CIC ISF,08/04/2016,1025.6,INDIVIDUAL SERVICE FUND,V000995922
ROCHDALE BOROUGH COUNCIL,08/04/2016,LEARNING DIS & MENTAL HEALTH,HEALEY CARE LIMITED ISF PAYMENTS,08/04/2016,5825,INDIVIDUAL SERVICE FUND,V000995923
ROCHDALE BOROUGH COUNCIL,08/04/2016,LEARNING DIS & MENTAL HEALTH,POSSABILITIES CIC ISF,08/04/2016,1267.2,INDIVIDUAL SERVICE FUND,V000995924
ROCHDALE BOROUGH COUNCIL,08/04/2016,LEARNING DIS & MENTAL HEALTH,POSSABILITIES CIC ISF,08/04/2016,1809.24,INDIVIDUAL SERVICE FUND,V000995925
ROCHDALE BOROUGH COUNCIL,08/04/2016,PHYSICAL DIS & OLDER PEOPLE,ROYAL MENCAP SOCIETY,08/04/2016,4083.2,INDIVIDUAL SERVICE FUND,V000995926
ROCHDALE BOROUGH COUNCIL,08/04/2016,LEARNING DIS & MENTAL HEALTH,POSSABILITIES CIC ISF,08/04/2016,1373.2,INDIVIDUAL SERVICE FUND,V000995927
ROCHDALE BOROUGH COUNCIL,08/04/2016,LEARNING DIS & MENTAL HEALTH,POSSABILITIES CIC ISF,08/04/2016,1995.76,INDIVIDUAL SERVICE FUND,V000995928
ROCHDALE BOROUGH COUNCIL,08/04/2016,PHYSICAL DIS & OLDER PEOPLE,BESPOKE SUPPORTED LIVING LTD,08/04/2016,3325,SUPPORTED LIVING,V000995929
ROCHDALE BOROUGH COUNCIL,08/04/2016,LEARNING DIS & MENTAL HEALTH,POSSABILITIES CIC ISF,08/04/2016,558.8,INDIVIDUAL SERVICE FUND,V000995931
ROCHDALE BOROUGH COUNCIL,08/04/2016,LEARNING DIS & MENTAL HEALTH,POSSABILITIES CIC ISF,08/04/2016,762,INDIVIDUAL SERVICE FUND,V000995932
ROCHDALE BOROUGH COUNCIL,08/04/2016,PHYSICAL DIS & OLDER PEOPLE,COMFORT CALL LTD,08/04/2016,1036,INDIVIDUAL SERVICE FUND,V000995933
ROCHDALE BOROUGH COUNCIL,08/04/2016,LEARNING DIS & MENTAL HEALTH,POSSABILITIES CIC ISF,08/04/2016,558.8,INDIVIDUAL SERVICE FUND,V000995934
ROCHDALE BOROUGH COUNCIL,08/04/2016,LEARNING DIS & MENTAL HEALTH,NEWBARN LTD,08/04/2016,2704,INDIVIDUAL SERVICE FUND,V000995937
ROCHDALE BOROUGH COUNCIL,08/04/2016,LEARNING DIS & MENTAL HEALTH,POSSABILITIES CIC TRADING,08/04/2016,1711.8,DIRECT PAYMENTS,V000995938
ROCHDALE BOROUGH COUNCIL,08/04/2016,LEARNING DIS & MENTAL HEALTH,POSSABILITIES CIC ISF,08/04/2016,507.68,INDIVIDUAL SERVICE FUND,V000995939
ROCHDALE BOROUGH COUNCIL,08/04/2016,LEARNING DIS & MENTAL HEALTH,ROYAL MENCAP SOCIETY,08/04/2016,556.6,INDIVIDUAL SERVICE FUND,V000995940
ROCHDALE BOROUGH COUNCIL,08/04/2016,LEARNING DIS & MENTAL HEALTH,POSSABILITIES CIC ISF,08/04/2016,762,INDIVIDUAL SERVICE FUND,V000995941
ROCHDALE BOROUGH COUNCIL,08/04/2016,LEARNING DIS & MENTAL HEALTH,POSSABILITIES CIC ISF,08/04/2016,3113.32,INDIVIDUAL SERVICE FUND,V000995942
ROCHDALE BOROUGH COUNCIL,08/04/2016,LEARNING DIS & MENTAL HEALTH,NEWBARN LTD,08/04/2016,520,INDIVIDUAL SERVICE FUND,V000995943
ROCHDALE BOROUGH COUNCIL,08/04/2016,LEARNING DIS & MENTAL HEALTH,ROYAL MENCAP SOCIETY,08/04/2016,3903.28,INDIVIDUAL SERVICE FUND,V000995944
ROCHDALE BOROUGH COUNCIL,08/04/2016,LEARNING DIS & MENTAL HEALTH,POSSABILITIES CIC ISF,08/04/2016,1278.4,INDIVIDUAL SERVICE FUND,V000995945
ROCHDALE BOROUGH COUNCIL,08/04/2016,LEARNING DIS & MENTAL HEALTH,POSSABILITIES CIC ISF,08/04/2016,1404.12,INDIVIDUAL SERVICE FUND,V000995946
ROCHDALE BOROUGH COUNCIL,08/04/2016,LEARNING DIS & MENTAL HEALTH,POSSABILITIES CIC ISF,08/04/2016,509.52,INDIVIDUAL SERVICE FUND,V000995947
ROCHDALE BOROUGH COUNCIL,08/04/2016,LEARNING DIS & MENTAL HEALTH,POSSABILITIES CIC ISF,08/04/2016,1082.36,INDIVIDUAL SERVICE FUND,V000995948
ROCHDALE BOROUGH COUNCIL,08/04/2016,LEARNING DIS & MENTAL HEALTH,POSSABILITIES CIC ISF,08/04/2016,1304.64,INDIVIDUAL SERVICE FUND,V000995949
ROCHDALE BOROUGH COUNCIL,08/04/2016,LEARNING DIS & MENTAL HEALTH,POSSABILITIES CIC ISF,08/04/2016,780,INDIVIDUAL SERVICE FUND,V000995950
ROCHDALE BOROUGH COUNCIL,08/04/2016,LEARNING DIS & MENTAL HEALTH,BLUE PITS HOUSING ACTION,08/04/2016,560,SUPPORTED LIVING,V000995952
ROCHDALE BOROUGH COUNCIL,08/04/2016,LEARNING DIS & MENTAL HEALTH,POSSABILITIES CIC ISF,08/04/2016,1371.6,INDIVIDUAL SERVICE FUND,V000995953
ROCHDALE BOROUGH COUNCIL,08/04/2016,LEARNING DIS & MENTAL HEALTH,NEWBARN LTD,08/04/2016,1582,SUPPORTED LIVING,V000995954
ROCHDALE BOROUGH COUNCIL,08/04/2016,LEARNING DIS & MENTAL HEALTH,POSSABILITIES CIC ISF,08/04/2016,1280.76,INDIVIDUAL SERVICE FUND,V000995956
ROCHDALE BOROUGH COUNCIL,08/04/2016,LEARNING DIS & MENTAL HEALTH,POSSABILITIES CIC ISF,08/04/2016,5313.68,INDIVIDUAL SERVICE FUND,V000995957
ROCHDALE BOROUGH COUNCIL,08/04/2016,LEARNING DIS & MENTAL HEALTH,POSSABILITIES CIC ISF,08/04/2016,2483.32,INDIVIDUAL SERVICE FUND,V000995958
ROCHDALE BOROUGH COUNCIL,08/04/2016,LEARNING DIS & MENTAL HEALTH,ALTERNATIVE FUTURES GROUP LTD,08/04/2016,1203.51,SUPPORTED LIVING,V000995959
ROCHDALE BOROUGH COUNCIL,08/04/2016,LEARNING DIS & MENTAL HEALTH,POSSABILITIES CIC ISF,08/04/2016,989.16,INDIVIDUAL SERVICE FUND,V000995960
ROCHDALE BOROUGH COUNCIL,08/04/2016,LEARNING DIS & MENTAL HEALTH,HEALEY CARE LIMITED ISF PAYMENTS,08/04/2016,2306.52,INDIVIDUAL SERVICE FUND,V000995961
ROCHDALE BOROUGH COUNCIL,08/04/2016,LEARNING DIS & MENTAL HEALTH,POSSABILITIES CIC ISF,08/04/2016,813.68,INDIVIDUAL SERVICE FUND,V000995963
ROCHDALE BOROUGH COUNCIL,08/04/2016,LEARNING DIS & MENTAL HEALTH,PROTEA CARE MANCHESTER LTD,08/04/2016,3066.64,SUPPORTED LIVING,V000995964
ROCHDALE BOROUGH COUNCIL,08/04/2016,LEARNING DIS & MENTAL HEALTH,POSSABILITIES CIC ISF,08/04/2016,1757.48,INDIVIDUAL SERVICE FUND,V000995965
ROCHDALE BOROUGH COUNCIL,08/04/2016,LEARNING DIS & MENTAL HEALTH,POSSABILITIES CIC ISF,08/04/2016,849.24,INDIVIDUAL SERVICE FUND,V000995967
ROCHDALE BOROUGH COUNCIL,08/04/2016,LEARNING DIS & MENTAL HEALTH,POSSABILITIES CIC ISF,08/04/2016,849.24,INDIVIDUAL SERVICE FUND,V000995968
ROCHDALE BOROUGH COUNCIL,08/04/2016,LEARNING DIS & MENTAL HEALTH,POSSABILITIES CIC ISF,08/04/2016,849.24,INDIVIDUAL SERVICE FUND,V000995969
ROCHDALE BOROUGH COUNCIL,08/04/2016,LEARNING DIS & MENTAL HEALTH,POSSABILITIES CIC ISF,08/04/2016,849.24,INDIVIDUAL SERVICE FUND,V000995970
ROCHDALE BOROUGH COUNCIL,08/04/2016,LEARNING DIS & MENTAL HEALTH,POSSABILITIES CIC ISF,08/04/2016,849.24,INDIVIDUAL SERVICE FUND,V000995971
ROCHDALE BOROUGH COUNCIL,08/04/2016,LEARNING DIS & MENTAL HEALTH,POSSABILITIES CIC ISF,08/04/2016,849.24,INDIVIDUAL SERVICE FUND,V000995972
ROCHDALE BOROUGH COUNCIL,08/04/2016,LEARNING DIS & MENTAL HEALTH,UNITED RESPONSE,08/04/2016,1591,INDIVIDUAL SERVICE FUND,V000995973
ROCHDALE BOROUGH COUNCIL,08/04/2016,LEARNING DIS & MENTAL HEALTH,POSSABILITIES CIC ISF,08/04/2016,849.24,INDIVIDUAL SERVICE FUND,V000995974
ROCHDALE BOROUGH COUNCIL,08/04/2016,LEARNING DIS & MENTAL HEALTH,POSSABILITIES CIC ISF,08/04/2016,2446.96,INDIVIDUAL SERVICE FUND,V000995975
ROCHDALE BOROUGH COUNCIL,08/04/2016,LEARNING DIS & MENTAL HEALTH,POSSABILITIES CIC ISF,08/04/2016,1224.4,INDIVIDUAL SERVICE FUND,V000995976
ROCHDALE BOROUGH COUNCIL,08/04/2016,LEARNING DIS & MENTAL HEALTH,POSSABILITIES CIC ISF,08/04/2016,849.24,INDIVIDUAL SERVICE FUND,V000995977
ROCHDALE BOROUGH COUNCIL,08/04/2016,LEARNING DIS & MENTAL HEALTH,POSSABILITIES CIC ISF,08/04/2016,1280.76,INDIVIDUAL SERVICE FUND,V000995978
ROCHDALE BOROUGH COUNCIL,08/04/2016,LEARNING DIS & MENTAL HEALTH,POSSABILITIES CIC ISF,08/04/2016,2067.96,INDIVIDUAL SERVICE FUND,V000995979
ROCHDALE BOROUGH COUNCIL,08/04/2016,LEARNING DIS & MENTAL HEALTH,POSSABILITIES CIC ISF,08/04/2016,1280.76,INDIVIDUAL SERVICE FUND,V000995980
ROCHDALE BOROUGH COUNCIL,08/04/2016,LEARNING DIS & MENTAL HEALTH,POSSABILITIES CIC ISF,08/04/2016,1585.24,INDIVIDUAL SERVICE FUND,V000995981
ROCHDALE BOROUGH COUNCIL,08/04/2016,LEARNING DIS & MENTAL HEALTH,POSSABILITIES CIC ISF,08/04/2016,849.24,INDIVIDUAL SERVICE FUND,V000995982
ROCHDALE BOROUGH COUNCIL,08/04/2016,LEARNING DIS & MENTAL HEALTH,POSSABILITIES CIC ISF,08/04/2016,1280.76,INDIVIDUAL SERVICE FUND,V000995984
ROCHDALE BOROUGH COUNCIL,08/04/2016,LEARNING DIS & MENTAL HEALTH,POSSABILITIES CIC ISF,08/04/2016,1667.52,INDIVIDUAL SERVICE FUND,V000995985
ROCHDALE BOROUGH COUNCIL,08/04/2016,LEARNING DIS & MENTAL HEALTH,POSSABILITIES CIC ISF,08/04/2016,1608,INDIVIDUAL SERVICE FUND,V000995986
ROCHDALE BOROUGH COUNCIL,08/04/2016,LEARNING DIS & MENTAL HEALTH,LIFEWAYS COMMUNITY CARE LTD,08/04/2016,1618,INDIVIDUAL SERVICE FUND,V000995987
ROCHDALE BOROUGH COUNCIL,08/04/2016,LEARNING DIS & MENTAL HEALTH,POSSABILITIES CIC ISF,08/04/2016,520.4,INDIVIDUAL SERVICE FUND,V000995988
ROCHDALE BOROUGH COUNCIL,08/04/2016,LEARNING DIS & MENTAL HEALTH,POSSABILITIES CIC ISF,08/04/2016,1151.96,INDIVIDUAL SERVICE FUND,V000995989
ROCHDALE BOROUGH COUNCIL,08/04/2016,LEARNING DIS & MENTAL HEALTH,POSSABILITIES CIC ISF,08/04/2016,849.24,INDIVIDUAL SERVICE FUND,V000995991
ROCHDALE BOROUGH COUNCIL,08/04/2016,LEARNING DIS & MENTAL HEALTH,POSSABILITIES CIC ISF,08/04/2016,849.24,INDIVIDUAL SERVICE FUND,V000995992
ROCHDALE BOROUGH COUNCIL,08/04/2016,LEARNING DIS & MENTAL HEALTH,POSSABILITIES CIC ISF,08/04/2016,2660.76,INDIVIDUAL SERVICE FUND,V000995993
ROCHDALE BOROUGH COUNCIL,08/04/2016,LEARNING DIS & MENTAL HEALTH,POSSABILITIES CIC ISF,08/04/2016,849.24,INDIVIDUAL SERVICE FUND,V000995994
ROCHDALE BOROUGH COUNCIL,08/04/2016,LEARNING DIS & MENTAL HEALTH,POSSABILITIES CIC ISF,08/04/2016,849.24,INDIVIDUAL SERVICE FUND,V000995995
ROCHDALE BOROUGH COUNCIL,08/04/2016,LEARNING DIS & MENTAL HEALTH,POSSABILITIES CIC ISF,08/04/2016,849.24,INDIVIDUAL SERVICE FUND,V000995996
ROCHDALE BOROUGH COUNCIL,08/04/2016,LEARNING DIS & MENTAL HEALTH,POSSABILITIES CIC ISF,08/04/2016,1110.92,INDIVIDUAL SERVICE FUND,V000995997
ROCHDALE BOROUGH COUNCIL,08/04/2016,LEARNING DIS & MENTAL HEALTH,RESPITE NORTH WEST LIMITED,08/04/2016,4429.76,INDIVIDUAL SERVICE FUND,V000995998
ROCHDALE BOROUGH COUNCIL,08/04/2016,LEARNING DIS & MENTAL HEALTH,ALTERNATIVE FUTURES GROUP LTD,08/04/2016,2314.83,SUPPORTED LIVING,V000995999
ROCHDALE BOROUGH COUNCIL,08/04/2016,LEARNING DIS & MENTAL HEALTH,NEWBARN LTD,08/04/2016,2028,SUPPORTED LIVING,V000996005
ROCHDALE BOROUGH COUNCIL,08/04/2016,LEARNING DIS & MENTAL HEALTH,ROYAL MENCAP SOCIETY,08/04/2016,3299.65,SUPPORTED LIVING,V000996006
ROCHDALE BOROUGH COUNCIL,08/04/2016,PHYSICAL DIS & OLDER PEOPLE,POSSABILITIES CIC TRADING,08/04/2016,3155.45,SUPPORTED LIVING,V000996008
ROCHDALE BOROUGH COUNCIL,08/04/2016,LEARNING DIS & MENTAL HEALTH,POSSABILITIES CIC ISF,08/04/2016,849.24,INDIVIDUAL SERVICE FUND,V000996009
ROCHDALE BOROUGH COUNCIL,08/04/2016,LEARNING DIS & MENTAL HEALTH,POSSABILITIES CIC ISF,08/04/2016,849.24,INDIVIDUAL SERVICE FUND,V000996010
ROCHDALE BOROUGH COUNCIL,08/04/2016,LEARNING DIS & MENTAL HEALTH,NEWBARN LTD,08/04/2016,1110.76,INDIVIDUAL SERVICE FUND,V000996011
ROCHDALE BOROUGH COUNCIL,08/04/2016,LEARNING DIS & MENTAL HEALTH,POSSABILITIES CIC ISF,08/04/2016,1104.28,INDIVIDUAL SERVICE FUND,V000996012
ROCHDALE BOROUGH COUNCIL,08/04/2016,LEARNING DIS & MENTAL HEALTH,NEWBARN LTD,08/04/2016,998,SUPPORTED LIVING,V000996013
ROCHDALE BOROUGH COUNCIL,08/04/2016,LEARNING DIS & MENTAL HEALTH,CARETECH COMMUNITY SERVICES LTD,08/04/2016,6551.08,SUPPORTED LIVING,V000996014
ROCHDALE BOROUGH COUNCIL,08/04/2016,PHYSICAL DIS & OLDER PEOPLE,POSSABILITIES CIC ISF,08/04/2016,514.8,INDIVIDUAL SERVICE FUND,V000996015
ROCHDALE BOROUGH COUNCIL,08/04/2016,PHYSICAL DIS & OLDER PEOPLE,POSSABILITIES CIC ISF,08/04/2016,1425.6,INDIVIDUAL SERVICE FUND,V000996016
ROCHDALE BOROUGH COUNCIL,08/04/2016,LEARNING DIS & MENTAL HEALTH,POSSABILITIES CIC ISF,08/04/2016,3012,INDIVIDUAL SERVICE FUND,V000996018
ROCHDALE BOROUGH COUNCIL,08/04/2016,LEARNING DIS & MENTAL HEALTH,NEWBARN LTD,08/04/2016,832,SUPPORTED LIVING,V000996019
ROCHDALE BOROUGH COUNCIL,08/04/2016,PHYSICAL DIS & OLDER PEOPLE,SEVA SUPPORT LTD,08/04/2016,5872.16,SUPPORTED LIVING,V000996021
ROCHDALE BOROUGH COUNCIL,08/04/2016,LEARNING DIS & MENTAL HEALTH,PROTEA CARE MANCHESTER LTD,08/04/2016,3248,SUPPORTED LIVING,V000996022
ROCHDALE BOROUGH COUNCIL,08/04/2016,LEARNING DIS & MENTAL HEALTH,VOYAGE CARE,08/04/2016,7802.6,SUPPORTED LIVING,V000996023
ROCHDALE BOROUGH COUNCIL,08/04/2016,LEARNING DIS & MENTAL HEALTH,RESPITE NORTH WEST LIMITED,08/04/2016,5415.48,INDIVIDUAL SERVICE FUND,V000996026
ROCHDALE BOROUGH COUNCIL,08/04/2016,LEARNING DIS & MENTAL HEALTH,LINKABILITY ISF,08/04/2016,4928.2,INDIVIDUAL SERVICE FUND,V000996027
ROCHDALE BOROUGH COUNCIL,08/04/2016,LEARNING DIS & MENTAL HEALTH,POSSABILITIES CIC ISF,08/04/2016,3683.48,INDIVIDUAL SERVICE FUND,V000996028
ROCHDALE BOROUGH COUNCIL,08/04/2016,LEARNING DIS & MENTAL HEALTH,NEWBARN LTD,08/04/2016,1040,INDIVIDUAL SERVICE FUND,V000996030
ROCHDALE BOROUGH COUNCIL,08/04/2016,LEARNING DIS & MENTAL HEALTH,POSSABILITIES CIC ISF,08/04/2016,749.32,INDIVIDUAL SERVICE FUND,V000996031
ROCHDALE BOROUGH COUNCIL,08/04/2016,LEARNING DIS & MENTAL HEALTH,FUTURE DIRECTIONS CIC,08/04/2016,2590.16,INDIVIDUAL SERVICE FUND,V000996032
ROCHDALE BOROUGH COUNCIL,08/04/2016,PHYSICAL DIS & OLDER PEOPLE,COMFORT CALL LTD,08/04/2016,1368,INDIVIDUAL SERVICE FUND,V000996033
ROCHDALE BOROUGH COUNCIL,08/04/2016,LEARNING DIS & MENTAL HEALTH,POSSABILITIES CIC ISF,08/04/2016,1056,INDIVIDUAL SERVICE FUND,V000996036
ROCHDALE BOROUGH COUNCIL,08/04/2016,LEARNING DIS & MENTAL HEALTH,POSSABILITIES CIC ISF,08/04/2016,679.4,INDIVIDUAL SERVICE FUND,V000996037
ROCHDALE BOROUGH COUNCIL,08/04/2016,PHYSICAL DIS & OLDER PEOPLE,ROYAL MENCAP SOCIETY,08/04/2016,3796.96,INDIVIDUAL SERVICE FUND,V000996038
ROCHDALE BOROUGH COUNCIL,08/04/2016,LEARNING DIS & MENTAL HEALTH,RESPITE NORTH WEST LIMITED,08/04/2016,4170.48,SUPPORTED LIVING,V000996039
ROCHDALE BOROUGH COUNCIL,08/04/2016,LEARNING DIS & MENTAL HEALTH,POSSABILITIES CIC ISF,08/04/2016,1922.8,INDIVIDUAL SERVICE FUND,V000996040
ROCHDALE BOROUGH COUNCIL,08/04/2016,LEARNING DIS & MENTAL HEALTH,POSSABILITIES CIC ISF,08/04/2016,1950.44,INDIVIDUAL SERVICE FUND,V000996041
ROCHDALE BOROUGH COUNCIL,08/04/2016,LEARNING DIS & MENTAL HEALTH,ROYAL MENCAP SOCIETY,08/04/2016,1057.05,SUPPORTED LIVING,V000996043
ROCHDALE BOROUGH COUNCIL,08/04/2016,PHYSICAL DIS & OLDER PEOPLE,COMFORT CALL LTD,08/04/2016,836,INDIVIDUAL SERVICE FUND,V000996044
ROCHDALE BOROUGH COUNCIL,08/04/2016,PHYSICAL DIS & OLDER PEOPLE,SELECT SUPPORT PARTNERSHIPS,08/04/2016,1176,SUPPORTED LIVING,V000996045
ROCHDALE BOROUGH COUNCIL,08/04/2016,LEARNING DIS & MENTAL HEALTH,ROYAL MENCAP SOCIETY,08/04/2016,8855,INDIVIDUAL SERVICE FUND,V000996046
ROCHDALE BOROUGH COUNCIL,08/04/2016,LEARNING DIS & MENTAL HEALTH,POSSABILITIES CIC ISF,08/04/2016,2534.4,INDIVIDUAL SERVICE FUND,V000996048
ROCHDALE BOROUGH COUNCIL,08/04/2016,LEARNING DIS & MENTAL HEALTH,POSSABILITIES CIC ISF,08/04/2016,2686.64,INDIVIDUAL SERVICE FUND,V000996049
ROCHDALE BOROUGH COUNCIL,08/04/2016,LEARNING DIS & MENTAL HEALTH,HEALEY CARE LIMITED ISF PAYMENTS,08/04/2016,6321,INDIVIDUAL SERVICE FUND,V000996053
ROCHDALE BOROUGH COUNCIL,08/04/2016,LEARNING DIS & MENTAL HEALTH,RESPITE NORTH WEST LIMITED,08/04/2016,3946.4,INDIVIDUAL SERVICE FUND,V000996054
ROCHDALE BOROUGH COUNCIL,08/04/2016,LEARNING DIS & MENTAL HEALTH,LINKABILITY ISF,08/04/2016,1825.32,INDIVIDUAL SERVICE FUND,V000996055
ROCHDALE BOROUGH COUNCIL,08/04/2016,LEARNING DIS & MENTAL HEALTH,STEPPING STONES SERVICES LTD,08/04/2016,5260,INDIVIDUAL SERVICE FUND,V000996056
ROCHDALE BOROUGH COUNCIL,08/04/2016,LEARNING DIS & MENTAL HEALTH,FUTURE DIRECTIONS CIC,08/04/2016,2910,INDIVIDUAL SERVICE FUND,V000996057
ROCHDALE BOROUGH COUNCIL,08/04/2016,LEARNING DIS & MENTAL HEALTH,LINKABILITY ISF,08/04/2016,4539.44,INDIVIDUAL SERVICE FUND,V000996059
ROCHDALE BOROUGH COUNCIL,08/04/2016,PHYSICAL DIS & OLDER PEOPLE,COMFORT CALL LTD,08/04/2016,1924,INDIVIDUAL SERVICE FUND,V000996060
ROCHDALE BOROUGH COUNCIL,08/04/2016,LEARNING DIS & MENTAL HEALTH,PENDLETON CARE LTD,08/04/2016,2100,INDIVIDUAL SERVICE FUND,V000996061
ROCHDALE BOROUGH COUNCIL,08/04/2016,LEARNING DIS & MENTAL HEALTH,POSSABILITIES CIC ISF,08/04/2016,1353.52,INDIVIDUAL SERVICE FUND,V000996062
ROCHDALE BOROUGH COUNCIL,08/04/2016,LEARNING DIS & MENTAL HEALTH,POSSABILITIES CIC ISF,08/04/2016,772,INDIVIDUAL SERVICE FUND,V000996063
ROCHDALE BOROUGH COUNCIL,08/04/2016,LEARNING DIS & MENTAL HEALTH,ALTERNATIVE FUTURES GROUP LTD,08/04/2016,-2638.92,SUPPORTED LIVING,V000996064
ROCHDALE BOROUGH COUNCIL,08/04/2016,LEARNING DIS & MENTAL HEALTH,ALTERNATIVE FUTURES GROUP LTD,08/04/2016,2767.65,INDIVIDUAL SERVICE FUND,V000996065
ROCHDALE BOROUGH COUNCIL,08/04/2016,LEARNING DIS & MENTAL HEALTH,ALTERNATIVE FUTURES GROUP LTD,08/04/2016,3690.2,INDIVIDUAL SERVICE FUND,V000996066
ROCHDALE BOROUGH COUNCIL,08/04/2016,LEARNING DIS & MENTAL HEALTH,POSSABILITIES CIC ISF,08/04/2016,792,INDIVIDUAL SERVICE FUND,V000996067
ROCHDALE BOROUGH COUNCIL,08/04/2016,LEARNING DIS & MENTAL HEALTH,ALTERNATIVE FUTURES GROUP LTD,08/04/2016,4259.28,INDIVIDUAL SERVICE FUND,V000996069
ROCHDALE BOROUGH COUNCIL,08/04/2016,PHYSICAL DIS & OLDER PEOPLE,COMFORT CALL LTD,08/04/2016,660,INDIVIDUAL SERVICE FUND,V000996073
ROCHDALE BOROUGH COUNCIL,08/04/2016,PHYSICAL DIS & OLDER PEOPLE,COMFORT CALL LTD,08/04/2016,548,INDIVIDUAL SERVICE FUND,V000996074
ROCHDALE BOROUGH COUNCIL,08/04/2016,LEARNING DIS & MENTAL HEALTH,POSSABILITIES CIC ISF,08/04/2016,558.8,INDIVIDUAL SERVICE FUND,V000996075
ROCHDALE BOROUGH COUNCIL,08/04/2016,PHYSICAL DIS & OLDER PEOPLE,COMFORT CALL LTD,08/04/2016,696.4,INDIVIDUAL SERVICE FUND,V000996076
ROCHDALE BOROUGH COUNCIL,08/04/2016,PHYSICAL DIS & OLDER PEOPLE,COMFORT CALL LTD,08/04/2016,2248,INDIVIDUAL SERVICE FUND,V000996077
ROCHDALE BOROUGH COUNCIL,08/04/2016,LEARNING DIS & MENTAL HEALTH,ALTERNATIVE FUTURES GROUP LTD,08/04/2016,-1802.34,SUPPORTED LIVING,V000996079
ROCHDALE BOROUGH COUNCIL,08/04/2016,LEARNING DIS & MENTAL HEALTH,ALTERNATIVE FUTURES GROUP LTD,08/04/2016,-2968.56,SUPPORTED LIVING,V000996080
ROCHDALE BOROUGH COUNCIL,08/04/2016,LEARNING DIS & MENTAL HEALTH,ALTERNATIVE FUTURES GROUP LTD,08/04/2016,-2968.56,SUPPORTED LIVING,V000996081
ROCHDALE BOROUGH COUNCIL,08/04/2016,LEARNING DIS & MENTAL HEALTH,ALTERNATIVE FUTURES GROUP LTD,08/04/2016,2575,INDIVIDUAL SERVICE FUND,V000996082
ROCHDALE BOROUGH COUNCIL,08/04/2016,LEARNING DIS & MENTAL HEALTH,POSSABILITIES CIC ISF,08/04/2016,558.8,INDIVIDUAL SERVICE FUND,V000996084
ROCHDALE BOROUGH COUNCIL,08/04/2016,LEARNING DIS & MENTAL HEALTH,POSSABILITIES CIC ISF,08/04/2016,755.96,INDIVIDUAL SERVICE FUND,V000996087
ROCHDALE BOROUGH COUNCIL,08/04/2016,LEARNING DIS & MENTAL HEALTH,POSSABILITIES CIC ISF,08/04/2016,539.44,INDIVIDUAL SERVICE FUND,V000996088
ROCHDALE BOROUGH COUNCIL,08/04/2016,LEARNING DIS & MENTAL HEALTH,POSSABILITIES CIC ISF,08/04/2016,5607.96,INDIVIDUAL SERVICE FUND,V000996089
ROCHDALE BOROUGH COUNCIL,08/04/2016,PHYSICAL DIS & OLDER PEOPLE,POSSABILITIES CIC ISF,08/04/2016,1168.4,INDIVIDUAL SERVICE FUND,V000996092
ROCHDALE BOROUGH COUNCIL,08/04/2016,LEARNING DIS & MENTAL HEALTH,HEALEY CARE LIMITED ISF PAYMENTS,08/04/2016,1591.52,INDIVIDUAL SERVICE FUND,V000996093
ROCHDALE BOROUGH COUNCIL,08/04/2016,LEARNING DIS & MENTAL HEALTH,POSSABILITIES CIC ISF,08/04/2016,1562,INDIVIDUAL SERVICE FUND,V000996094
ROCHDALE BOROUGH COUNCIL,08/04/2016,LEARNING DIS & MENTAL HEALTH,POSSABILITIES CIC ISF,08/04/2016,1012.2,INDIVIDUAL SERVICE FUND,V000996095
ROCHDALE BOROUGH COUNCIL,08/04/2016,LEARNING DIS & MENTAL HEALTH,NEWBARN LTD,08/04/2016,1560,INDIVIDUAL SERVICE FUND,V000996096
ROCHDALE BOROUGH COUNCIL,08/04/2016,LEARNING DIS & MENTAL HEALTH,ALTERNATIVE FUTURES GROUP LTD,08/04/2016,3806.4,INDIVIDUAL SERVICE FUND,V000996097
ROCHDALE BOROUGH COUNCIL,08/04/2016,LEARNING DIS & MENTAL HEALTH,WELLESLEY HOUSE,08/04/2016,4059.44,INDIVIDUAL SERVICE FUND,V000996099
ROCHDALE BOROUGH COUNCIL,08/04/2016,LEARNING DIS & MENTAL HEALTH,POSSABILITIES CIC ISF,08/04/2016,885.08,INDIVIDUAL SERVICE FUND,V000996100
ROCHDALE BOROUGH COUNCIL,08/04/2016,PHYSICAL DIS & OLDER PEOPLE,POSSABILITIES CIC ISF,08/04/2016,1460.28,INDIVIDUAL SERVICE FUND,V000996101
ROCHDALE BOROUGH COUNCIL,08/04/2016,LEARNING DIS & MENTAL HEALTH,LIFEWAYS COMMUNITY CARE LTD,08/04/2016,3420.52,SUPPORTED LIVING,V000996102
ROCHDALE BOROUGH COUNCIL,08/04/2016,LEARNING DIS & MENTAL HEALTH,ALTERNATIVE FUTURES GROUP LTD,08/04/2016,740.88,INDIVIDUAL SERVICE FUND,V000996103
ROCHDALE BOROUGH COUNCIL,08/04/2016,PHYSICAL DIS & OLDER PEOPLE,ROYAL MENCAP SOCIETY,08/04/2016,4289.44,INDIVIDUAL SERVICE FUND,V000996104
ROCHDALE BOROUGH COUNCIL,08/04/2016,LEARNING DIS & MENTAL HEALTH,POSSABILITIES CIC ISF,08/04/2016,533.4,INDIVIDUAL SERVICE FUND,V000996105
ROCHDALE BOROUGH COUNCIL,08/04/2016,LEARNING DIS & MENTAL HEALTH,POSSABILITIES CIC ISF,08/04/2016,528,INDIVIDUAL SERVICE FUND,V000996108
ROCHDALE BOROUGH COUNCIL,08/04/2016,LEARNING DIS & MENTAL HEALTH,NEWBARN LTD,08/04/2016,1060,INDIVIDUAL SERVICE FUND,V000996110
ROCHDALE BOROUGH COUNCIL,08/04/2016,LEARNING DIS & MENTAL HEALTH,NEWBARN LTD,08/04/2016,1736,INDIVIDUAL SERVICE FUND,V000996111
ROCHDALE BOROUGH COUNCIL,08/04/2016,LEARNING DIS & MENTAL HEALTH,POSSABILITIES CIC ISF,08/04/2016,612,INDIVIDUAL SERVICE FUND,V000996112
ROCHDALE BOROUGH COUNCIL,08/04/2016,LEARNING DIS & MENTAL HEALTH,POSSABILITIES CIC ISF,08/04/2016,739.2,INDIVIDUAL SERVICE FUND,V000996114
ROCHDALE BOROUGH COUNCIL,08/04/2016,LEARNING DIS & MENTAL HEALTH,NEWBARN LTD,08/04/2016,1095,SUPPORTED LIVING,V000996116
ROCHDALE BOROUGH COUNCIL,08/04/2016,LEARNING DIS & MENTAL HEALTH,NEWBARN LTD,08/04/2016,-870.14,SUPPORTED LIVING,V000996117
ROCHDALE BOROUGH COUNCIL,08/04/2016,LEARNING DIS & MENTAL HEALTH,FUTURE DIRECTIONS CIC,08/04/2016,5574.8,INDIVIDUAL SERVICE FUND,V000996118
ROCHDALE BOROUGH COUNCIL,08/04/2016,LEARNING DIS & MENTAL HEALTH,CREATIVE SUPPORT LIMITED,08/04/2016,2100,SUPPORTED LIVING,V000996119
ROCHDALE BOROUGH COUNCIL,08/04/2016,PHYSICAL DIS & OLDER PEOPLE,COMFORT CALL LTD,08/04/2016,600,INDIVIDUAL SERVICE FUND,V000996120
ROCHDALE BOROUGH COUNCIL,08/04/2016,PHYSICAL DIS & OLDER PEOPLE,COMFORT CALL LTD,08/04/2016,600,INDIVIDUAL SERVICE FUND,V000996121
ROCHDALE BOROUGH COUNCIL,08/04/2016,LEARNING DIS & MENTAL HEALTH,POSSABILITIES CIC TRADING,08/04/2016,1711.8,DIRECT PAYMENTS,V000996123
ROCHDALE BOROUGH COUNCIL,08/04/2016,LEARNING DIS & MENTAL HEALTH,POSSABILITIES CIC ISF,08/04/2016,715.84,INDIVIDUAL SERVICE FUND,V000996124
ROCHDALE BOROUGH COUNCIL,08/04/2016,LEARNING DIS & MENTAL HEALTH,ALTERNATIVE FUTURES GROUP LTD,08/04/2016,2966.08,INDIVIDUAL SERVICE FUND,V000996126
ROCHDALE BOROUGH COUNCIL,08/04/2016,LEARNING DIS & MENTAL HEALTH,POSSABILITIES CIC ISF,08/04/2016,597.04,INDIVIDUAL SERVICE FUND,V000996127
ROCHDALE BOROUGH COUNCIL,08/04/2016,LEARNING DIS & MENTAL HEALTH,NEWBARN LTD,08/04/2016,1040,INDIVIDUAL SERVICE FUND,V000996128
ROCHDALE BOROUGH COUNCIL,08/04/2016,LEARNING DIS & MENTAL HEALTH,ALTERNATIVE FUTURES GROUP LTD,08/04/2016,1159.2,INDIVIDUAL SERVICE FUND,V000996129
ROCHDALE BOROUGH COUNCIL,08/04/2016,LEARNING DIS & MENTAL HEALTH,POSSABILITIES CIC ISF,08/04/2016,849.24,INDIVIDUAL SERVICE FUND,V000996130
ROCHDALE BOROUGH COUNCIL,08/04/2016,LEARNING DIS & MENTAL HEALTH,POSSABILITIES CIC TRADING,08/04/2016,1711.8,DIRECT PAYMENTS,V000996131
ROCHDALE BOROUGH COUNCIL,08/04/2016,LEARNING DIS & MENTAL HEALTH,NEWBARN LTD,08/04/2016,998,INDIVIDUAL SERVICE FUND,V000996132
ROCHDALE BOROUGH COUNCIL,08/04/2016,LEARNING DIS & MENTAL HEALTH,NEWBARN LTD,08/04/2016,1624,INDIVIDUAL SERVICE FUND,V000996133
ROCHDALE BOROUGH COUNCIL,08/04/2016,LEARNING DIS & MENTAL HEALTH,POSSABILITIES CIC ISF,08/04/2016,767.64,INDIVIDUAL SERVICE FUND,V000996136
ROCHDALE BOROUGH COUNCIL,08/04/2016,LEARNING DIS & MENTAL HEALTH,FUTURE DIRECTIONS CIC,08/04/2016,7704,INDIVIDUAL SERVICE FUND,V000996137
ROCHDALE BOROUGH COUNCIL,08/04/2016,LEARNING DIS & MENTAL HEALTH,POSSABILITIES CIC ISF,08/04/2016,1240.8,INDIVIDUAL SERVICE FUND,V000996138
ROCHDALE BOROUGH COUNCIL,08/04/2016,LEARNING DIS & MENTAL HEALTH,POSSABILITIES CIC ISF,08/04/2016,849.2,INDIVIDUAL SERVICE FUND,V000996139
ROCHDALE BOROUGH COUNCIL,08/04/2016,LEARNING DIS & MENTAL HEALTH,ALTERNATIVE FUTURES GROUP LTD,08/04/2016,4431.28,INDIVIDUAL SERVICE FUND,V000996140
ROCHDALE BOROUGH COUNCIL,08/04/2016,PHYSICAL DIS & OLDER PEOPLE,COMFORT CALL LTD,08/04/2016,1304,INDIVIDUAL SERVICE FUND,V000996141
ROCHDALE BOROUGH COUNCIL,08/04/2016,LEARNING DIS & MENTAL HEALTH,POSSABILITIES CIC ISF,08/04/2016,1056,INDIVIDUAL SERVICE FUND,V000996143
ROCHDALE BOROUGH COUNCIL,08/04/2016,LEARNING DIS & MENTAL HEALTH,POSSABILITIES CIC ISF,08/04/2016,1078.96,INDIVIDUAL SERVICE FUND,V000996144
ROCHDALE BOROUGH COUNCIL,08/04/2016,LEARNING DIS & MENTAL HEALTH,POSSABILITIES CIC ISF,08/04/2016,1209.32,INDIVIDUAL SERVICE FUND,V000996145
ROCHDALE BOROUGH COUNCIL,08/04/2016,PHYSICAL DIS & OLDER PEOPLE,COMFORT CALL LTD,08/04/2016,648,INDIVIDUAL SERVICE FUND,V000996148
ROCHDALE BOROUGH COUNCIL,08/04/2016,PHYSICAL DIS & OLDER PEOPLE,COMFORT CALL LTD,08/04/2016,1744.24,INDIVIDUAL SERVICE FUND,V000996149
ROCHDALE BOROUGH COUNCIL,08/04/2016,LEARNING DIS & MENTAL HEALTH,NEWBARN LTD,08/04/2016,1276,INDIVIDUAL SERVICE FUND,V000996151
ROCHDALE BOROUGH COUNCIL,08/04/2016,LEARNING DIS & MENTAL HEALTH,FUTURE DIRECTIONS CIC,08/04/2016,7996.8,INDIVIDUAL SERVICE FUND,V000996152
ROCHDALE BOROUGH COUNCIL,08/04/2016,LEARNING DIS & MENTAL HEALTH,NEWBARN LTD,08/04/2016,661.01,INDIVIDUAL SERVICE FUND,V000996153
ROCHDALE BOROUGH COUNCIL,08/04/2016,LEARNING DIS & MENTAL HEALTH,POSSABILITIES CIC TRADING,08/04/2016,1711.8,DIRECT PAYMENTS,V000996154
ROCHDALE BOROUGH COUNCIL,08/04/2016,LEARNING DIS & MENTAL HEALTH,CIC GROUP EACHSTEP BLACKLEY,08/04/2016,556,INDIVIDUAL SERVICE FUND,V000996155
ROCHDALE BOROUGH COUNCIL,08/04/2016,LEARNING DIS & MENTAL HEALTH,CREATIVE SUPPORT LIMITED,08/04/2016,2380,SUPPORTED LIVING,V000996156
ROCHDALE BOROUGH COUNCIL,08/04/2016,LEARNING DIS & MENTAL HEALTH,POSSABILITIES CIC ISF,08/04/2016,686.4,INDIVIDUAL SERVICE FUND,V000996157
ROCHDALE BOROUGH COUNCIL,08/04/2016,PHYSICAL DIS & OLDER PEOPLE,COMFORT CALL LTD,08/04/2016,560,INDIVIDUAL SERVICE FUND,V000996163
ROCHDALE BOROUGH COUNCIL,08/04/2016,LEARNING DIS & MENTAL HEALTH,POSSABILITIES CIC ISF,08/04/2016,765.08,INDIVIDUAL SERVICE FUND,V000996166
ROCHDALE BOROUGH COUNCIL,08/04/2016,LEARNING DIS & MENTAL HEALTH,POSSABILITIES CIC TRADING,08/04/2016,-917.04,DIRECT PAYMENTS,V000996167
ROCHDALE BOROUGH COUNCIL,08/04/2016,LEARNING DIS & MENTAL HEALTH,POSSABILITIES CIC ISF,08/04/2016,810.04,INDIVIDUAL SERVICE FUND,V000996169
ROCHDALE BOROUGH COUNCIL,08/04/2016,LEARNING DIS & MENTAL HEALTH,POSSABILITIES CIC TRADING,08/04/2016,1711.8,DIRECT PAYMENTS,V000996172
ROCHDALE BOROUGH COUNCIL,08/04/2016,LEARNING DIS & MENTAL HEALTH,POSSABILITIES CIC TRADING,08/04/2016,1711.8,DIRECT PAYMENTS,V000996173
ROCHDALE BOROUGH COUNCIL,08/04/2016,LEARNING DIS & MENTAL HEALTH,PENDLETON CARE LTD,08/04/2016,851.2,INDIVIDUAL SERVICE FUND,V000996174
ROCHDALE BOROUGH COUNCIL,08/04/2016,LEARNING DIS & MENTAL HEALTH,PENDLETON CARE LTD,08/04/2016,3404.8,INDIVIDUAL SERVICE FUND,V000996175
ROCHDALE BOROUGH COUNCIL,28/04/2016,EARLY HELP AND SCHOOLS,THE PENNINE ACUTE HOSPITALS NHS TRUST,28/04/2016,2419,OCCUPATIONAL HEALTH,V000996177
ROCHDALE BOROUGH COUNCIL,15/04/2016,NEIGHBOURHOODS AND ENVIRONMENT,D HUGHES DEMOLITION,15/04/2016,83405,DEMOLITION AND CLEARANCE,V000996178
ROCHDALE BOROUGH COUNCIL,13/04/2016,NEIGHBOURHOODS AND ENVIRONMENT,MANTRA LEARNING LTD,13/04/2016,1330,TRAINING,V000996181
ROCHDALE BOROUGH COUNCIL,07/04/2016,FINANCE SERVICES,BINDMONT PRINT SERVICES LTD,07/04/2016,5727.04,PRINTING & STATIONERY,V000996182
ROCHDALE BOROUGH COUNCIL,07/04/2016,FINANCE SERVICES,ELECTORAL REFORM SERVICES,07/04/2016,1022.35,MISC CHARGES,V000996183
ROCHDALE BOROUGH COUNCIL,07/04/2016,PHYSICAL DIS & OLDER PEOPLE,TUNSTALL HEALTHCARE (UK) LTD,07/04/2016,654,EQUIPMENT - GENERAL,V000996185
ROCHDALE BOROUGH COUNCIL,13/04/2016,PHYSICAL DIS & OLDER PEOPLE,JUST CHECKING LTD,13/04/2016,1399,EQUIPMENT - GENERAL,V000996190
ROCHDALE BOROUGH COUNCIL,13/04/2016,PHYSICAL DIS & OLDER PEOPLE,JUST CHECKING LTD,13/04/2016,2170,EQUIPMENT - GENERAL,V000996191
ROCHDALE BOROUGH COUNCIL,13/04/2016,PHYSICAL DIS & OLDER PEOPLE,JUST CHECKING LTD,13/04/2016,1399,EQUIPMENT - GENERAL,V000996192
ROCHDALE BOROUGH COUNCIL,13/04/2016,LEARNING DIS & MENTAL HEALTH,FACE RECORDING & MEASUREMENT SYSTEMS LTD,13/04/2016,28983,IT MAINTENANCE,V000996194
ROCHDALE BOROUGH COUNCIL,13/04/2016,LEARNING DIS & MENTAL HEALTH,FACE RECORDING & MEASUREMENT SYSTEMS LTD,13/04/2016,7915,IT MAINTENANCE,V000996195
ROCHDALE BOROUGH COUNCIL,08/04/2016,FINANCE SERVICES,BINDMONT PRINT SERVICES LTD,08/04/2016,7808,PRINTING & STATIONERY,V000996197
ROCHDALE BOROUGH COUNCIL,14/04/2016,NEIGHBOURHOODS AND ENVIRONMENT,OFFICE SUPPLIES NOW LTD,14/04/2016,832,IT EQUIPMENT,V000996200
ROCHDALE BOROUGH COUNCIL,14/04/2016,NEIGHBOURHOODS AND ENVIRONMENT,OFFICE SUPPLIES NOW LTD,14/04/2016,900,IT EQUIPMENT,V000996200
ROCHDALE BOROUGH COUNCIL,13/04/2016,NEIGHBOURHOODS AND ENVIRONMENT,CALVAG,13/04/2016,500.45,EQUIPMENT - GENERAL,V000996201
ROCHDALE BOROUGH COUNCIL,07/04/2016,ECONOMY DIRECTORATE,ANTHONY GILL,07/04/2016,810,CONSULTANT FEES,V000996206
ROCHDALE BOROUGH COUNCIL,13/04/2016,PUBLIC HEALTH,BIG LIFE CENTRES,13/04/2016,50000,PH BIG LIFE CONTRACT,V000996215
ROCHDALE BOROUGH COUNCIL,26/04/2016,PUBLIC HEALTH,CENTRAL MANCHESTER UNIVERSITY HOSPITALS NHS TRUST,26/04/2016,1282,PH OTHER CONTRACTS,V000996220
ROCHDALE BOROUGH COUNCIL,26/04/2016,PUBLIC HEALTH,CENTRAL MANCHESTER UNIVERSITY HOSPITALS NHS TRUST,26/04/2016,1148,PH OTHER CONTRACTS,V000996221
ROCHDALE BOROUGH COUNCIL,07/04/2016,ECONOMY DIRECTORATE,TURNER AND  TOWNSEND,07/04/2016,3960,OTHER SURVEYS,V000996222
ROCHDALE BOROUGH COUNCIL,07/04/2016,NEIGHBOURHOODS AND ENVIRONMENT,BURNT TREE GROUP LIMITED,07/04/2016,635.8,TRANSACTIONS-EXPENDITURE,V000996225
ROCHDALE BOROUGH COUNCIL,07/04/2016,NEIGHBOURHOODS AND ENVIRONMENT,BURNT TREE GROUP LIMITED,07/04/2016,994,VEHICLE MAINTENANCE,V000996226
ROCHDALE BOROUGH COUNCIL,15/04/2016,FINANCE SERVICES,SUPPLIES TEAM LIMITED,15/04/2016,645.15,EQUIPMENT - GENERAL,V000996244
ROCHDALE BOROUGH COUNCIL,07/04/2016,NEIGHBOURHOODS AND ENVIRONMENT,IFZW MAINTENANCE LTD,07/04/2016,875,SPECIFIED MAINTENANCE,V000996245
ROCHDALE BOROUGH COUNCIL,07/04/2016,CHILDREN�S SOCIAL CARE,CHRISTINE FOSTER LIMITED,07/04/2016,1825,AGENCY STAFF,V000996246
ROCHDALE BOROUGH COUNCIL,14/04/2016,NEIGHBOURHOODS AND ENVIRONMENT,GROUNDWORK LANDSCAPES LIMITED,14/04/2016,2250,EQUIPMENT - GENERAL,V000996247
ROCHDALE BOROUGH COUNCIL,07/04/2016,CHILDREN�S SOCIAL CARE,CAREERVISION LTD,07/04/2016,33332,SOFTWARE,V000996249
ROCHDALE BOROUGH COUNCIL,07/04/2016,NEIGHBOURHOODS AND ENVIRONMENT,NEW IMAGE PUBLIC RELATIONS LIMITED,07/04/2016,4750,CONTRACTED SERVICES,V000996250
ROCHDALE BOROUGH COUNCIL,08/04/2016,NEIGHBOURHOODS AND ENVIRONMENT,ORCHARD  RECYCLING SERVICE LTD,08/04/2016,1255.6,EQUIPMENT - GENERAL,V000996251
ROCHDALE BOROUGH COUNCIL,14/04/2016,NEIGHBOURHOODS AND ENVIRONMENT,J A CRYER EXCAVATION & GROUNDWORK CONTRACTORS LTD,14/04/2016,2401,IMPROVEMENTS-MODERNISATION,V000996252
ROCHDALE BOROUGH COUNCIL,07/04/2016,NEIGHBOURHOODS AND ENVIRONMENT,RIVERSIDE TRUCK RENTAL,07/04/2016,4095,TRANSACTIONS-EXPENDITURE,V000996253
ROCHDALE BOROUGH COUNCIL,07/04/2016,NEIGHBOURHOODS AND ENVIRONMENT,JOHN DAVIDSON PIPES LTD,07/04/2016,657.01,EQUIPMENT - GENERAL,V000996254
ROCHDALE BOROUGH COUNCIL,08/04/2016,PHYSICAL DIS & OLDER PEOPLE,LPS TRAINING & CONSULTANCY LTD,08/04/2016,525,TRAINING,V000996261
ROCHDALE BOROUGH COUNCIL,15/04/2016,NEIGHBOURHOODS AND ENVIRONMENT,MRM STREET FURNITURE LTD,15/04/2016,999,EQUIPMENT - GENERAL,V000996264
ROCHDALE BOROUGH COUNCIL,08/04/2016,NEIGHBOURHOODS AND ENVIRONMENT,NORDEN AGRICULTURAL CONTRACTORS,08/04/2016,4470,EQUIPMENT - GENERAL,V000996266
ROCHDALE BOROUGH COUNCIL,08/04/2016,NEIGHBOURHOODS AND ENVIRONMENT,NORDEN AGRICULTURAL CONTRACTORS,08/04/2016,5000,EQUIPMENT - GENERAL,V000996267
ROCHDALE BOROUGH COUNCIL,07/04/2016,ECONOMY DIRECTORATE,JAMBOREE ARTS,07/04/2016,1181,ACTIVITIES,V000996269
ROCHDALE BOROUGH COUNCIL,15/04/2016,ECONOMY DIRECTORATE,JAMBOREE ARTS,15/04/2016,1987.5,ACTIVITIES,V000996270
ROCHDALE BOROUGH COUNCIL,07/04/2016,EARLY HELP AND SCHOOLS,REAL TRUST,07/04/2016,913.5,EQUIPMENT - GENERAL,V000996272
ROCHDALE BOROUGH COUNCIL,07/04/2016,NEIGHBOURHOODS AND ENVIRONMENT,ROCHDALE MEMORIAL SERVICE,07/04/2016,8030,FIXTURES & FITTINGS,V000996274
ROCHDALE BOROUGH COUNCIL,15/04/2016,PUBLIC HEALTH,SAFETY BUG TRAINING LTD,15/04/2016,1350,EQUIPMENT - GENERAL,V000996282
ROCHDALE BOROUGH COUNCIL,07/04/2016,FINANCE SERVICES,SHAW & SONS LIMITED,07/04/2016,584.51,ELECTION MATERIALS,V000996283
ROCHDALE BOROUGH COUNCIL,07/04/2016,NEIGHBOURHOODS AND ENVIRONMENT,TLC GARDEN SERVICES,07/04/2016,765,FENCING,V000996288
ROCHDALE BOROUGH COUNCIL,14/04/2016,FINANCE SERVICES,VENN GROUP LIMITED,14/04/2016,1767.12,AGENCY STAFF,V000996293
ROCHDALE BOROUGH COUNCIL,14/04/2016,FINANCE SERVICES,VENN GROUP LIMITED,14/04/2016,1295.3,AGENCY STAFF,V000996294
ROCHDALE BOROUGH COUNCIL,08/04/2016,CHILDREN�S SOCIAL CARE,REDACTED - PERSONAL DATA,08/04/2016,525.16,FOSTER PARENTS BASIC ALLOWANCE,V000996295
ROCHDALE BOROUGH COUNCIL,08/04/2016,CHILDREN�S SOCIAL CARE,REDACTED - PERSONAL DATA,08/04/2016,681.22,FOSTER PARENTS BASIC ALLOWANCE,V000996295
ROCHDALE BOROUGH COUNCIL,08/04/2016,CHILDREN�S SOCIAL CARE,REDACTED - PERSONAL DATA,08/04/2016,761.02,FOSTER PARENTS BASIC ALLOWANCE,V000996296
ROCHDALE BOROUGH COUNCIL,08/04/2016,CHILDREN�S SOCIAL CARE,REDACTED - PERSONAL DATA,08/04/2016,560,FOSTER PARENTS BASIC ALLOWANCE,V000996297
ROCHDALE BOROUGH COUNCIL,08/04/2016,CHILDREN�S SOCIAL CARE,REDACTED - PERSONAL DATA,08/04/2016,560,FOSTER PARENTS BASIC ALLOWANCE,V000996297
ROCHDALE BOROUGH COUNCIL,08/04/2016,CHILDREN�S SOCIAL CARE,REDACTED - PERSONAL DATA,08/04/2016,572.4,FOSTER PARENTS BASIC ALLOWANCE,V000996298
ROCHDALE BOROUGH COUNCIL,08/04/2016,CHILDREN�S SOCIAL CARE,REDACTED - PERSONAL DATA,08/04/2016,699.76,FOSTER PARENTS BASIC ALLOWANCE,V000996299
ROCHDALE BOROUGH COUNCIL,08/04/2016,CHILDREN�S SOCIAL CARE,REDACTED - PERSONAL DATA,08/04/2016,681.22,FOSTER PARENTS BASIC ALLOWANCE,V000996306
ROCHDALE BOROUGH COUNCIL,08/04/2016,CHILDREN�S SOCIAL CARE,REDACTED - PERSONAL DATA,08/04/2016,827.64,PROFESSIONAL FEES,V000996306
ROCHDALE BOROUGH COUNCIL,08/04/2016,CHILDREN�S SOCIAL CARE,REDACTED - PERSONAL DATA,08/04/2016,608.62,FOSTER PARENTS BASIC ALLOWANCE,V000996307
ROCHDALE BOROUGH COUNCIL,08/04/2016,CHILDREN�S SOCIAL CARE,REDACTED - PERSONAL DATA,08/04/2016,572.4,FOSTER PARENTS BASIC ALLOWANCE,V000996308
ROCHDALE BOROUGH COUNCIL,08/04/2016,CHILDREN�S SOCIAL CARE,REDACTED - PERSONAL DATA,08/04/2016,572.4,FOSTER PARENTS BASIC ALLOWANCE,V000996311
ROCHDALE BOROUGH COUNCIL,08/04/2016,CHILDREN�S SOCIAL CARE,REDACTED - PERSONAL DATA,08/04/2016,613.32,FOSTER PARENTS BASIC ALLOWANCE,V000996314
ROCHDALE BOROUGH COUNCIL,08/04/2016,CHILDREN�S SOCIAL CARE,REDACTED - PERSONAL DATA,08/04/2016,608.62,FOSTER PARENTS BASIC ALLOWANCE,V000996315
ROCHDALE BOROUGH COUNCIL,08/04/2016,CHILDREN�S SOCIAL CARE,REDACTED - PERSONAL DATA,08/04/2016,560,FOSTER PARENTS BASIC ALLOWANCE,V000996317
ROCHDALE BOROUGH COUNCIL,08/04/2016,CHILDREN�S SOCIAL CARE,REDACTED - PERSONAL DATA,08/04/2016,560,FOSTER PARENTS BASIC ALLOWANCE,V000996317
ROCHDALE BOROUGH COUNCIL,08/04/2016,CHILDREN�S SOCIAL CARE,REDACTED - PERSONAL DATA,08/04/2016,572.4,FOSTER PARENTS BASIC ALLOWANCE,V000996328
ROCHDALE BOROUGH COUNCIL,08/04/2016,CHILDREN�S SOCIAL CARE,REDACTED - PERSONAL DATA,08/04/2016,587.66,FOSTER PARENTS BASIC ALLOWANCE,V000996336
ROCHDALE BOROUGH COUNCIL,08/04/2016,CHILDREN�S SOCIAL CARE,REDACTED - PERSONAL DATA,08/04/2016,608.62,FOSTER PARENTS BASIC ALLOWANCE,V000996341
ROCHDALE BOROUGH COUNCIL,08/04/2016,CHILDREN�S SOCIAL CARE,REDACTED - PERSONAL DATA,08/04/2016,583.68,SUBSIDISED ADOPTERS PMTS,V000996344
ROCHDALE BOROUGH COUNCIL,08/04/2016,CHILDREN�S SOCIAL CARE,REDACTED - PERSONAL DATA,08/04/2016,778.24,SUBSIDISED ADOPTERS PMTS,V000996344
ROCHDALE BOROUGH COUNCIL,08/04/2016,LEARNING DIS & MENTAL HEALTH,REDACTED - PERSONAL DATA,08/04/2016,827.64,CONTRACTS,V000996345
ROCHDALE BOROUGH COUNCIL,08/04/2016,CHILDREN�S SOCIAL CARE,REDACTED - PERSONAL DATA,08/04/2016,560,FOSTER PARENTS BASIC ALLOWANCE,V000996354
ROCHDALE BOROUGH COUNCIL,08/04/2016,CHILDREN�S SOCIAL CARE,REDACTED - PERSONAL DATA,08/04/2016,560,FOSTER PARENTS BASIC ALLOWANCE,V000996354
ROCHDALE BOROUGH COUNCIL,08/04/2016,CHILDREN�S SOCIAL CARE,REDACTED - PERSONAL DATA,08/04/2016,560,FOSTER PARENTS BASIC ALLOWANCE,V000996354
ROCHDALE BOROUGH COUNCIL,08/04/2016,CHILDREN�S SOCIAL CARE,REDACTED - PERSONAL DATA,08/04/2016,627.96,FOSTER PARENTS BASIC ALLOWANCE,V000996357
ROCHDALE BOROUGH COUNCIL,08/04/2016,CHILDREN�S SOCIAL CARE,REDACTED - PERSONAL DATA,08/04/2016,1017.42,FOSTER PARENTS BASIC ALLOWANCE,V000996357
ROCHDALE BOROUGH COUNCIL,08/04/2016,CHILDREN�S SOCIAL CARE,REDACTED - PERSONAL DATA,08/04/2016,537.12,SUBSIDISED ADOPTERS PMTS,V000996359
ROCHDALE BOROUGH COUNCIL,08/04/2016,CHILDREN�S SOCIAL CARE,REDACTED - PERSONAL DATA,08/04/2016,543.98,FOSTER PARENTS BASIC ALLOWANCE,V000996362
ROCHDALE BOROUGH COUNCIL,08/04/2016,CHILDREN�S SOCIAL CARE,REDACTED - PERSONAL DATA,08/04/2016,560,FOSTER PARENTS BASIC ALLOWANCE,V000996363
ROCHDALE BOROUGH COUNCIL,08/04/2016,CHILDREN�S SOCIAL CARE,REDACTED - PERSONAL DATA,08/04/2016,560,FOSTER PARENTS BASIC ALLOWANCE,V000996363
ROCHDALE BOROUGH COUNCIL,08/04/2016,CHILDREN�S SOCIAL CARE,REDACTED - PERSONAL DATA,08/04/2016,699.76,FOSTER PARENTS BASIC ALLOWANCE,V000996366
ROCHDALE BOROUGH COUNCIL,08/04/2016,CHILDREN�S SOCIAL CARE,REDACTED - PERSONAL DATA,08/04/2016,990.6,SUBSIDISED ADOPTERS PMTS,V000996369
ROCHDALE BOROUGH COUNCIL,08/04/2016,CHILDREN�S SOCIAL CARE,REDACTED - PERSONAL DATA,08/04/2016,560,FOSTER PARENTS BASIC ALLOWANCE,V000996371
ROCHDALE BOROUGH COUNCIL,08/04/2016,CHILDREN�S SOCIAL CARE,REDACTED - PERSONAL DATA,08/04/2016,560,FOSTER PARENTS BASIC ALLOWANCE,V000996371
ROCHDALE BOROUGH COUNCIL,08/04/2016,CHILDREN�S SOCIAL CARE,REDACTED - PERSONAL DATA,08/04/2016,560,FOSTER PARENTS BASIC ALLOWANCE,V000996371
ROCHDALE BOROUGH COUNCIL,08/04/2016,CHILDREN�S SOCIAL CARE,REDACTED - PERSONAL DATA,08/04/2016,699.76,FOSTER PARENTS BASIC ALLOWANCE,V000996374
ROCHDALE BOROUGH COUNCIL,08/04/2016,CHILDREN�S SOCIAL CARE,REDACTED - PERSONAL DATA,08/04/2016,827.64,PROFESSIONAL FEES,V000996378
ROCHDALE BOROUGH COUNCIL,08/04/2016,CHILDREN�S SOCIAL CARE,REDACTED - PERSONAL DATA,08/04/2016,927.08,SUBSIDISED ADOPTERS PMTS,V000996383
ROCHDALE BOROUGH COUNCIL,08/04/2016,EARLY HELP AND SCHOOLS,REDACTED - PERSONAL DATA,08/04/2016,914.96,FOSTER PARENTS BASIC ALLOWANCE,V000996384
ROCHDALE BOROUGH COUNCIL,08/04/2016,CHILDREN�S SOCIAL CARE,REDACTED - PERSONAL DATA,08/04/2016,615.87,SUBSISTENCE,V000996386
ROCHDALE BOROUGH COUNCIL,08/04/2016,CHILDREN�S SOCIAL CARE,REDACTED - PERSONAL DATA,08/04/2016,681.22,FOSTER PARENTS BASIC ALLOWANCE,V000996403
ROCHDALE BOROUGH COUNCIL,08/04/2016,CHILDREN�S SOCIAL CARE,REDACTED - PERSONAL DATA,08/04/2016,681.22,FOSTER PARENTS BASIC ALLOWANCE,V000996412
ROCHDALE BOROUGH COUNCIL,08/04/2016,CHILDREN�S SOCIAL CARE,REDACTED - PERSONAL DATA,08/04/2016,827.64,PROFESSIONAL FEES,V000996418
ROCHDALE BOROUGH COUNCIL,08/04/2016,CHILDREN�S SOCIAL CARE,REDACTED - PERSONAL DATA,08/04/2016,827.64,PROFESSIONAL FEES,V000996420
ROCHDALE BOROUGH COUNCIL,08/04/2016,CHILDREN�S SOCIAL CARE,REDACTED - PERSONAL DATA,08/04/2016,681.22,FOSTER PARENTS BASIC ALLOWANCE,V000996424
ROCHDALE BOROUGH COUNCIL,08/04/2016,EARLY HELP AND SCHOOLS,REDACTED - PERSONAL DATA,08/04/2016,914.96,FOSTER PARENTS BASIC ALLOWANCE,V000996427
ROCHDALE BOROUGH COUNCIL,08/04/2016,CHILDREN�S SOCIAL CARE,REDACTED - PERSONAL DATA,08/04/2016,724.7,SUBSIDISED ADOPTERS PMTS,V000996430
ROCHDALE BOROUGH COUNCIL,08/04/2016,CHILDREN�S SOCIAL CARE,REDACTED - PERSONAL DATA,08/04/2016,724.7,SUBSIDISED ADOPTERS PMTS,V000996430
ROCHDALE BOROUGH COUNCIL,08/04/2016,CHILDREN�S SOCIAL CARE,REDACTED - PERSONAL DATA,08/04/2016,668,FOSTER PARENTS BASIC ALLOWANCE,V000996431
ROCHDALE BOROUGH COUNCIL,08/04/2016,CHILDREN�S SOCIAL CARE,REDACTED - PERSONAL DATA,08/04/2016,668,FOSTER PARENTS BASIC ALLOWANCE,V000996431
ROCHDALE BOROUGH COUNCIL,08/04/2016,CHILDREN�S SOCIAL CARE,REDACTED - PERSONAL DATA,08/04/2016,560,FOSTER PARENTS BASIC ALLOWANCE,V000996440
ROCHDALE BOROUGH COUNCIL,08/04/2016,CHILDREN�S SOCIAL CARE,REDACTED - PERSONAL DATA,08/04/2016,560,FOSTER PARENTS BASIC ALLOWANCE,V000996440
ROCHDALE BOROUGH COUNCIL,08/04/2016,CHILDREN�S SOCIAL CARE,REDACTED - PERSONAL DATA,08/04/2016,827.64,PROFESSIONAL FEES,V000996442
ROCHDALE BOROUGH COUNCIL,08/04/2016,CHILDREN�S SOCIAL CARE,REDACTED - PERSONAL DATA,08/04/2016,1144.81,GRANTS TO THE NON VOLUNTARY SECTOR,V000996443
ROCHDALE BOROUGH COUNCIL,08/04/2016,CHILDREN�S SOCIAL CARE,REDACTED - PERSONAL DATA,08/04/2016,572.4,FOSTER PARENTS BASIC ALLOWANCE,V000996444
ROCHDALE BOROUGH COUNCIL,08/04/2016,CHILDREN�S SOCIAL CARE,REDACTED - PERSONAL DATA,08/04/2016,608.62,FOSTER PARENTS BASIC ALLOWANCE,V000996446
ROCHDALE BOROUGH COUNCIL,08/04/2016,CHILDREN�S SOCIAL CARE,REDACTED - PERSONAL DATA,08/04/2016,560,FOSTER PARENTS BASIC ALLOWANCE,V000996452
ROCHDALE BOROUGH COUNCIL,08/04/2016,CHILDREN�S SOCIAL CARE,REDACTED - PERSONAL DATA,08/04/2016,560,FOSTER PARENTS BASIC ALLOWANCE,V000996452
ROCHDALE BOROUGH COUNCIL,08/04/2016,CHILDREN�S SOCIAL CARE,REDACTED - PERSONAL DATA,08/04/2016,681.22,FOSTER PARENTS BASIC ALLOWANCE,V000996454
ROCHDALE BOROUGH COUNCIL,08/04/2016,CHILDREN�S SOCIAL CARE,REDACTED - PERSONAL DATA,08/04/2016,560,FOSTER PARENTS BASIC ALLOWANCE,V000996457
ROCHDALE BOROUGH COUNCIL,08/04/2016,CHILDREN�S SOCIAL CARE,REDACTED - PERSONAL DATA,08/04/2016,560,FOSTER PARENTS BASIC ALLOWANCE,V000996457
ROCHDALE BOROUGH COUNCIL,08/04/2016,CHILDREN�S SOCIAL CARE,REDACTED - PERSONAL DATA,08/04/2016,560,FOSTER PARENTS BASIC ALLOWANCE,V000996457
ROCHDALE BOROUGH COUNCIL,08/04/2016,CHILDREN�S SOCIAL CARE,REDACTED - PERSONAL DATA,08/04/2016,560,FOSTER PARENTS BASIC ALLOWANCE,V000996457
ROCHDALE BOROUGH COUNCIL,08/04/2016,CHILDREN�S SOCIAL CARE,REDACTED - PERSONAL DATA,08/04/2016,608.62,FOSTER PARENTS BASIC ALLOWANCE,V000996459
ROCHDALE BOROUGH COUNCIL,08/04/2016,CHILDREN�S SOCIAL CARE,REDACTED - PERSONAL DATA,08/04/2016,525.16,FOSTER PARENTS BASIC ALLOWANCE,V000996462
ROCHDALE BOROUGH COUNCIL,08/04/2016,CHILDREN�S SOCIAL CARE,REDACTED - PERSONAL DATA,08/04/2016,681.22,FOSTER PARENTS BASIC ALLOWANCE,V000996462
ROCHDALE BOROUGH COUNCIL,08/04/2016,CHILDREN�S SOCIAL CARE,REDACTED - PERSONAL DATA,08/04/2016,500,SUBSIDISED ADOPTERS PMTS,V000996469
ROCHDALE BOROUGH COUNCIL,08/04/2016,CHILDREN�S SOCIAL CARE,REDACTED - PERSONAL DATA,08/04/2016,500,SUBSIDISED ADOPTERS PMTS,V000996469
ROCHDALE BOROUGH COUNCIL,08/04/2016,CHILDREN�S SOCIAL CARE,REDACTED - PERSONAL DATA,08/04/2016,532.14,FOSTER PARENTS BASIC ALLOWANCE,V000996470
ROCHDALE BOROUGH COUNCIL,08/04/2016,CHILDREN�S SOCIAL CARE,REDACTED - PERSONAL DATA,08/04/2016,560,FOSTER PARENTS BASIC ALLOWANCE,V000996474
ROCHDALE BOROUGH COUNCIL,08/04/2016,CHILDREN�S SOCIAL CARE,REDACTED - PERSONAL DATA,08/04/2016,560,FOSTER PARENTS BASIC ALLOWANCE,V000996474
ROCHDALE BOROUGH COUNCIL,08/04/2016,CHILDREN�S SOCIAL CARE,REDACTED - PERSONAL DATA,08/04/2016,572.4,FOSTER PARENTS BASIC ALLOWANCE,V000996475
ROCHDALE BOROUGH COUNCIL,08/04/2016,CHILDREN�S SOCIAL CARE,REDACTED - PERSONAL DATA,08/04/2016,572.4,FOSTER PARENTS BASIC ALLOWANCE,V000996479
ROCHDALE BOROUGH COUNCIL,08/04/2016,CHILDREN�S SOCIAL CARE,REDACTED - PERSONAL DATA,08/04/2016,827.64,PROFESSIONAL FEES,V000996482
ROCHDALE BOROUGH COUNCIL,08/04/2016,CHILDREN�S SOCIAL CARE,REDACTED - PERSONAL DATA,08/04/2016,572.4,FOSTER PARENTS BASIC ALLOWANCE,V000996486
ROCHDALE BOROUGH COUNCIL,08/04/2016,CHILDREN�S SOCIAL CARE,REDACTED - PERSONAL DATA,08/04/2016,572.4,FOSTER PARENTS BASIC ALLOWANCE,V000996487
ROCHDALE BOROUGH COUNCIL,08/04/2016,CHILDREN�S SOCIAL CARE,REDACTED - PERSONAL DATA,08/04/2016,572.4,FOSTER PARENTS BASIC ALLOWANCE,V000996488
ROCHDALE BOROUGH COUNCIL,08/04/2016,CHILDREN�S SOCIAL CARE,REDACTED - PERSONAL DATA,08/04/2016,560,FOSTER PARENTS BASIC ALLOWANCE,V000996489
ROCHDALE BOROUGH COUNCIL,08/04/2016,CHILDREN�S SOCIAL CARE,REDACTED - PERSONAL DATA,08/04/2016,560,FOSTER PARENTS BASIC ALLOWANCE,V000996489
ROCHDALE BOROUGH COUNCIL,08/04/2016,CHILDREN�S SOCIAL CARE,REDACTED - PERSONAL DATA,08/04/2016,608.62,FOSTER PARENTS BASIC ALLOWANCE,V000996492
ROCHDALE BOROUGH COUNCIL,08/04/2016,CHILDREN�S SOCIAL CARE,REDACTED - PERSONAL DATA,08/04/2016,681.22,FOSTER PARENTS BASIC ALLOWANCE,V000996496
ROCHDALE BOROUGH COUNCIL,08/04/2016,CHILDREN�S SOCIAL CARE,REDACTED - PERSONAL DATA,08/04/2016,761.02,FOSTER PARENTS BASIC ALLOWANCE,V000996508
ROCHDALE BOROUGH COUNCIL,08/04/2016,CHILDREN�S SOCIAL CARE,REDACTED - PERSONAL DATA,08/04/2016,641.86,FOSTER PARENTS BASIC ALLOWANCE,V000996510
ROCHDALE BOROUGH COUNCIL,08/04/2016,CHILDREN�S SOCIAL CARE,REDACTED - PERSONAL DATA,08/04/2016,604.96,FOSTER PARENTS BASIC ALLOWANCE,V000996521
ROCHDALE BOROUGH COUNCIL,08/04/2016,CHILDREN�S SOCIAL CARE,REDACTED - PERSONAL DATA,08/04/2016,681.22,FOSTER PARENTS BASIC ALLOWANCE,V000996521
ROCHDALE BOROUGH COUNCIL,08/04/2016,CHILDREN�S SOCIAL CARE,REDACTED - PERSONAL DATA,08/04/2016,608.62,FOSTER PARENTS BASIC ALLOWANCE,V000996522
ROCHDALE BOROUGH COUNCIL,08/04/2016,CHILDREN�S SOCIAL CARE,REDACTED - PERSONAL DATA,08/04/2016,691.38,FOSTER PARENTS BASIC ALLOWANCE,V000996522
ROCHDALE BOROUGH COUNCIL,08/04/2016,CHILDREN�S SOCIAL CARE,REDACTED - PERSONAL DATA,08/04/2016,-594.76,FOSTER PARENTS BASIC ALLOWANCE,V000996524
ROCHDALE BOROUGH COUNCIL,08/04/2016,CHILDREN�S SOCIAL CARE,REDACTED - PERSONAL DATA,08/04/2016,560,FOSTER PARENTS BASIC ALLOWANCE,V000996541
ROCHDALE BOROUGH COUNCIL,08/04/2016,CHILDREN�S SOCIAL CARE,REDACTED - PERSONAL DATA,08/04/2016,560,FOSTER PARENTS BASIC ALLOWANCE,V000996541
ROCHDALE BOROUGH COUNCIL,08/04/2016,CHILDREN�S SOCIAL CARE,REDACTED - PERSONAL DATA,08/04/2016,827.64,FOSTER PARENTS BASIC ALLOWANCE,V000996552
ROCHDALE BOROUGH COUNCIL,08/04/2016,CHILDREN�S SOCIAL CARE,REDACTED - PERSONAL DATA,08/04/2016,608.62,FOSTER PARENTS BASIC ALLOWANCE,V000996554
ROCHDALE BOROUGH COUNCIL,08/04/2016,CHILDREN�S SOCIAL CARE,REDACTED - PERSONAL DATA,08/04/2016,827.64,PROFESSIONAL FEES,V000996554
ROCHDALE BOROUGH COUNCIL,08/04/2016,CHILDREN�S SOCIAL CARE,REDACTED - PERSONAL DATA,08/04/2016,670.85,FOSTER PARENTS BASIC ALLOWANCE,V000996567
ROCHDALE BOROUGH COUNCIL,08/04/2016,CHILDREN�S SOCIAL CARE,REDACTED - PERSONAL DATA,08/04/2016,805,FOSTER PARENTS BASIC ALLOWANCE,V000996572
ROCHDALE BOROUGH COUNCIL,08/04/2016,CHILDREN�S SOCIAL CARE,REDACTED - PERSONAL DATA,08/04/2016,827.64,PROFESSIONAL FEES,V000996578
ROCHDALE BOROUGH COUNCIL,08/04/2016,CHILDREN�S SOCIAL CARE,REDACTED - PERSONAL DATA,08/04/2016,681.22,FOSTER PARENTS BASIC ALLOWANCE,V000996584
ROCHDALE BOROUGH COUNCIL,08/04/2016,CHILDREN�S SOCIAL CARE,REDACTED - PERSONAL DATA,08/04/2016,523.64,FOSTER PARENTS BASIC ALLOWANCE,V000996595
ROCHDALE BOROUGH COUNCIL,08/04/2016,CHILDREN�S SOCIAL CARE,REDACTED - PERSONAL DATA,08/04/2016,761.02,FOSTER PARENTS BASIC ALLOWANCE,V000996598
ROCHDALE BOROUGH COUNCIL,08/04/2016,CHILDREN�S SOCIAL CARE,REDACTED - PERSONAL DATA,08/04/2016,827.64,PROFESSIONAL FEES,V000996608
ROCHDALE BOROUGH COUNCIL,08/04/2016,CHILDREN�S SOCIAL CARE,REDACTED - PERSONAL DATA,08/04/2016,827.64,PROFESSIONAL FEES,V000996612
ROCHDALE BOROUGH COUNCIL,08/04/2016,CHILDREN�S SOCIAL CARE,REDACTED - PERSONAL DATA,08/04/2016,752.84,FOSTER PARENTS BASIC ALLOWANCE,V000996615
ROCHDALE BOROUGH COUNCIL,07/04/2016,ECONOMY DIRECTORATE,MATCHTECH GROUP PLC,07/04/2016,618.75,AGENCY STAFF,V000996631
ROCHDALE BOROUGH COUNCIL,07/04/2016,ECONOMY DIRECTORATE,MATCHTECH GROUP PLC,07/04/2016,675,AGENCY STAFF,V000996632
ROCHDALE BOROUGH COUNCIL,29/04/2016,PHYSICAL DIS & OLDER PEOPLE,THE PENNINE ACUTE HOSPITALS NHS TRUST,29/04/2016,3233.91,AGENCY STAFF,V000996634
ROCHDALE BOROUGH COUNCIL,15/04/2016,PROPERTY AND HIGHWAYS,KABERRY CONSTRUCTION LIMITED,15/04/2016,17000,IMPROVEMENTS-MODERNISATION,V000996645
ROCHDALE BOROUGH COUNCIL,07/04/2016,ECONOMY DIRECTORATE,DNA INSULATION SERVICES LTD.,07/04/2016,5625.77,GRANTS TO THE NON VOLUNTARY SECTOR,V000996653
ROCHDALE BOROUGH COUNCIL,20/04/2016,FINANCE SERVICES,THE PENNINE ACUTE HOSPITALS NHS TRUST,20/04/2016,6508.33,OCCUPATIONAL HEALTH,V000996655
ROCHDALE BOROUGH COUNCIL,13/04/2016,NEIGHBOURHOODS AND ENVIRONMENT,RICHARD BATTERSBY CORN MERCHANTS LTD,13/04/2016,725.2,EQUIPMENT - GENERAL,V000996657
ROCHDALE BOROUGH COUNCIL,11/04/2016,ECONOMY DIRECTORATE,CHUBB FIRE AND SECURITY LIMITED,11/04/2016,892.7,SECURITY,V000996661
ROCHDALE BOROUGH COUNCIL,07/04/2016,FINANCE SERVICES,MERITEC LIMITED,07/04/2016,23107.5,AGENCY STAFF,V000996667
ROCHDALE BOROUGH COUNCIL,07/04/2016,NEIGHBOURHOODS AND ENVIRONMENT,AEBI SCHMIDT UK LIMITED,07/04/2016,954.7,VEHICLE MAINTENANCE,V000996668
ROCHDALE BOROUGH COUNCIL,07/04/2016,NEIGHBOURHOODS AND ENVIRONMENT,CAR 2000 HEYWOOD LLP,07/04/2016,595,TAXI HIRE,V000996669
ROCHDALE BOROUGH COUNCIL,07/04/2016,NEIGHBOURHOODS AND ENVIRONMENT,ROCHDALE SIGNS LIMITED,07/04/2016,725,PURCHASE OF VEHICLES,V000996670
ROCHDALE BOROUGH COUNCIL,07/04/2016,NEIGHBOURHOODS AND ENVIRONMENT,SSI SCHAEFER LIMITED,07/04/2016,13089.6,PURCHASE OF OTHER EQUIPMENT,V000996674
ROCHDALE BOROUGH COUNCIL,07/04/2016,ECONOMY DIRECTORATE,CHUBB FIRE AND SECURITY LIMITED,07/04/2016,1069.33,SECURITY,V000996678
ROCHDALE BOROUGH COUNCIL,15/04/2016,NEIGHBOURHOODS AND ENVIRONMENT,TEACRATE PLC,15/04/2016,1056,PROPERTY - WORKS ELEMENT,V000996680
ROCHDALE BOROUGH COUNCIL,07/04/2016,PROPERTY AND HIGHWAYS,PRIESTLEYS JOINERS,07/04/2016,595,TRANSACTIONS-EXPENDITURE,V000996682
ROCHDALE BOROUGH COUNCIL,07/04/2016,PROPERTY AND HIGHWAYS,WINTON FLOORING LIMITED,07/04/2016,3974.57,TRANSACTIONS-EXPENDITURE,V000996686
ROCHDALE BOROUGH COUNCIL,15/04/2016,PUBLIC HEALTH,ANIMAL WARDENS LIMITED,15/04/2016,1161,CONTRACTED SERVICES,V000996698
ROCHDALE BOROUGH COUNCIL,07/04/2016,CHILDREN�S SOCIAL CARE,YOUTH JUSTICE BOARD,07/04/2016,5487,SERVICE LEVEL AGREEMENTS,V000996703
ROCHDALE BOROUGH COUNCIL,07/04/2016,CHILDREN�S SOCIAL CARE,YOUTH JUSTICE BOARD,07/04/2016,3540,SERVICE LEVEL AGREEMENTS,V000996704
ROCHDALE BOROUGH COUNCIL,07/04/2016,CHILDREN�S SOCIAL CARE,YOUTH JUSTICE BOARD,07/04/2016,9940,SERVICE LEVEL AGREEMENTS,V000996705
ROCHDALE BOROUGH COUNCIL,07/04/2016,PROPERTY AND HIGHWAYS,NAB CONTRACTORS LTD,07/04/2016,1590,TRANSACTIONS-EXPENDITURE,V000996712
ROCHDALE BOROUGH COUNCIL,13/04/2016,PHYSICAL DIS & OLDER PEOPLE,DISABLED LIVING LTD,13/04/2016,500,TRAINING,V000996721
ROCHDALE BOROUGH COUNCIL,07/04/2016,NEIGHBOURHOODS AND ENVIRONMENT,OLDHAM & ROCHDALE GROUNDWORK TRUST LTD,07/04/2016,3071.5,FEES -CONSTRUCTION CONVERSION RENOVATION,V000996724
ROCHDALE BOROUGH COUNCIL,07/04/2016,CHILDREN�S SOCIAL CARE,TEAM TEACH LIMITED,07/04/2016,3735,TRAINING-QUALIFICATION,V000996727
ROCHDALE BOROUGH COUNCIL,27/04/2016,EARLY HELP AND SCHOOLS,BLACKBURN WITH DARWEN BC,27/04/2016,2375,OTHER EST - SEN PROVISION,V000996729
ROCHDALE BOROUGH COUNCIL,13/04/2016,EARLY HELP AND SCHOOLS,EMMA GORDON TUTORING,13/04/2016,525,OTHER EST - SEN PROVISION,V000996730
ROCHDALE BOROUGH COUNCIL,28/04/2016,EARLY HELP AND SCHOOLS,HOPWOOD HALL COLLEGE,28/04/2016,2000,OTHER EST - SEN PROVISION,V000996731
ROCHDALE BOROUGH COUNCIL,28/04/2016,EARLY HELP AND SCHOOLS,HOPWOOD HALL COLLEGE,28/04/2016,2000,OTHER EST - SEN PROVISION,V000996732
ROCHDALE BOROUGH COUNCIL,14/04/2016,EARLY HELP AND SCHOOLS,HOPWOOD HALL COLLEGE,14/04/2016,57671,OTHER EST - SEN PROVISION,V000996733
ROCHDALE BOROUGH COUNCIL,07/04/2016,NEIGHBOURHOODS AND ENVIRONMENT,ANDYS MINIBUS,07/04/2016,800,TAXI HIRE,V000996742
ROCHDALE BOROUGH COUNCIL,07/04/2016,NEIGHBOURHOODS AND ENVIRONMENT,STREAMLINE TAXIS,07/04/2016,767,TAXI HIRE,V000996743
ROCHDALE BOROUGH COUNCIL,15/04/2016,CHILDREN�S SOCIAL CARE,NORTH WEST EMPLOYERS,15/04/2016,7500,CONSULTANT FEES,V000996750
ROCHDALE BOROUGH COUNCIL,07/04/2016,NEIGHBOURHOODS AND ENVIRONMENT,NO GRAFFITI LTD,07/04/2016,804,CONTRACTED SERVICES,V000996753
ROCHDALE BOROUGH COUNCIL,07/04/2016,NEIGHBOURHOODS AND ENVIRONMENT,JMHA,07/04/2016,2900,PROPERTY REFURBISHMENT (HOUSING),V000996754
ROCHDALE BOROUGH COUNCIL,15/04/2016,NEIGHBOURHOODS AND ENVIRONMENT,TLC GARDEN SERVICES,15/04/2016,5350,SITE CLEARANCE -ENVIRONMENTAL WORKS,V000996761
ROCHDALE BOROUGH COUNCIL,07/04/2016,NEIGHBOURHOODS AND ENVIRONMENT,ALLIANCE DISPOSABLES LIMITED,07/04/2016,4319.58,HOSPITALITY,V000996764
ROCHDALE BOROUGH COUNCIL,14/04/2016,FINANCE SERVICES,JACOBS,14/04/2016,968.26,INPUT VAT -  ADJUSTMENTS,V000996776
ROCHDALE BOROUGH COUNCIL,28/04/2016,EARLY HELP AND SCHOOLS,WATERLOO LODGE SCHOOL LIMITED,28/04/2016,960,TRAVELLING GENERAL EXPENSES,V000996783
ROCHDALE BOROUGH COUNCIL,15/04/2016,LEARNING DIS & MENTAL HEALTH,COASTAL CHILD & ADOLESCENT THERAPUTIC SERVICES LTD,15/04/2016,2200,SOCIAL SERVICES OTHER,V000996796
ROCHDALE BOROUGH COUNCIL,15/04/2016,NEIGHBOURHOODS AND ENVIRONMENT,ORCHARD  RECYCLING SERVICE LTD,15/04/2016,1036.3,EQUIPMENT - GENERAL,V000996800
ROCHDALE BOROUGH COUNCIL,08/04/2016,NEIGHBOURHOODS AND ENVIRONMENT,BRAKE BROS FOOD SERVICE LTD,08/04/2016,589.4,PROVISIONS,V000996804
ROCHDALE BOROUGH COUNCIL,08/04/2016,NEIGHBOURHOODS AND ENVIRONMENT,BRAKE BROS FOOD SERVICE LTD,08/04/2016,615.46,PROVISIONS,V000996804
ROCHDALE BOROUGH COUNCIL,08/04/2016,NEIGHBOURHOODS AND ENVIRONMENT,BRAKE BROS FOOD SERVICE LTD,08/04/2016,767.18,PROVISIONS,V000996804
ROCHDALE BOROUGH COUNCIL,08/04/2016,NEIGHBOURHOODS AND ENVIRONMENT,BRAKE BROS FOOD SERVICE LTD,08/04/2016,668.88,PROVISIONS,V000996805
ROCHDALE BOROUGH COUNCIL,07/04/2016,NEIGHBOURHOODS AND ENVIRONMENT,SEEROS DAYCARE NURSERY LTD,07/04/2016,875,GRANTS TO THE NON VOLUNTARY SECTOR,V000996807
ROCHDALE BOROUGH COUNCIL,13/04/2016,PHYSICAL DIS & OLDER PEOPLE,BUDDI LTD,13/04/2016,1500,EQUIPMENT - GENERAL,V000996816
ROCHDALE BOROUGH COUNCIL,13/04/2016,NEIGHBOURHOODS AND ENVIRONMENT,MANTRA LEARNING LTD,13/04/2016,1330,TRAINING,V000996817
ROCHDALE BOROUGH COUNCIL,07/04/2016,FINANCE SERVICES,REDACTED - PERSONAL DATA,07/04/2016,8955,PROVISIONS UTILISED IN YEAR,V000996824
ROCHDALE BOROUGH COUNCIL,07/04/2016,FINANCE SERVICES,REDACTED - PERSONAL DATA,07/04/2016,40300,TRANSACTIONS-EXPENDITURE,V000996824
ROCHDALE BOROUGH COUNCIL,07/04/2016,FINANCE SERVICES,REDACTED - PERSONAL DATA,07/04/2016,50745,TRANSACTIONS-EXPENDITURE,V000996824
ROCHDALE BOROUGH COUNCIL,15/04/2016,NEIGHBOURHOODS AND ENVIRONMENT,LEYMAC ENGINEERING SERVICES LIMITED,15/04/2016,4273.55,MAINTENANCE,V000996861
ROCHDALE BOROUGH COUNCIL,07/04/2016,ECONOMY DIRECTORATE,MIDDLETON TOWN CENTRE MANAGEMENT CO LTD,07/04/2016,8750,GRANTS TO THE NON VOLUNTARY SECTOR,V000996868
ROCHDALE BOROUGH COUNCIL,15/04/2016,NEIGHBOURHOODS AND ENVIRONMENT,LEYMAC ENGINEERING SERVICES LIMITED,15/04/2016,568.75,MAINTENANCE,V000996881
ROCHDALE BOROUGH COUNCIL,13/04/2016,PHYSICAL DIS & OLDER PEOPLE,SAFEGARD SECURITY SOLUTIONS,13/04/2016,1998,ADAPTATIONS,V000996882
ROCHDALE BOROUGH COUNCIL,25/04/2016,NEIGHBOURHOODS AND ENVIRONMENT,UNITED UTILITIES WATER LIMITED,25/04/2016,640.46,WATER CHARGES,V000996888
ROCHDALE BOROUGH COUNCIL,25/04/2016,NEIGHBOURHOODS AND ENVIRONMENT,UNITED UTILITIES WATER LIMITED,25/04/2016,714.43,WATER CHARGES,V000996888
ROCHDALE BOROUGH COUNCIL,25/04/2016,NEIGHBOURHOODS AND ENVIRONMENT,UNITED UTILITIES WATER LIMITED,25/04/2016,721.15,WATER CHARGES,V000996888
ROCHDALE BOROUGH COUNCIL,25/04/2016,NEIGHBOURHOODS AND ENVIRONMENT,UNITED UTILITIES WATER LIMITED,25/04/2016,724.51,WATER CHARGES,V000996888
ROCHDALE BOROUGH COUNCIL,25/04/2016,NEIGHBOURHOODS AND ENVIRONMENT,UNITED UTILITIES WATER LIMITED,25/04/2016,990.11,WATER CHARGES,V000996888
ROCHDALE BOROUGH COUNCIL,15/04/2016,NEIGHBOURHOODS AND ENVIRONMENT,LEYMAC ENGINEERING SERVICES LIMITED,15/04/2016,641.36,MAINTENANCE,V000996902
ROCHDALE BOROUGH COUNCIL,15/04/2016,NEIGHBOURHOODS AND ENVIRONMENT,LEYMAC ENGINEERING SERVICES LIMITED,15/04/2016,2674.98,MAINTENANCE,V000996904
ROCHDALE BOROUGH COUNCIL,15/04/2016,NEIGHBOURHOODS AND ENVIRONMENT,LEYMAC ENGINEERING SERVICES LIMITED,15/04/2016,1560.43,MAINTENANCE,V000996905
ROCHDALE BOROUGH COUNCIL,08/04/2016,ECONOMY DIRECTORATE,LEANDER ARCHITECTURAL,08/04/2016,916,PURCHASE OF OTHER EQUIPMENT,V000996910
ROCHDALE BOROUGH COUNCIL,19/04/2016,FINANCE SERVICES,MERITEC LIMITED,19/04/2016,10942.75,AGENCY STAFF,V000996920
ROCHDALE BOROUGH COUNCIL,19/04/2016,FINANCE SERVICES,MERITEC LIMITED,19/04/2016,29057.25,AGENCY STAFF,V000996920
ROCHDALE BOROUGH COUNCIL,15/04/2016,NEIGHBOURHOODS AND ENVIRONMENT,LEYMAC ENGINEERING SERVICES LIMITED,15/04/2016,1259.95,MAINTENANCE,V000996929
ROCHDALE BOROUGH COUNCIL,08/04/2016,NEIGHBOURHOODS AND ENVIRONMENT,OLYMPIC EXECUTIVE TRAVEL,08/04/2016,1686.91,TAXI HIRE,V000996957
ROCHDALE BOROUGH COUNCIL,08/04/2016,NEIGHBOURHOODS AND ENVIRONMENT,OLYMPIC EXECUTIVE TRAVEL,08/04/2016,1567.5,TAXI HIRE,V000996958
ROCHDALE BOROUGH COUNCIL,08/04/2016,NEIGHBOURHOODS AND ENVIRONMENT,CAR 2000 HEYWOOD LLP,08/04/2016,1728,TAXI HIRE,V000996959
ROCHDALE BOROUGH COUNCIL,08/04/2016,NEIGHBOURHOODS AND ENVIRONMENT,OLYMPIC EXECUTIVE TRAVEL,08/04/2016,1786.14,TAXI HIRE,V000996960
ROCHDALE BOROUGH COUNCIL,08/04/2016,NEIGHBOURHOODS AND ENVIRONMENT,OLYMPIC EXECUTIVE TRAVEL,08/04/2016,1683,TAXI HIRE,V000996961
ROCHDALE BOROUGH COUNCIL,08/04/2016,NEIGHBOURHOODS AND ENVIRONMENT,OLYMPIC EXECUTIVE TRAVEL,08/04/2016,2219.42,TAXI HIRE,V000996962
ROCHDALE BOROUGH COUNCIL,08/04/2016,ECONOMY DIRECTORATE,ASSESSMENT SERVICES,08/04/2016,2180,MISC CHARGES,V000996964
ROCHDALE BOROUGH COUNCIL,15/04/2016,ECONOMY DIRECTORATE,OFFICE DEPOT UK LIMITED,15/04/2016,1064,GRANTS TO THE NON VOLUNTARY SECTOR,V000996979
ROCHDALE BOROUGH COUNCIL,26/04/2016,ECONOMY DIRECTORATE,CREATIVE  AND CULTURAL INDUSTRIES LTD,26/04/2016,35950,ACTIVITIES,V000996995
ROCHDALE BOROUGH COUNCIL,08/04/2016,FINANCE SERVICES,ROYAL MAIL GROUP PLC,08/04/2016,867.04,POSTAGE,V000996997
ROCHDALE BOROUGH COUNCIL,14/04/2016,PHYSICAL DIS & OLDER PEOPLE,ACTION FIRST IPEOPLE LTD,14/04/2016,700,FEES / COMMISSION,V000997003
ROCHDALE BOROUGH COUNCIL,14/04/2016,PHYSICAL DIS & OLDER PEOPLE,ACTION FIRST IPEOPLE LTD,14/04/2016,2100,FEES / COMMISSION,V000997004
ROCHDALE BOROUGH COUNCIL,14/04/2016,PHYSICAL DIS & OLDER PEOPLE,ACTION FIRST IPEOPLE LTD,14/04/2016,2100,FEES / COMMISSION,V000997006
ROCHDALE BOROUGH COUNCIL,08/04/2016,EARLY HELP AND SCHOOLS,CREATIVE CARE LTD.,08/04/2016,4314,HOME CARE - CHILDRENS SERVICES,V000997010
ROCHDALE BOROUGH COUNCIL,14/04/2016,PHYSICAL DIS & OLDER PEOPLE,HEYWOOD MIDDLETON AND ROCHDALE CIRCLE,14/04/2016,7304.5,SERVICE LEVEL AGREEMENTS,V000997011
ROCHDALE BOROUGH COUNCIL,08/04/2016,EARLY HELP AND SCHOOLS,BURNT TREE GROUP LIMITED,08/04/2016,2351.31,EXTERNAL HIRE,V000997022
ROCHDALE BOROUGH COUNCIL,08/04/2016,EARLY HELP AND SCHOOLS,PULSE HEALTHCARE LTD,08/04/2016,2435.76,HOME CARE - CHILDRENS SERVICES,V000997030
ROCHDALE BOROUGH COUNCIL,08/04/2016,NEIGHBOURHOODS AND ENVIRONMENT,DK MINIBUSES LTD,08/04/2016,1192.32,TAXI HIRE,V000997039
ROCHDALE BOROUGH COUNCIL,08/04/2016,NEIGHBOURHOODS AND ENVIRONMENT,DK MINIBUSES LTD,08/04/2016,1232.4,TAXI HIRE,V000997039
ROCHDALE BOROUGH COUNCIL,08/04/2016,FINANCE SERVICES,KEOGHS LLP,08/04/2016,1556,TRANSACTIONS-EXPENDITURE,V000997049
ROCHDALE BOROUGH COUNCIL,08/04/2016,PUBLIC HEALTH,OSBORNE RICHARDSON,08/04/2016,601,ACTIVITIES,V000997065
ROCHDALE BOROUGH COUNCIL,08/04/2016,PUBLIC HEALTH,OSBORNE RICHARDSON,08/04/2016,1064,ACTIVITIES,V000997066
ROCHDALE BOROUGH COUNCIL,15/04/2016,FINANCE SERVICES,LAVAT CONSULTING LIMITED,15/04/2016,945,ADVICE/SUPPORT,V000997067
ROCHDALE BOROUGH COUNCIL,15/04/2016,EARLY HELP AND SCHOOLS,SPORT WORKS,15/04/2016,8654.34,ACTIVITIES,V000997069
ROCHDALE BOROUGH COUNCIL,15/04/2016,LEARNING DIS & MENTAL HEALTH,TURNING POINT SERVICES LIMITED,15/04/2016,4986.3,SP BLOCK PAYMENTS - EXTERNAL,V000997070
ROCHDALE BOROUGH COUNCIL,19/04/2016,NEIGHBOURHOODS AND ENVIRONMENT,ENTERPRISE MANCHESTER PARTNERSHIP LTD,19/04/2016,1042.36,EQUIPMENT - GENERAL,V000997082
ROCHDALE BOROUGH COUNCIL,29/04/2016,EARLY HELP AND SCHOOLS,INSPIREDSPACES ROCHDALE PROJECT CO1 LTD,29/04/2016,319218.72,PFI SCHEMES RPIX,V000997088
ROCHDALE BOROUGH COUNCIL,15/04/2016,ECONOMY DIRECTORATE,VBA JOINT VENTURE LTD,15/04/2016,217557.28,NEW CONSTRUCTION,V000997092
ROCHDALE BOROUGH COUNCIL,08/04/2016,EARLY HELP AND SCHOOLS,OLDHAM COLLEGE,08/04/2016,13968.97,OTHER EST - SEN PROVISION,V000997094
ROCHDALE BOROUGH COUNCIL,18/04/2016,CHILDREN�S SOCIAL CARE,REDACTED - PERSONAL DATA,18/04/2016,5200,CONSULTANT FEES,V000997097
ROCHDALE BOROUGH COUNCIL,08/04/2016,NEIGHBOURHOODS AND ENVIRONMENT,REDACTED - PERSONAL DATA,08/04/2016,795,GRANTS TO INDIVIDUALS,V000997099
ROCHDALE BOROUGH COUNCIL,08/04/2016,EARLY HELP AND SCHOOLS,E MARLAND CHILDRENS RESPITE CARE LIMITED,08/04/2016,512,RESIDENTIAL RESPITE - CHILDRENS SERVICES,V000997106
ROCHDALE BOROUGH COUNCIL,08/04/2016,EARLY HELP AND SCHOOLS,E MARLAND CHILDRENS RESPITE CARE LIMITED,08/04/2016,512,RESIDENTIAL RESPITE - CHILDRENS SERVICES,V000997107
ROCHDALE BOROUGH COUNCIL,08/04/2016,EARLY HELP AND SCHOOLS,E MARLAND CHILDRENS RESPITE CARE LIMITED,08/04/2016,512,RESIDENTIAL RESPITE - CHILDRENS SERVICES,V000997108
ROCHDALE BOROUGH COUNCIL,08/04/2016,EARLY HELP AND SCHOOLS,DOMAIN CARE NORTH WEST LTD,08/04/2016,601.94,HOME CARE - CHILDRENS SERVICES,V000997109
ROCHDALE BOROUGH COUNCIL,13/04/2016,ECONOMY DIRECTORATE,ENCOME ENERGY PERFORMANCE UK LTT,13/04/2016,5520,PURCHASE OF PLANT AND MACHINERY,V000997111
ROCHDALE BOROUGH COUNCIL,18/04/2016,NEIGHBOURHOODS AND ENVIRONMENT,STRAND PRIVATE HIRE,18/04/2016,563.3,TAXI HIRE,V000997112
ROCHDALE BOROUGH COUNCIL,18/04/2016,NEIGHBOURHOODS AND ENVIRONMENT,STRAND PRIVATE HIRE,18/04/2016,934,TAXI HIRE,V000997112
ROCHDALE BOROUGH COUNCIL,18/04/2016,NEIGHBOURHOODS AND ENVIRONMENT,STRAND PRIVATE HIRE,18/04/2016,1054,TAXI HIRE,V000997112
ROCHDALE BOROUGH COUNCIL,18/04/2016,NEIGHBOURHOODS AND ENVIRONMENT,STRAND PRIVATE HIRE,18/04/2016,1085,TAXI HIRE,V000997112
ROCHDALE BOROUGH COUNCIL,18/04/2016,NEIGHBOURHOODS AND ENVIRONMENT,STRAND PRIVATE HIRE,18/04/2016,1109,TAXI HIRE,V000997112
ROCHDALE BOROUGH COUNCIL,18/04/2016,NEIGHBOURHOODS AND ENVIRONMENT,STRAND PRIVATE HIRE,18/04/2016,1253,TAXI HIRE,V000997112
ROCHDALE BOROUGH COUNCIL,18/04/2016,NEIGHBOURHOODS AND ENVIRONMENT,STRAND PRIVATE HIRE,18/04/2016,1360,TAXI HIRE,V000997112
ROCHDALE BOROUGH COUNCIL,18/04/2016,NEIGHBOURHOODS AND ENVIRONMENT,STRAND PRIVATE HIRE,18/04/2016,1404,TAXI HIRE,V000997112
ROCHDALE BOROUGH COUNCIL,18/04/2016,NEIGHBOURHOODS AND ENVIRONMENT,STREAMLINE TAXIS,18/04/2016,600,TAXI HIRE,V000997116
ROCHDALE BOROUGH COUNCIL,12/04/2016,EARLY HELP AND SCHOOLS,HOPWOOD HALL COLLEGE,12/04/2016,-57671,OTHER EST - SEN PROVISION,V000997117
ROCHDALE BOROUGH COUNCIL,15/04/2016,PROPERTY AND HIGHWAYS,ASBESTOS BUSINESS CONTRACTORS LTD,15/04/2016,14265,IMPROVEMENTS-MODERNISATION,V000997118
ROCHDALE BOROUGH COUNCIL,15/04/2016,PROPERTY AND HIGHWAYS,COMPLIANCE365,15/04/2016,810,TRANSACTIONS-EXPENDITURE,V000997119
ROCHDALE BOROUGH COUNCIL,08/04/2016,PHYSICAL DIS & OLDER PEOPLE,DENTAK CARE AND SERVICES LIMITED,08/04/2016,1662,NURSING LONG TERM,V000997123
ROCHDALE BOROUGH COUNCIL,08/04/2016,PHYSICAL DIS & OLDER PEOPLE,DENTAK CARE AND SERVICES LIMITED,08/04/2016,1048.36,NURSING LONG TERM,V000997124
ROCHDALE BOROUGH COUNCIL,08/04/2016,PHYSICAL DIS & OLDER PEOPLE,DENTAK CARE AND SERVICES LIMITED,08/04/2016,1139.62,NURSING LONG TERM,V000997125
ROCHDALE BOROUGH COUNCIL,08/04/2016,PHYSICAL DIS & OLDER PEOPLE,DENTAK CARE AND SERVICES LIMITED,08/04/2016,1662,NURSING LONG TERM,V000997126
ROCHDALE BOROUGH COUNCIL,08/04/2016,PHYSICAL DIS & OLDER PEOPLE,DENTAK CARE AND SERVICES LIMITED,08/04/2016,1140,NURSING LONG TERM,V000997127
ROCHDALE BOROUGH COUNCIL,08/04/2016,PHYSICAL DIS & OLDER PEOPLE,DENTAK CARE AND SERVICES LIMITED,08/04/2016,1108.72,RESIDENTIAL LONG TERM,V000997128
ROCHDALE BOROUGH COUNCIL,08/04/2016,PHYSICAL DIS & OLDER PEOPLE,LITTLEBOROUGH CARE HOME LIMITED,08/04/2016,1116.96,RESIDENTIAL LONG TERM,V000997129
ROCHDALE BOROUGH COUNCIL,08/04/2016,LEARNING DIS & MENTAL HEALTH,CALTON SYSTEMS LIMITED,08/04/2016,1166,NURSING LONG TERM,V000997130
ROCHDALE BOROUGH COUNCIL,08/04/2016,LEARNING DIS & MENTAL HEALTH,BELGRAVIA CARE,08/04/2016,2276.2,RESIDENTIAL LONG TERM,V000997131
ROCHDALE BOROUGH COUNCIL,08/04/2016,PHYSICAL DIS & OLDER PEOPLE,BUPA CARE HOMES LIMITED,08/04/2016,509.92,RESIDENTIAL LONG TERM,V000997132
ROCHDALE BOROUGH COUNCIL,08/04/2016,LEARNING DIS & MENTAL HEALTH,LIVING AMBITIONS LTD,08/04/2016,4150,RESIDENTIAL LONG TERM,V000997133
ROCHDALE BOROUGH COUNCIL,08/04/2016,LEARNING DIS & MENTAL HEALTH,THE ELMS,08/04/2016,1283.16,NURSING LONG TERM,V000997134
ROCHDALE BOROUGH COUNCIL,08/04/2016,LEARNING DIS & MENTAL HEALTH,POSSABILITIES CIC ISF,08/04/2016,849.24,PERSONAL BUDGETS - MANAGED,V000997135
ROCHDALE BOROUGH COUNCIL,08/04/2016,LEARNING DIS & MENTAL HEALTH,UNITED RESPONSE,08/04/2016,5077.6,RESIDENTIAL LONG TERM,V000997136
ROCHDALE BOROUGH COUNCIL,08/04/2016,LEARNING DIS & MENTAL HEALTH,ROCHDALE GATEWAY LEISURE LIMITED,08/04/2016,1004.28,PERSONAL BUDGETS - MANAGED,V000997137
ROCHDALE BOROUGH COUNCIL,08/04/2016,PHYSICAL DIS & OLDER PEOPLE,LEIGHTON HOUSE RETIREMENT HOME LIMITED,08/04/2016,1008.52,RESIDENTIAL LONG TERM,V000997138
ROCHDALE BOROUGH COUNCIL,08/04/2016,PHYSICAL DIS & OLDER PEOPLE,D & A C FITTON,08/04/2016,1148,RESIDENTIAL LONG TERM,V000997139
ROCHDALE BOROUGH COUNCIL,08/04/2016,PHYSICAL DIS & OLDER PEOPLE,EAST & WEST HEALTHCARE LIMITED,08/04/2016,1769.4,RESIDENTIAL LONG TERM,V000997140
ROCHDALE BOROUGH COUNCIL,08/04/2016,PHYSICAL DIS & OLDER PEOPLE,LEONARD CHESHIRE FOUNDATION WALES & WEST,08/04/2016,1830.42,NURSING LONG TERM,V000997141
ROCHDALE BOROUGH COUNCIL,08/04/2016,PHYSICAL DIS & OLDER PEOPLE,SILVERDALE CARE HOMES LIMITED,08/04/2016,1148,RESIDENTIAL LONG TERM,V000997142
ROCHDALE BOROUGH COUNCIL,08/04/2016,PHYSICAL DIS & OLDER PEOPLE,LEONARD CHESHIRE FOUNDATION WALES & WEST,08/04/2016,2209.52,NURSING LONG TERM,V000997143
ROCHDALE BOROUGH COUNCIL,08/04/2016,PHYSICAL DIS & OLDER PEOPLE,ORCHARD CARE HOMES,08/04/2016,1463,NURSING LONG TERM,V000997144
ROCHDALE BOROUGH COUNCIL,08/04/2016,PHYSICAL DIS & OLDER PEOPLE,LEONARD CHESHIRE FOUNDATION WALES & WEST,08/04/2016,1933.2,NURSING LONG TERM,V000997145
ROCHDALE BOROUGH COUNCIL,08/04/2016,PHYSICAL DIS & OLDER PEOPLE,LEONARD CHESHIRE FOUNDATION WALES & WEST,08/04/2016,937.28,RESIDENTIAL LONG TERM,V000997146
ROCHDALE BOROUGH COUNCIL,08/04/2016,PHYSICAL DIS & OLDER PEOPLE,SILVERDALE CARE HOMES LIMITED,08/04/2016,1148,NURSING LONG TERM,V000997147
ROCHDALE BOROUGH COUNCIL,08/04/2016,PHYSICAL DIS & OLDER PEOPLE,ORCHARD CARE HOMES,08/04/2016,1168.26,NURSING LONG TERM,V000997148
ROCHDALE BOROUGH COUNCIL,08/04/2016,LEARNING DIS & MENTAL HEALTH,THE JOSEPH COX CHARITY,08/04/2016,1793.84,RESIDENTIAL LONG TERM,V000997149
ROCHDALE BOROUGH COUNCIL,08/04/2016,PHYSICAL DIS & OLDER PEOPLE,EAGLE CARE HOMES LTD,08/04/2016,1255.4,RESIDENTIAL LONG TERM,V000997151
ROCHDALE BOROUGH COUNCIL,08/04/2016,PHYSICAL DIS & OLDER PEOPLE,ORCHARD CARE HOMES,08/04/2016,1226.88,NURSING LONG TERM,V000997152
ROCHDALE BOROUGH COUNCIL,08/04/2016,PHYSICAL DIS & OLDER PEOPLE,CHADDERTON TOTAL CARE UNIT LTD,08/04/2016,-733.03,NURSING LONG TERM,V000997153
ROCHDALE BOROUGH COUNCIL,08/04/2016,LEARNING DIS & MENTAL HEALTH,THE ELMS,08/04/2016,1283.16,RESIDENTIAL LONG TERM,V000997154
ROCHDALE BOROUGH COUNCIL,08/04/2016,LEARNING DIS & MENTAL HEALTH,HEALEY CARE LTD,08/04/2016,5254.2,RESIDENTIAL LONG TERM,V000997155
ROCHDALE BOROUGH COUNCIL,08/04/2016,LEARNING DIS & MENTAL HEALTH,ROCHDALE GATEWAY LEISURE LIMITED,08/04/2016,1024.8,PERSONAL BUDGETS - MANAGED,V000997156
ROCHDALE BOROUGH COUNCIL,08/04/2016,PHYSICAL DIS & OLDER PEOPLE,SILVERDALE CARE HOMES LIMITED,08/04/2016,-995.12,RESIDENTIAL LONG TERM,V000997157
ROCHDALE BOROUGH COUNCIL,08/04/2016,PHYSICAL DIS & OLDER PEOPLE,SILVERDALE CARE HOMES LIMITED,08/04/2016,-1211.44,RESIDENTIAL LONG TERM,V000997158
ROCHDALE BOROUGH COUNCIL,08/04/2016,PHYSICAL DIS & OLDER PEOPLE,HC ONE LTD,08/04/2016,995.12,RESIDENTIAL LONG TERM,V000997159
ROCHDALE BOROUGH COUNCIL,08/04/2016,PHYSICAL DIS & OLDER PEOPLE,HC ONE LTD,08/04/2016,1211.44,RESIDENTIAL LONG TERM,V000997160
ROCHDALE BOROUGH COUNCIL,08/04/2016,PHYSICAL DIS & OLDER PEOPLE,HC ONE LTD,08/04/2016,1205.9,RESIDENTIAL LONG TERM,V000997161
ROCHDALE BOROUGH COUNCIL,08/04/2016,LEARNING DIS & MENTAL HEALTH,BURY MBC,08/04/2016,1098.8,PERSONAL BUDGETS - MANAGED,V000997162
ROCHDALE BOROUGH COUNCIL,08/04/2016,PHYSICAL DIS & OLDER PEOPLE,BUPA CARE HOMES LIMITED,08/04/2016,549.88,NURSING LONG TERM,V000997163
ROCHDALE BOROUGH COUNCIL,08/04/2016,LEARNING DIS & MENTAL HEALTH,ROOKWOOD,08/04/2016,1639,RESIDENTIAL LONG TERM,V000997164
ROCHDALE BOROUGH COUNCIL,08/04/2016,PHYSICAL DIS & OLDER PEOPLE,D & A C FITTON,08/04/2016,1148,RESIDENTIAL LONG TERM,V000997165
ROCHDALE BOROUGH COUNCIL,08/04/2016,PHYSICAL DIS & OLDER PEOPLE,BUPA CARE HOMES LIMITED,08/04/2016,549.88,NURSING LONG TERM,V000997166
ROCHDALE BOROUGH COUNCIL,08/04/2016,LEARNING DIS & MENTAL HEALTH,PASSMONDS NURSING HOME,08/04/2016,1340.2,RESIDENTIAL LONG TERM,V000997167
ROCHDALE BOROUGH COUNCIL,08/04/2016,PHYSICAL DIS & OLDER PEOPLE,LEYTON HEALTHCARE NO 12 LTD,08/04/2016,1429,NURSING LONG TERM,V000997168
ROCHDALE BOROUGH COUNCIL,08/04/2016,PHYSICAL DIS & OLDER PEOPLE,CHADDERTON TOTAL CARE UNIT LTD,08/04/2016,2145.88,NURSING LONG TERM,V000997169
ROCHDALE BOROUGH COUNCIL,08/04/2016,LEARNING DIS & MENTAL HEALTH,CALTON SYSTEMS LIMITED,08/04/2016,1170,RESIDENTIAL LONG TERM,V000997170
ROCHDALE BOROUGH COUNCIL,08/04/2016,PHYSICAL DIS & OLDER PEOPLE,LEYTON HEALTHCARE NO 12 LTD,08/04/2016,1473.6,NURSING LONG TERM,V000997171
ROCHDALE BOROUGH COUNCIL,08/04/2016,PHYSICAL DIS & OLDER PEOPLE,CALTON SYSTEMS LIMITED,08/04/2016,689.02,RESIDENTIAL LONG TERM,V000997172
ROCHDALE BOROUGH COUNCIL,08/04/2016,PHYSICAL DIS & OLDER PEOPLE,STAMFORD HOUSE REST HOME LIMITED,08/04/2016,1148,RESIDENTIAL LONG TERM,V000997173
ROCHDALE BOROUGH COUNCIL,08/04/2016,PHYSICAL DIS & OLDER PEOPLE,HC ONE LTD,08/04/2016,1255.4,RESIDENTIAL LONG TERM,V000997175
